DATE OF TRANSACTION,LA DEPARTMENT INCURRING SPEND,BENEFICIARY,GROSS AMOUNT,SUMMARY OF PURPOSEOF SPEND,MERCHANT CATEGORY
29/08/2018,WOODLANDS COMMUNITY HOME,NET WORLD SPORTS,-148.99,EQUIPMENT,MISCELLANEOUS AND SPECIALTY RETAIL STORES
29/08/2018,PASSENGER TRANSPORT CO-ORDINATION CENTRE,HALFORDS ON LINE,75.00,EQUIPMENT,BICYCLE SHOPS-SALES AND SERVICE
29/08/2018,LIBERTAS COMMUNITY HOME,SIETE PECADOS,22.40,EDUC VISITS/HOLS/CAMPS/TOYS,"EATING PLACES, RESTAURANTS"
29/08/2018,LIBERTAS COMMUNITY HOME,RESTAURANTE CANALI,195.80,PURCHASE OF FOOD (RAW MATERIALS),"EATING PLACES, RESTAURANTS"
29/08/2018,DOWNLANDS COUNTRYSIDE PROJECT,WWW.SHEARWELL.CO.UK,17.46,EQUIPMENT,MISCELLANEOUS AND SPECIALTY RETAIL STORES
29/08/2018,TARGETED INTERVENTION,HARBOUR PARK,9.20,EDUC VISITS/HOLS/CAMPS/TOYS,"AMUSEMENT PARKS,CARNIVALS,CIRCUS,FORTUNE TELLERS"
29/08/2018,SE SECTION 17 CARE,WWW.ARGOS.CO.UK,261.95,OTHER COMMUNITY CARE VOL,DISCOUNT STORES
29/08/2018,ROW VOLUNTEERS WEST                     ,SAINSBURYS 0652,10.00,EQUIPMENT,"GROCERY STORES, SUPERMARKETS"
29/08/2018,BURBANK COMMUNITY HOME,JOHN NIKE LEISURES,10.00,EDUC VISITS/HOLS/CAMPS/TOYS,"CLUBS-CNTRY,MBRSHIP(ATHLET,REC,SPRTS,PRIVATE GOLF"
29/08/2018,"NE REF, ASS & INT SERVICE - HUB 1",TRAVELODGE GB0000,500.00,VENUE COSTS (INCLUDING HIRE OF ROOMS),TRAVELODGE
29/08/2018,WOODLANDS COMMUNITY HOME,NET WORLD SPORTS,214.91,EQUIPMENT,MISCELLANEOUS AND SPECIALTY RETAIL STORES
29/08/2018,WOODLANDS COMMUNITY HOME,WWW.TENPIN.CO.UK,50.85,EDUC VISITS/HOLS/CAMPS/TOYS,"CLUBS-CNTRY,MBRSHIP(ATHLET,REC,SPRTS,PRIVATE GOLF"
29/08/2018,IMT CRITICAL ENVIRONMENTS,AMAZON.CO.UK,14.18,FIXTURES AND FITTINGS,DIRECT MARKETING-OTHER DIRECT MARKETERS/NOT ELSEW.
29/08/2018,RUTH HOUSE,G J HONOUR,163.53,PURCHASE OF FOOD (RAW MATERIALS),"MISC FOOD STORE-CONVENIENCE,MRKT,SPLTY,VENDNG MACS"
29/08/2018,RUTH HOUSE,AMZN MKTP UK AMAZON.CO,16.99,EQUIPMENT,BOOK STORES
29/08/2018,PHYSICAL CONTACT TRAINING,HOTEL ON BOOKING.COM,283.50,NON-STAFF RELATED TRANSPORT COSTS,"LODGING-HOTELS,MOTELS,RESORTS-NOT CLASSIFIED"
29/08/2018,TARGETED INTERVENTION,RINGGO PARKING,8.80,EDUC VISITS/HOLS/CAMPS/TOYS,AUTOMOBILE PARKING LOTS AND GARAGES
29/08/2018,TARGETED INTERVENTION,HARBOUR PARK,13.10,EDUC VISITS/HOLS/CAMPS/TOYS,"AMUSEMENT PARKS,CARNIVALS,CIRCUS,FORTUNE TELLERS"
29/08/2018,TARGETED INTERVENTION,HARBOUR PARK,6.65,EDUC VISITS/HOLS/CAMPS/TOYS,"AMUSEMENT PARKS,CARNIVALS,CIRCUS,FORTUNE TELLERS"
29/08/2018,CS BUSINESS SUPPORT WEST,ROBERT DYAS HOLDNG LTD,5.99,EQUIPMENT,HARDWARE STORES
29/08/2018,BURBANK COMMUNITY HOME,CO-OP GROUP FOOD,4.59,PURCHASE OF FOOD (RAW MATERIALS),"GROCERY STORES, SUPERMARKETS"
29/08/2018,BURBANK COMMUNITY HOME,CO-OP GROUP FOOD,6.05,PURCHASE OF FOOD (RAW MATERIALS),"GROCERY STORES, SUPERMARKETS"
29/08/2018,HOPE SERVICE - WEST,AMAZON.CO.UK,26.49,CURRICULUM CONSUMABLES,DIRECT MARKETING-OTHER DIRECT MARKETERS/NOT ELSEW.
29/08/2018,HOPE SERVICE - WEST,AMAZON.CO.UK,5.49,CURRICULUM CONSUMABLES,DIRECT MARKETING-OTHER DIRECT MARKETERS/NOT ELSEW.
29/08/2018,DOWNLANDS COUNTRYSIDE PROJECT,MOLE COUNTRY STORES,67.35,EQUIPMENT,AGRICULTURAL COOPERATIVES
29/08/2018,DOWNLANDS COUNTRYSIDE PROJECT,MOLE COUNTRY STORES,135.84,EQUIPMENT,AGRICULTURAL COOPERATIVES
29/08/2018,FAIRCROFT COMMUNITY HOME,TESCO STORE 2812,141.20,PURCHASE OF FOOD (RAW MATERIALS),"GROCERY STORES, SUPERMARKETS"
29/08/2018,WOODLANDS COMMUNITY HOME,EASYJETEV EVN4W43,52.05,MISCELLANEOUS STAFF TRAVEL,EASYJET
29/08/2018,PROPERTY OPERATIONS TEAM,GUILDFORD LOCK & SAFE,43.50,PURCHASE OF BUILDING MATERIALS,HARDWARE EQUIPMENT AND SUPPLIES
29/08/2018,CHEYNE WALK COMMUNITY HOME,TESCO-STORES 6647,278.71,PURCHASE OF FOOD (RAW MATERIALS),"GROCERY STORES, SUPERMARKETS"
29/08/2018,CHEYNE WALK COMMUNITY HOME,SPECSAVERS,25.00,FEES,"OPTICIANS,OPTICAL GOODS & EYEGLASSES"
29/08/2018,CHEYNE WALK COMMUNITY HOME,OFSTED INTERNET,873.00,FEES,GOVERNMENT SERVICES-NOT ELSEWHERE CLASSIFIED
29/08/2018,CHEYNE WALK COMMUNITY HOME,ARGOS LTD,134.99,EDUC VISITS/HOLS/CAMPS/TOYS,DISCOUNT STORES
29/08/2018,CHEYNE WALK COMMUNITY HOME,DECATHLON UK LTD,34.93,EDUC VISITS/HOLS/CAMPS/TOYS,SPORTING GOODS STORES
29/08/2018,SURREY HILLS AONB,COUNTRY LAND AND BUSIN,45.00,SUBSISTENCE AND CONFERENCE EXPENSES,"ORGANIZATIONS, MEMBERSHIP-NOT ELSEWHERE CLASSIFIED"
29/08/2018,BURBANK COMMUNITY HOME,SAINSBURYS TO YOU 0686,294.36,PURCHASE OF FOOD (RAW MATERIALS),"GROCERY STORES, SUPERMARKETS"
29/08/2018,BURBANK COMMUNITY HOME,3C_ WOKING BOROUGH COU,1.40,EDUC VISITS/HOLS/CAMPS/TOYS,AUTOMOBILE PARKING LOTS AND GARAGES
29/08/2018,BURBANK COMMUNITY HOME,W M MORRISONS,4.81,EQUIPMENT,"GROCERY STORES, SUPERMARKETS"
29/08/2018,BURBANK COMMUNITY HOME,WILKO WOKING,2.50,EQUIPMENT,HOUSEHOLD APPLIANCE STORES
29/08/2018,BURBANK COMMUNITY HOME,SAINSBURYS TO YOU 0686,-1.80,PURCHASE OF FOOD (RAW MATERIALS),"GROCERY STORES, SUPERMARKETS"
29/08/2018,PASSENGER TRANSPORT CO-ORDINATION CENTRE,AMZN MKTP UK,159.80,EQUIPMENT,BOOK STORES
29/08/2018,BURBANK COMMUNITY HOME,AMZN MKTP UK,88.01,EQUIPMENT,BOOK STORES
29/08/2018,BURBANK COMMUNITY HOME,AMAZON.CO.UK,13.92,DAY TO DAY MAINTENANCE,DIRECT MARKETING-OTHER DIRECT MARKETERS/NOT ELSEW.
29/08/2018,ASSET PLANNING - OPERATIONS,C-SCOPE INTERNATIONAL,132.00,EQUIPMENT,SPORTING GOODS STORES
29/08/2018,HILLSIDE,SAINSBURYS 0675,39.65,PURCHASE OF FOOD (RAW MATERIALS),"GROCERY STORES, SUPERMARKETS"
29/08/2018,CHILDREN'S RIGHTS TEAM,FREEPRINTS,4.49,EQUIPMENT,"PHOTO DEVELOPING, PHOTOFINISHING LABORATORIES"
29/08/2018,DEPUTYSHIP TEAM,AXA INSURANCE,236.24,3RD PARTY PAYMENTS PRIVATE INDIV,"INSURANCE SALES,UNDERWRITING,AND PREMIUMS"
29/08/2018,LIBERTAS COMMUNITY HOME,TANGO JAVEA,77.03,EDUC VISITS/HOLS/CAMPS/TOYS,"EATING PLACES, RESTAURANTS"
29/08/2018,BURBANK COMMUNITY HOME,HOEBRIDGE GC,12.50,EDUC VISITS/HOLS/CAMPS/TOYS,GOLF COURSES-PUBLIC
29/08/2018,BURBANK COMMUNITY HOME,3C_ WOKING BOROUGH COU,1.40,MISCELLANEOUS STAFF TRAVEL,AUTOMOBILE PARKING LOTS AND GARAGES
29/08/2018,BURBANK COMMUNITY HOME,HARPERS,21.35,STATIONERY,CAMERA AND PHOTOGRAPHIC SUPPLY STORES
29/08/2018,BURBANK COMMUNITY HOME,T.K MAXX,7.99,EQUIPMENT,VARIETY STORES
29/08/2018,BURBANK COMMUNITY HOME,CARD FACTORY,.99,STATIONERY,"GIFT, CARD, NOVELTY AND SOUVENIR SHOPS"
29/08/2018,BURBANK COMMUNITY HOME,W M MORRISONS,1.30,PURCHASE OF FOOD (RAW MATERIALS),"GROCERY STORES, SUPERMARKETS"
29/08/2018,BURBANK COMMUNITY HOME,LONDIS,3.39,REFRESHMENT COSTS,"CANDY, NUT, CONFECTIONERY STORES"
29/08/2018,TRANSPORT,WEL MEDICAL LTD.,947.94,OPERATIONAL FIRE EQUIPMENT,DENTAL/LAB/MED/OPHTHALMIC HOSP EQUIP & SUPPLIES
29/08/2018,TRANSPORT,OXFORD SAFETY SUPPLIES,278.64,"CLOTHING, UNIFORM AND LAUNDRY","MUSIC STORES-INSTRUMENTS, PIANOS, SHEET MUSIC"
29/08/2018,TRANSPORT,WWW.LOCKHARTCATERING.C,112.11,EQUIPMENT,"CLEANING AND MAINTENANCE, JANITORIAL SERVICES"
29/08/2018,SOLD ESTATES MANAGEMENT,AMZN MKTP UK,3.95,DAY TO DAY MAINTENANCE,BOOK STORES
29/08/2018,SOLD ESTATES MANAGEMENT,SCREWFIX DIRECT,56.37,DAY TO DAY MAINTENANCE,"BUILDING MATERIALS, LUMBER STORES"
29/08/2018,HOPE SERVICE - WEST,WWW.OFFICEFURNITUREONL,142.80,FIXTURES AND FITTINGS,"EQUIP, FURNITURE, HOME FURNSHNGS STRS (EXCPT APPL)"
29/08/2018,CLOSED LANDFILL,WWW.SHOP.CITB.CO.UK,332.00,TRAINING EXPENSES EXTERNAL GENERAL,"SCHOOLS, TRADE AND VOCATIONAL"
29/08/2018,SOLD PROFESSIONAL TRAINING AND DEVLPMNT,STUBBERS ADVENTURE CEN,129.60,SUBSCRIPTIONS,RECREATIONAL AND SPORTING CAMPS
29/08/2018,TRANSFORMATION & DELIVERY,RICS SUBS UK CYBS,227.00,SUBSCRIPTIONS,"ORGANIZATIONS, MEMBERSHIP-NOT ELSEWHERE CLASSIFIED"
29/08/2018,CHEYNE WALK COMMUNITY HOME,WWW.REIGATE-BANSTEAD.G,35.00,NON-STAFF RELATED TRANSPORT COSTS,GOVERNMENT SERVICES-NOT ELSEWHERE CLASSIFIED
29/08/2018,MALLOW CRESCENT,AMZN MKTP UK,8.99,EQUIPMENT,BOOK STORES
29/08/2018,KARIBU COMMUNITY HOME,TESCO STORE 2812,288.25,PURCHASE OF FOOD (RAW MATERIALS),"GROCERY STORES, SUPERMARKETS"
29/08/2018,HAVEN YTH CENTRE,SAINSBURYS 2325,5.25,REFRESHMENT COSTS,"GROCERY STORES, SUPERMARKETS"
29/08/2018,RESOURCES STATIONERY                    ,AMAZON.CO.UK,32.28,STATIONERY,DIRECT MARKETING-OTHER DIRECT MARKETERS/NOT ELSEW.
29/08/2018,ARUNDEL,TESCO STORES 5999,119.36,REFRESHMENT COSTS,"GROCERY STORES, SUPERMARKETS"
29/08/2018,WAVERLEY CMHRS CARE,TRAVELODGE GB0000,638.50,FEES,TRAVELODGE
29/08/2018,FAMILIES REIGATE AND BANSTREAD,TESCO STORES 3149,66.50,"CLOTHING, UNIFORM AND LAUNDRY","GROCERY STORES, SUPERMARKETS"
29/08/2018,TARGETED INTERVENTION,RINGGO PARKING,3.60,EDUC VISITS/HOLS/CAMPS/TOYS,AUTOMOBILE PARKING LOTS AND GARAGES
29/08/2018,TARGETED INTERVENTION,HARBOUR PARK,17.50,EDUC VISITS/HOLS/CAMPS/TOYS,"AMUSEMENT PARKS,CARNIVALS,CIRCUS,FORTUNE TELLERS"
30/08/2018,IMT PRODUCTION APPLICATIONS TEAM,INFOGRAM.COM,"2,796.67",COMPUTER SERVICES,"COMPUTERS, COMPUTER PERIPHERAL EQUIPMENT, SOFTWARE"
30/08/2018,HOPE SERVICE - WEST,PRIMARK STORES 655,48.00,CURRICULUM CONSUMABLES,FAMILY CLOTHING STORES
30/08/2018,HOPE SERVICE - WEST,SMITH & WESTERN,9.90,REFRESHMENT COSTS,"EATING PLACES, RESTAURANTS"
30/08/2018,TRANSPORT,POWERMAIN,"2,953.22",OPERATIONAL FIRE EQUIPMENT,ELECTRICAL PARTS AND EQUIPMENT
30/08/2018,WASTE MINIMISATION, - ZERO VAT NAPPIES (64.73%),14.39,EQUIPMENT,CHILDREN'S AND INFANT'S WEAR STORES
30/08/2018,WASTE MINIMISATION, - NAPPY WASH AND DELIVERY (35.27%),7.84,EQUIPMENT,CHILDREN'S AND INFANT'S WEAR STORES
30/08/2018,CHMHS RAP TEAM,BIG ART AND BANNERS,52.14,PUBLICITY,MISCELLANEOUS PUBLISHING AND PRINTING
30/08/2018,MAYFORD CENTRE - BUSINESS,HIRE SRVS SOUTHERN LTD,109.06,EQUIPMENT,"EQUIPMENT RENTAL&LEASING SVS, FURNTURE/TOOL RENTAL"
30/08/2018,KARIBU COMMUNITY HOME,MARKS&SPENCER PLC,39.00,"CLOTHING, UNIFORM AND LAUNDRY","GROCERY STORES, SUPERMARKETS"
30/08/2018,BURBANK COMMUNITY HOME,BOOTS 5228,4.99,EQUIPMENT,"DRUG STORES, PHARMACIES"
30/08/2018,BURBANK COMMUNITY HOME,AMZN MKTP UK,11.52,EQUIPMENT,BOOK STORES
30/08/2018,FIRE SERVICES IT,JASON READ TRAVEL TO AIRBUS USER FORUM APPROVED BY SALLY WILSON (50%),92.20,SUBSISTENCE AND CONFERENCE EXPENSES,PASSENGER RAILWAYS
30/08/2018,STAFF OFFICE,MATT HESKETH TRAVEL TO AIRBUS USER FORUM APPROVED BY SALLY WILSON (50%),92.20,SUBSISTENCE AND CONFERENCE EXPENSES,PASSENGER RAILWAYS
30/08/2018,LIBERTAS COMMUNITY HOME,HARVESTER YEOMAN,52.90,REFRESHMENT COSTS,"EATING PLACES, RESTAURANTS"
30/08/2018,LOCAL DELIVERY GROUP,WWW.DIRECTOFFICESUPPY.,260.40,EQUIPMENT,"OFFICE, SCHOOL SUPPLY, AND STATIONERY STORES"
30/08/2018,LIBERTAS COMMUNITY HOME,MAS Y MAS BENITACHELL,47.39,PURCHASE OF FOOD (RAW MATERIALS),"GROCERY STORES, SUPERMARKETS"
30/08/2018,SOLD ESTATES MANAGEMENT,B & Q 1029,23.74,DAY TO DAY MAINTENANCE,"BUILDING MATERIALS, LUMBER STORES"
30/08/2018,SOLD ESTATES MANAGEMENT,SCREWFIX GUILFORD WOOD,9.57,DAY TO DAY MAINTENANCE,"BUILDING MATERIALS, LUMBER STORES"
30/08/2018,SOLD ESTATES MANAGEMENT,SELCO BUILDERS,96.91,DAY TO DAY MAINTENANCE,"BUILDING MATERIALS, LUMBER STORES"
30/08/2018,CHILDREN WITH DISABILITIES TEAM WEST,AMAZON.CO.UK,13.33,STATIONERY,DIRECT MARKETING-OTHER DIRECT MARKETERS/NOT ELSEW.
30/08/2018,HOPE SERVICE - WEST,AMZN MKTP UK,10.58,CURRICULUM CONSUMABLES,BOOK STORES
30/08/2018,PROPERTY OPERATIONS TEAM,SCREWFIX HANWORTH,122.96,PURCHASE OF BUILDING MATERIALS,"BUILDING MATERIALS, LUMBER STORES"
30/08/2018,TRAINING AND DEVELOPMENT,WWW.SAFEQUIP.CO.UK,165.60,EQUIPMENT,BUSINESS SERVICES-NOT ELSEWHERE CLASSIFIED
30/08/2018,HILLSIDE,SAINSBURYS 0675,50.40,PURCHASE OF FOOD (RAW MATERIALS),"GROCERY STORES, SUPERMARKETS"
30/08/2018,HILLSIDE,HALFORDS 0733,21.00,EQUIPMENT,BICYCLE SHOPS-SALES AND SERVICE
30/08/2018,ORBIS HR HEALTH & SAFETY,STATIONERY OFFICE BOOK,29.00,STATIONERY,BOOK STORES
30/08/2018,COVEHAM,PAYPAL  FERHANHASSA,21.49,EQUIPMENT,MISCELLANEOUS AND SPECIALTY RETAIL STORES
30/08/2018,HAVEN YTH CENTRE,AMZN MKTP UK,13.75,EQUIPMENT,BOOK STORES
30/08/2018,FAIRCROFT COMMUNITY HOME,BOOTS 1042,1.59,EQUIPMENT,"DRUG STORES, PHARMACIES"
30/08/2018,CHEYNE WALK COMMUNITY HOME,TESCO PAY AT PUMP 3783,70.04,PETROL/DIESEL ALL OFF BUSINESS,"FUEL DISPENSER, AUTOMATED"
30/08/2018,ARUNDEL,TESCO STORES 5999,66.48,REFRESHMENT COSTS,"GROCERY STORES, SUPERMARKETS"
30/08/2018,FAMILIES REIGATE AND BANSTREAD,YOUR IMAGE LIMITED,41.12,"CLOTHING, UNIFORM AND LAUNDRY","CLOTHING RENTAL-COSTUMES,UNIFORMS,FORMAL WEAR"
30/08/2018,TRAINING ENVIRONMENT SERVICES,EB  FUNDING AND VALUE,58.10,STAFF TRAINING,BUSINESS SERVICES-NOT ELSEWHERE CLASSIFIED
30/08/2018,LOCAL ASSISTANCE SCHEME,WWW.JOHNLEWIS.COM,-27.00,FURNITURE,DEPARTMENT STORES
30/08/2018,CENTRAL COMMUNICATIONS,FACEBK KUNCRHE2S2,600.00,PUBLICITY,ADVERTISING SERVICES
30/08/2018,SHELL UK LICENSING,BOROUGH OF POOLE,113.00,FEES,GOVERNMENT SERVICES-NOT ELSEWHERE CLASSIFIED
30/08/2018,SHELL UK LICENSING,DARLINGTON BC INTERNET,113.00,FEES,GOVERNMENT SERVICES-NOT ELSEWHERE CLASSIFIED
30/08/2018,SHELL UK LICENSING,WWW.SELBY.GOV.UK,113.00,FEES,GOVERNMENT SERVICES-NOT ELSEWHERE CLASSIFIED
30/08/2018,ACL CENTRAL EXPENDITURE,CURRYS ONLINE,79.99,EQUIPMENT,ELECTRONIC SALES
30/08/2018,HOPE SERVICE - WEST,CARD FACTORY,20.23,CURRICULUM CONSUMABLES,"GIFT, CARD, NOVELTY AND SOUVENIR SHOPS"
30/08/2018,EXTENDED HOPE,AMZN MKTP UK,10.99,CURRICULUM CONSUMABLES,BOOK STORES
30/08/2018,EXTENDED HOPE,TESCO STORE 2590,105.47,PURCHASE OF FOOD (RAW MATERIALS),"GROCERY STORES, SUPERMARKETS"
30/08/2018,EXTENDED HOPE,ARGOS LTD,27.99,CURRICULUM CONSUMABLES,DISCOUNT STORES
30/08/2018,LEAVING CARE PACKAGES,TRAVELODGE GB0000,143.00,INDEPENDENT LIVING PLACEMENTS,TRAVELODGE
30/08/2018,CS BUSINESS SUPPORT MASH,MILK&MORE,424.80,OTHER COMMUNITY CARE VOL,DAIRY PRODUCTS STORES
30/08/2018,RUTH HOUSE,NOWTV.COM/BILLINGHELP,7.99,EDUC VISITS/HOLS/CAMPS/TOYS,"CABLE, SATELLITE, OTHER PAY TELEVISION, RADIO SVCS"
30/08/2018,RUTH HOUSE,SURREY CC CARD PAY,16.00,STAFF TRAINING,COMPUTER NETWORK/INFORMATION SERVICES
30/08/2018,RUTH HOUSE,SURREY CC CARD PAY,16.00,STAFF TRAINING,COMPUTER NETWORK/INFORMATION SERVICES
30/08/2018,RUTH HOUSE,SURREY CC CARD PAY,16.00,STAFF TRAINING,COMPUTER NETWORK/INFORMATION SERVICES
30/08/2018,BURBANK COMMUNITY HOME,NEW FOREST CONSERVATIO,70.00,EDUC VISITS/HOLS/CAMPS/TOYS,TOURIST ATTRACTIONS AND EXHIBITS
30/08/2018,BURBANK COMMUNITY HOME,NEW FOREST CONSERVATIO,13.60,REFRESHMENT COSTS,TOURIST ATTRACTIONS AND EXHIBITS
30/08/2018,HILLSIDE,WILKO RETAIL LIMIT,11.85,EQUIPMENT,HOUSEHOLD APPLIANCE STORES
30/08/2018,CS BUSINESS SUPPORT WEST,LIDL UK  LEATHERHEAD,6.99,EQUIPMENT,"GROCERY STORES, SUPERMARKETS"
30/08/2018,SW EDUCATION WELFARE OFFICERS,SURREY CC CARD PAY,16.00,TRAINING EXPENSES EXTERNAL GENERAL,COMPUTER NETWORK/INFORMATION SERVICES
30/08/2018,SW EDUCATION WELFARE OFFICERS,SURREY CC CARD PAY,16.00,TRAINING EXPENSES EXTERNAL GENERAL,COMPUTER NETWORK/INFORMATION SERVICES
30/08/2018,CHEYNE WALK COMMUNITY HOME,ROADCHEF M SERV UPAY L,5.99,REFRESHMENT COSTS,"EATING PLACES, RESTAURANTS"
30/08/2018,CHEYNE WALK COMMUNITY HOME,DART-CHARGE,5.00,VEHICLE RUNNING COSTS,"BRIDGE AND ROAD FEES, TOLLS"
30/08/2018,CHEYNE WALK COMMUNITY HOME,MCDONALDS,6.15,REFRESHMENT COSTS,FAST FOOD RESTAURANTS
30/08/2018,WOODLANDS COMMUNITY HOME,AMZN MKTP UK,23.99,EQUIPMENT,BOOK STORES
30/08/2018,SOLD ESTATES MANAGEMENT,AMZN MKTP UK,18.49,EQUIPMENT,BOOK STORES
30/08/2018,SOLD DAY TO DAY OPERATIONS,AMZN MKTP UK,19.29,EQUIPMENT,BOOK STORES
31/08/2018,SURREY ARTS GENERAL,CLEAN A CARPETS LTD,648.00,CLEANING AND DOMESTIC SUPPLIES,CARPET AND UPHOLSTERY CLEANING
31/08/2018,BURBANK COMMUNITY HOME,W M MORRISONS,1.50,EQUIPMENT,"GROCERY STORES, SUPERMARKETS"
31/08/2018,ACL CENTRAL EXPENDITURE,FACEBK EPTHMFSCB2,79.43,PUBLICITY,ADVERTISING SERVICES
31/08/2018,ACL CENTRAL EXPENDITURE,FACEBK H9YTKFWT82,41.25,PUBLICITY,ADVERTISING SERVICES
31/08/2018,PE/CDT MAINTENANCE OVERHEADS,WICKES,91.08,ITEMS PURCHASED FOR RE-SALE,"BUILDING MATERIALS, LUMBER STORES"
31/08/2018,CWD CONTRACTS / SLA'S,AMZN MKTP UK,57.58,EQUIPMENT,BOOK STORES
31/08/2018,PE/CDT MAINTENANCE OVERHEADS,WWW.ARCO.CO.UK,67.19,EQUIPMENT,INDUSTRIAL SUPPLIES NOT ELSEWHERE CLASSIFIED
31/08/2018,PROPERTY OPERATIONS TEAM,SCREWFIX DIR.LTD,3.19,PURCHASE OF BUILDING MATERIALS,"BUILDING MATERIALS, LUMBER STORES"
31/08/2018,MALLOW CRESCENT,AMZN MKTP UK,16.44,EQUIPMENT,BOOK STORES
31/08/2018,BURBANK COMMUNITY HOME,SAINSBURYS 0652,68.45,PURCHASE OF FOOD (RAW MATERIALS),"GROCERY STORES, SUPERMARKETS"
31/08/2018,SHELL UK LICENSING,WWW.CHELTENHAM.GOV.UK,226.00,FEES,GOVERNMENT SERVICES-NOT ELSEWHERE CLASSIFIED
31/08/2018,SE EDUCATION PSYCHOLOGISTS,AMAZON.CO.UK,20.69,BOOKS,DIRECT MARKETING-OTHER DIRECT MARKETERS/NOT ELSEW.
31/08/2018,FAIRCROFT COMMUNITY HOME,SAINSBURYS SACAT 0687,29.21,PURCHASE OF FOOD (RAW MATERIALS),"GROCERY STORES, SUPERMARKETS"
31/08/2018,SE EDUCATION PSYCHOLOGISTS,AMZN MKTP UK,32.64,BOOKS,BOOK STORES
31/08/2018,SURREY THE GREAT WAR,PAYPAL  PASCE LTD,129.95,EQUIPMENT,ELECTRONIC SALES
31/08/2018,ARUNDEL,TESCO STORES 5999,130.70,REFRESHMENT COSTS,"GROCERY STORES, SUPERMARKETS"
31/08/2018,LIBERTAS COMMUNITY HOME,SIETE PECADOS,19.16,REFRESHMENT COSTS,"EATING PLACES, RESTAURANTS"
31/08/2018,EAST SUSSEX PARTNERSHIP INCOME,FACEBK AUSZRFNQ82,58.11,STAFF ADVERTISING ,ADVERTISING SERVICES
31/08/2018,RECRUITMENT,FACEBK HUSZRFNQ82,14.82,STAFF ADVERTISING ,ADVERTISING SERVICES
31/08/2018,CENTRAL COMMUNICATIONS,FACEBK K7WFNHS2S2,25.75,PUBLICITY,ADVERTISING SERVICES
31/08/2018,ROW VOLUNTEERS EAST                     ,MCVEIGH PARKER & CO LT,-150.62,EQUIPMENT,GENERAL CONTRACTORS/RESIDENTIAL BUILDINGS
31/08/2018,WEB OPERATIONS TEAM,REPORTURI 100K REPORTS,14.29,SUBSCRIPTIONS,COMPUTER SOFTWARE STORES
31/08/2018,EXTENDED HOPE,WILDWOOD,50.00,EDUC VISITS/HOLS/CAMPS/TOYS,TOURIST ATTRACTIONS AND EXHIBITS
31/08/2018,LEGAL SUPPORT TEAM,AMZN MKTP UK,459.96,EQUIPMENT,BOOK STORES
31/08/2018,CORPORATE GROUP - LEGAL SERVICES,AMZN MKTP UK,129.99,EQUIPMENT,BOOK STORES
31/08/2018,CORPORATE GROUP - LEGAL SERVICES,AMZN MKTP UK,76.11,EQUIPMENT,BOOK STORES
31/08/2018,CORPORATE GROUP - LEGAL SERVICES,AMZN MKTP UK,129.99,EQUIPMENT,BOOK STORES
31/08/2018,CORPORATE GROUP - LEGAL SERVICES,AMZN MKTP UK,129.99,EQUIPMENT,BOOK STORES
31/08/2018,CORPORATE GROUP - LEGAL SERVICES,AMZN MKTP UK,509.98,EQUIPMENT,BOOK STORES
31/08/2018,LEGAL SUPPORT TEAM,AMZN MKTP UK,134.91,EQUIPMENT,BOOK STORES
31/08/2018,RUTH HOUSE,SAINSBURY'S FOOD DELIVERY FOR YOUNG PEOPLE ,36.60,PURCHASE OF FOOD (RAW MATERIALS),"GROCERY STORES, SUPERMARKETS"
31/08/2018,RUTH HOUSE, SAINSBURY'S FOOD DELIVERY FOR YOUNG PEOPLE ,144.25,PURCHASE OF FOOD (RAW MATERIALS),"GROCERY STORES, SUPERMARKETS"
31/08/2018,CORPORATE GROUP - LEGAL SERVICES,AMAZON.CO.UK,17.96,EQUIPMENT,DIRECT MARKETING-OTHER DIRECT MARKETERS/NOT ELSEW.
31/08/2018,WOODLANDS COMMUNITY HOME,LONGACRES GARDEN CENTR,34.86,UPKEEP OF GROUNDS,LAWN AND GARDEN SUPPLY STORES
31/08/2018,ASSET PLANNING - OPERATIONS,POST OFFICE COUNTER,13.14,POSTAGE AND COURIER CHARGES,POSTAL SERVICES-GOVERNMENT ONLY
31/08/2018,IMT CRITICAL ENVIRONMENTS,MILK&MORE,3.00,REFRESHMENT COSTS,DAIRY PRODUCTS STORES
31/08/2018,RUTH HOUSE,AMZN MKTP UK,49.99,EDUC VISITS/HOLS/CAMPS/TOYS,BOOK STORES
31/08/2018,LIBERTAS COMMUNITY HOME,EQUIPMENT ,8.50,EQUIPMENT,"GROCERY STORES, SUPERMARKETS"
31/08/2018,LIBERTAS COMMUNITY HOME,PROVISIONS - VAT ,21.00,PURCHASE OF FOOD (RAW MATERIALS),"GROCERY STORES, SUPERMARKETS"
31/08/2018,LIBERTAS COMMUNITY HOME,PROVISIONS - NON VAT ,94.73,PURCHASE OF FOOD (RAW MATERIALS),"GROCERY STORES, SUPERMARKETS"
31/08/2018,COUNTYWIDE MANAGED PRINT SERVICE,CARTRIDGE SAVE,275.00,PRINTING,STATIONERY/OFFICE SUPPLIES/PRINTING & WRITING PAP.
31/08/2018,RUTH HOUSE,AMZN MKTP UK,13.99,EDUC VISITS/HOLS/CAMPS/TOYS,BOOK STORES
31/08/2018,HOPE SERVICE - WEST,CREAMS CAFE,13.30,REFRESHMENT COSTS,"EATING PLACES, RESTAURANTS"
31/08/2018,HOPE SERVICE - WEST,SMITH & WESTERN,7.40,REFRESHMENT COSTS,"EATING PLACES, RESTAURANTS"
31/08/2018,PROPERTY OPERATIONS TEAM,B & Q 1029,33.00,PURCHASE OF BUILDING MATERIALS,"BUILDING MATERIALS, LUMBER STORES"
31/08/2018,PROPERTY OPERATIONS TEAM,SCREWFIX GUILFORD WOOD,26.57,PURCHASE OF BUILDING MATERIALS,"BUILDING MATERIALS, LUMBER STORES"
31/08/2018,APPLEWOOD,ASDA GROCERIES ONLINE,197.38,PURCHASE OF FOOD (RAW MATERIALS),"GROCERY STORES, SUPERMARKETS"
31/08/2018,APPLEWOOD,ASDA GROCERIES ONLINE,-1.12,PURCHASE OF FOOD (RAW MATERIALS),"GROCERY STORES, SUPERMARKETS"
31/08/2018,BURBANK COMMUNITY HOME,VUE BSL LTD,11.98,CURRICULUM EQUIPMENT AND FURNITURE,MOTION PICTURE THEATERS
31/08/2018,BURBANK COMMUNITY HOME,VUE BSL LTD,3.79,REFRESHMENT COSTS,MOTION PICTURE THEATERS
31/08/2018,BURBANK COMMUNITY HOME,SPELTHORNE BOROUGH COU,3.50,EDUC VISITS/HOLS/CAMPS/TOYS,AUTOMOBILE PARKING LOTS AND GARAGES
31/08/2018,ACL CENTRAL EXPENDITURE,AMZ KITCHEN RANGE BY H,-90.00,EQUIPMENT,MISCELLANEOUS AND SPECIALTY RETAIL STORES
01/09/2018,LIBERTAS COMMUNITY HOME,AUTOPISTA MARE NOSTRUM,7.88,REFRESHMENT COSTS,"BRIDGE AND ROAD FEES, TOLLS"
01/09/2018,BURBANK COMMUNITY HOME,DEICHMANN SE 0085,19.99,"CLOTHING, UNIFORM AND LAUNDRY",SHOE STORES
01/09/2018,BURBANK COMMUNITY HOME,SPORTSDIRECT 174,27.05,"CLOTHING, UNIFORM AND LAUNDRY",SPORTING GOODS STORES
01/09/2018,BURBANK COMMUNITY HOME,ASDA STORES 4823,22.00,"CLOTHING, UNIFORM AND LAUNDRY","GROCERY STORES, SUPERMARKETS"
01/09/2018,BURBANK COMMUNITY HOME,RYMAN,20.83,EDUC VISITS/HOLS/CAMPS/TOYS,"OFFICE, SCHOOL SUPPLY, AND STATIONERY STORES"
01/09/2018,BURBANK COMMUNITY HOME,3C_ WOKING BOROUGH COU,2.80,EDUC VISITS/HOLS/CAMPS/TOYS,AUTOMOBILE PARKING LOTS AND GARAGES
01/09/2018,CENTRAL COMMUNICATIONS,ITUNES.COM/BILL,11.99,PUBLICITY,RECORD SHOPS
01/09/2018,LIBERTAS COMMUNITY HOME,GATE GROUP INFLIGHT,16.00,EDUC VISITS/HOLS/CAMPS/TOYS,DUTY FREE STORES
01/09/2018,LIBERTAS COMMUNITY HOME,VICTORIA CAR HIRE,-79.13,EDUC VISITS/HOLS/CAMPS/TOYS,AUTOMOBILE RENTAL AGENCY-NOT ELSEWHERE CLASSIFIED
01/09/2018,BURBANK COMMUNITY HOME,W M MORRISONS,32.02,PURCHASE OF FOOD (RAW MATERIALS),"GROCERY STORES, SUPERMARKETS"
01/09/2018,BURBANK COMMUNITY HOME,HARPERS,4.99,PRINTING,CAMERA AND PHOTOGRAPHIC SUPPLY STORES
01/09/2018,CAMHS POOLED BUDGET,AMZN MKTP UK AMAZON.CO,31.99,EQUIPMENT,BOOK STORES
01/09/2018,SUPERFAST BROADBAND ECONOMIC DEVELOPMENT,GOOGLE  GSUITE_SUPERFA,13.75,COMPUTER SERVICES,DIRECT MARKETING-CONTINUITY/SUBSCRIPTION MERCHANTS
01/09/2018,LIBERTAS COMMUNITY HOME,ALICANTE AEROPUERTO,80.68,REFRESHMENT COSTS,"BAR,LOUNGE,DISCO,NIGHTCLUB,TAVERN-ALCOHOLIC DRINKS"
01/09/2018,LIBERTAS COMMUNITY HOME,ALICANTE AEROPUERTO,3.50,REFRESHMENT COSTS,"BAR,LOUNGE,DISCO,NIGHTCLUB,TAVERN-ALCOHOLIC DRINKS"
01/09/2018,CHEYNE WALK COMMUNITY HOME,BOBBYS CONVENIENCE,6.09,3RD PARTY PAYMENTS PRIVATE INDIV,NEWS DEALERS AND NEWSSTANDS
01/09/2018,CHEYNE WALK COMMUNITY HOME,TESCO STORES 2560,37.09,PURCHASE OF FOOD (RAW MATERIALS),"GROCERY STORES, SUPERMARKETS"
01/09/2018,CHEYNE WALK COMMUNITY HOME,SPECSAVERS,85.00,EQUIPMENT,"OPTICIANS,OPTICAL GOODS & EYEGLASSES"
01/09/2018,CENTRAL COMMUNICATIONS,ITUNES.COM/BILL,17.98,PUBLICITY,RECORD SHOPS
01/09/2018,HAVEN YTH CENTRE,CO-OP GROUP 310385,6.75,REFRESHMENT COSTS,"GROCERY STORES, SUPERMARKETS"
01/09/2018,HOLLAND CLOSE RESIDENTIAL HOME,TESCO STORE 3066,33.37,"CLOTHING, UNIFORM AND LAUNDRY","GROCERY STORES, SUPERMARKETS"
01/09/2018,EXTENDED HOPE,WWW.HIGH-SPORTS.CO.UK,31.50,EDUC VISITS/HOLS/CAMPS/TOYS,SPORTING GOODS STORES
01/09/2018,LIBERTAS COMMUNITY HOME,MARTIN MCCOLL,53.21,NEWSPAPER AND PERIODICALS,"MISC FOOD STORE-CONVENIENCE,MRKT,SPLTY,VENDNG MACS"
01/09/2018,CORPORATE GROUP - LEGAL SERVICES,AMZN MKTP UK,578.00,LEGAL EXPENSES,BOOK STORES
01/09/2018,FAIRCROFT COMMUNITY HOME,WWW.UKFLAIR.COM,59.97,EDUC VISITS/HOLS/CAMPS/TOYS,"SPORTS APPAREL, RIDING APPAREL STORES"
01/09/2018,WOODLANDS COMMUNITY HOME,SAINSBURYS SACAT 0686,15.70,PURCHASE OF FOOD (RAW MATERIALS),"GROCERY STORES, SUPERMARKETS"
01/09/2018,NW CARE - NON-LAC CP & COURT,NATIONAL EXPRESS LIMIT,66.10,OTHER COMMUNITY CARE VOL,BUS LINES
01/09/2018,DOWNLANDS COUNTRYSIDE PROJECT,PP AUTOKEYS,150.00,VEHICLE REPAIRS AND MAINTENANCE,AUTOMOTIVE SERVICE SHOPS
01/09/2018,HILLSIDE,HALFORDS 0733,21.00,EQUIPMENT,BICYCLE SHOPS-SALES AND SERVICE
01/09/2018,FAIRCROFT COMMUNITY HOME,SAINSBURYS 0687,11.50,PURCHASE OF FOOD (RAW MATERIALS),"GROCERY STORES, SUPERMARKETS"
02/09/2018,CENTRAL COMMUNICATIONS,TIMES NEWSPAPERS LTD,39.00,PUBLICITY,"BOOKS,PERIODICALS AND NEWSPAPERS"
02/09/2018,HOLLAND CLOSE RESIDENTIAL HOME,BP HILLSIDE CONNECT,12.88,PURCHASE OF FOOD (RAW MATERIALS),SERVICE STATIONS WITH OR WITHOUT ANCILLARY SERVICE
02/09/2018,BURBANK COMMUNITY HOME,PRIMARK,6.00,"CLOTHING, UNIFORM AND LAUNDRY",FAMILY CLOTHING STORES
02/09/2018,HAVEN YTH CENTRE,AMZN MKTP UK,9.99,EQUIPMENT,BOOK STORES
02/09/2018,LIBRARIES CENTRAL,AMZN MKTP UK,35.96,EQUIPMENT,BOOK STORES
02/09/2018,LOCAL ASSISTANCE SCHEME,WWW.JOHNLEWIS.COM,-25.00,FURNITURE,DEPARTMENT STORES
02/09/2018,CENTRAL COMMUNICATIONS,GOOGLE  ADS2060179426,500.00,PUBLICITY,DIRECT MARKETING-CONTINUITY/SUBSCRIPTION MERCHANTS
02/09/2018,WOODLANDS COMMUNITY HOME,ASDA STORES 4823,66.90,PURCHASE OF FOOD (RAW MATERIALS),"GROCERY STORES, SUPERMARKETS"
02/09/2018,BURBANK COMMUNITY HOME,SAINSBURYS SACAT 0802,4.80,PURCHASE OF FOOD (RAW MATERIALS),"GROCERY STORES, SUPERMARKETS"
02/09/2018,BURBANK COMMUNITY HOME,3C_ WOKING BOROUGH COU,1.40,EDUC VISITS/HOLS/CAMPS/TOYS,AUTOMOBILE PARKING LOTS AND GARAGES
02/09/2018,BURBANK COMMUNITY HOME,3C_ WOKING BOROUGH COU,2.80,EDUC VISITS/HOLS/CAMPS/TOYS,AUTOMOBILE PARKING LOTS AND GARAGES
02/09/2018,BURBANK COMMUNITY HOME,NEW LOOK 1792,9.99,"CLOTHING, UNIFORM AND LAUNDRY",WOMEN'S READY TO WEAR STORES
02/09/2018,BURBANK COMMUNITY HOME,RYMAN,8.12,EDUC VISITS/HOLS/CAMPS/TOYS,"OFFICE, SCHOOL SUPPLY, AND STATIONERY STORES"
02/09/2018,BURBANK COMMUNITY HOME,SPORTSDIRECT 174,31.49,"CLOTHING, UNIFORM AND LAUNDRY",SPORTING GOODS STORES
02/09/2018,FAIRCROFT COMMUNITY HOME,KFC,5.49,REFRESHMENT COSTS,FAST FOOD RESTAURANTS
02/09/2018,FAIRCROFT COMMUNITY HOME,HARRY RAMSDENS,7.99,REFRESHMENT COSTS,"MISC FOOD STORE-CONVENIENCE,MRKT,SPLTY,VENDNG MACS"
02/09/2018,FAIRCROFT COMMUNITY HOME,WELCOME BREAK STARBUCK,4.34,REFRESHMENT COSTS,"MISC FOOD STORE-CONVENIENCE,MRKT,SPLTY,VENDNG MACS"
02/09/2018,FAIRCROFT COMMUNITY HOME,NANDOS,10.95,REFRESHMENT COSTS,"EATING PLACES, RESTAURANTS"
02/09/2018,FAIRCROFT COMMUNITY HOME,MCDONALDS,13.98,REFRESHMENT COSTS,FAST FOOD RESTAURANTS
02/09/2018,FAIRCROFT COMMUNITY HOME,MCDONALDS,20.74,REFRESHMENT COSTS,FAST FOOD RESTAURANTS
03/09/2018,NW CARE - NON-LAC CP & COURT,GRO HM PASSPORT OFFICE,-9.25,OTHER COMMUNITY CARE VOL,GOVERNMENT SERVICES-NOT ELSEWHERE CLASSIFIED
03/09/2018,KARIBU COMMUNITY HOME,THENAILCOMPANY.CO,272.07,EDUC VISITS/HOLS/CAMPS/TOYS,BARBER AND BEAUTY SHOPS
03/09/2018,FAIRCROFT COMMUNITY HOME,CLOTHING AND UNIFORM INC VAT (84.03%),105.25,"CLOTHING, UNIFORM AND LAUNDRY",SPORTING GOODS STORES
03/09/2018,FAIRCROFT COMMUNITY HOME,CLOTHING AND UNIFORM NON VAT (15.97%),20.00,"CLOTHING, UNIFORM AND LAUNDRY",SPORTING GOODS STORES
03/09/2018,TRANSPORT,TFL PENALTY CHARGE,500.00,VEHICLE RUNNING COSTS,"BRIDGE AND ROAD FEES, TOLLS"
03/09/2018,COUNTY HALL,AMZN MKTP UK AMAZON.CO,53.82,EQUIPMENT,BOOK STORES
03/09/2018,NW CARE - LAC,THE WOKING HOTEL,491.00,OTHER COMMUNITY CARE VOL,"LODGING-HOTELS,MOTELS,RESORTS-NOT CLASSIFIED"
03/09/2018,BURBANK COMMUNITY HOME,PRIMARK,2.00,"CLOTHING, UNIFORM AND LAUNDRY",FAMILY CLOTHING STORES
03/09/2018,ASSET PLANNING - OPERATIONS,SIMPLY MOULDINGS,26.40,EQUIPMENT,"BUILDING MATERIALS, LUMBER STORES"
03/09/2018,SURREY HEATH LOCALITY TEAM,TRAVELODGE GB0000,529.00,VENUE COSTS (INCLUDING HIRE OF ROOMS),TRAVELODGE
03/09/2018,RUTH HOUSE,MUSBURY FABRICS,250.02,"CLOTHING, UNIFORM AND LAUNDRY",MISCELLANEOUS HOUSE FURNISHING SPECIALTY SHOPS
03/09/2018,IMT CRITICAL ENVIRONMENTS,MILK&MORE,7.80,REFRESHMENT COSTS,DAIRY PRODUCTS STORES
03/09/2018,BURBANK COMMUNITY HOME,HOBBYCRAFT,24.50,EDUC VISITS/HOLS/CAMPS/TOYS,"ARTIST SUPPLY STORES, CRAFT SHOPS"
03/09/2018,BURBANK COMMUNITY HOME,ASDA  STORES 4775,2.39,PURCHASE OF FOOD (RAW MATERIALS),"GROCERY STORES, SUPERMARKETS"
03/09/2018,BURBANK COMMUNITY HOME,HALFORDS 0421,2.00,DAY TO DAY MAINTENANCE,BICYCLE SHOPS-SALES AND SERVICE
03/09/2018,HILLSIDE,GREETINGS CARD (5.87%),2.01,PURCHASE OF FOOD (RAW MATERIALS),"GROCERY STORES, SUPERMARKETS"
03/09/2018,HILLSIDE,GROCERIES (94.13%),32.24,PURCHASE OF FOOD (RAW MATERIALS),"GROCERY STORES, SUPERMARKETS"
03/09/2018,PHYSICAL CONTACT TRAINING,NORMANHURST HOTEL,238.50,NON-STAFF RELATED TRANSPORT COSTS,"LODGING-HOTELS,MOTELS,RESORTS-NOT CLASSIFIED"
03/09/2018,CS BUSINESS SUPPORT WEST,MILK&MORE,14.10,REFRESHMENT COSTS,DAIRY PRODUCTS STORES
03/09/2018,LIBERTAS COMMUNITY HOME,PROVISIONS - VAT (7.83%),11.05,PURCHASE OF FOOD (RAW MATERIALS),"GROCERY STORES, SUPERMARKETS"
03/09/2018,LIBERTAS COMMUNITY HOME,PROVISIONS - NON VAT (92.17%),130.12,PURCHASE OF FOOD (RAW MATERIALS),"GROCERY STORES, SUPERMARKETS"
03/09/2018,BURBANK COMMUNITY HOME,CINEWORLD CRA CP,18.21,EDUC VISITS/HOLS/CAMPS/TOYS,"THEATRICAL PRODUCERS(EXCL MOTION PIX),TICKET AGNCY"
03/09/2018,MALLOW CRESCENT,SAINSBURYS TO YOU 0652,129.05,PURCHASE OF FOOD (RAW MATERIALS),"GROCERY STORES, SUPERMARKETS"
03/09/2018,MALLOW CRESCENT,TESCO STORE 2590,118.05,PURCHASE OF FOOD (RAW MATERIALS),"GROCERY STORES, SUPERMARKETS"
03/09/2018,SW EDUCATION WELFARE OFFICERS,SURREY CC CARD PAY,16.00,TRAINING EXPENSES EXTERNAL GENERAL,COMPUTER NETWORK/INFORMATION SERVICES
03/09/2018,CHEYNE WALK COMMUNITY HOME,AMAZON PRIME,7.99,SUBSCRIPTIONS,DIRECT MARKETING-CONTINUITY/SUBSCRIPTION MERCHANTS
03/09/2018,FAIRCROFT COMMUNITY HOME,TESCO STORE 2812,254.88,PURCHASE OF FOOD (RAW MATERIALS),"GROCERY STORES, SUPERMARKETS"
03/09/2018,ARUNDEL,CVLE / MPLC,164.99,FEES,"CONSULTING, MANAGEMENT, AND PUBLIC RELATIONS SVCS"
03/09/2018,READY FOR WORK YSS,BANBURY POSTICHE LTD,250.00,EDUC VISITS/HOLS/CAMPS/TOYS,WIG AND TOUPEE SHOPS
03/09/2018,WOODLANDS COMMUNITY HOME,TESCO STORES 2560,5.82,PURCHASE OF FOOD (RAW MATERIALS),"GROCERY STORES, SUPERMARKETS"
03/09/2018,TRANSPORT,MAHA UK,276.00,VEHICLE REPAIRS AND MAINTENANCE,ELECTRICAL PARTS AND EQUIPMENT
03/09/2018,BURBANK COMMUNITY HOME,WH SMITH,14.99,EQUIPMENT,NEWS DEALERS AND NEWSSTANDS
03/09/2018,TRANSPORT,SQ  TYRRELL SERVICES L,421.80,VEHICLE REPAIRS AND MAINTENANCE,OTHER SERVICES (NOT ELSEWHERE CLASSIFIED)
03/09/2018,TRANSPORT,DESIGN SIGNAGE SOLUTIO,90.00,VEHICLE REPAIRS AND MAINTENANCE,"QUICK COPY,REPRODUCTION AND BLUEPRINTING SERVICES"
03/09/2018,FAIRCROFT COMMUNITY HOME,SAINSBURYS 0687,7.25,EQUIPMENT,"GROCERY STORES, SUPERMARKETS"
03/09/2018,FAIRCROFT COMMUNITY HOME,ARGOS COBHAM (INSIDE S,12.99,EQUIPMENT,DISCOUNT STORES
03/09/2018,FAIRCROFT COMMUNITY HOME,WAITROSE 176,13.60,PURCHASE OF FOOD (RAW MATERIALS),"GROCERY STORES, SUPERMARKETS"
03/09/2018,16 19 EDU & SKILLS,VISTAPRINT,71.98,PRINTING,MISCELLANEOUS PUBLISHING AND PRINTING
03/09/2018,BURBANK COMMUNITY HOME,VALENTINOS,45.49,"CLOTHING, UNIFORM AND LAUNDRY",MEN'S/WOMEN'S/CHILDREN'S UNIFORMS/COMMERCIAL CLOTH
03/09/2018,BURBANK COMMUNITY HOME,BOOTS 5070,5.00,EQUIPMENT,"DRUG STORES, PHARMACIES"
03/09/2018,BURBANK COMMUNITY HOME,HOBBYCRAFT,2.50,EQUIPMENT,"ARTIST SUPPLY STORES, CRAFT SHOPS"
03/09/2018,BURBANK COMMUNITY HOME,3C_ WOKING BOROUGH COU,1.40,EDUC VISITS/HOLS/CAMPS/TOYS,AUTOMOBILE PARKING LOTS AND GARAGES
03/09/2018,BURBANK COMMUNITY HOME,THE WORKS,10.00,EQUIPMENT,DISCOUNT STORES
03/09/2018,VIRTUAL SCHOOL FOR LAC PUPIL PREMIUM,AMAZON.CO.UK,4.64,BOOKS,DIRECT MARKETING-OTHER DIRECT MARKETERS/NOT ELSEW.
03/09/2018,BURBANK COMMUNITY HOME,W M MORRISONS,5.00,EQUIPMENT,"GROCERY STORES, SUPERMARKETS"
03/09/2018,SOLD DAY TO DAY OPERATIONS,HONEY BROTHERS LTD,42.96,EQUIPMENT,LAWN AND GARDEN SUPPLY STORES
03/09/2018,TRANSPORT STUDIES TEAM,PAYPAL  TALLYCOUNTE,226.05,EQUIPMENT,"OFFICE, SCHOOL SUPPLY, AND STATIONERY STORES"
03/09/2018,BURBANK COMMUNITY HOME,AMZN MKTP UK,5.59,EQUIPMENT,BOOK STORES
03/09/2018,WOODLANDS COMMUNITY HOME,PROVISIONS,6.70,PURCHASE OF FOOD (RAW MATERIALS),"GROCERY STORES, SUPERMARKETS"
03/09/2018,WOODLANDS COMMUNITY HOME,PROVISIONS,9.50,PURCHASE OF FOOD (RAW MATERIALS),"GROCERY STORES, SUPERMARKETS"
03/09/2018,WOODLANDS COMMUNITY HOME,PROVISIONS ,15.35,PURCHASE OF FOOD (RAW MATERIALS),"GROCERY STORES, SUPERMARKETS"
03/09/2018,WOODLANDS COMMUNITY HOME,PROVISIONS ,3.59,PURCHASE OF FOOD (RAW MATERIALS),"GROCERY STORES, SUPERMARKETS"
03/09/2018,WOODLANDS COMMUNITY HOME,MEDICAL PLASTERS ,1.10,EQUIPMENT,"GROCERY STORES, SUPERMARKETS"
03/09/2018,WOODLANDS COMMUNITY HOME,DISHCLOTHS ,1.90,CLEANING MATERIALS,"GROCERY STORES, SUPERMARKETS"
03/09/2018,HOPE SERVICE - WEST,SAINSBURYS SACAT 0683,54.15,PURCHASE OF FOOD (RAW MATERIALS),"GROCERY STORES, SUPERMARKETS"
03/09/2018,HOPE SERVICE - WEST,WWW.THEWORKS.CO.UK,30.00,CURRICULUM CONSUMABLES,DISCOUNT STORES
03/09/2018,LOCAL DELIVERY GROUP,WWW.MEONUK.COM,177.05,EQUIPMENT,BUSINESS SERVICES-NOT ELSEWHERE CLASSIFIED
03/09/2018,CENTRAL COMMUNICATIONS,THE FINANCIAL TIMES,278.20,PUBLICITY,DIRECT MARKETING-CONTINUITY/SUBSCRIPTION MERCHANTS
03/09/2018,CENTRAL COMMUNICATIONS,HEMMING GROUP LTD,140.00,PUBLICITY,DIRECT MARKETING-CATALOG MERCHANTS
03/09/2018,KARIBU COMMUNITY HOME,WWW.INLINELONDON.CO.UK,94.80,"CLOTHING, UNIFORM AND LAUNDRY",WOMEN'S READY TO WEAR STORES
03/09/2018,KARIBU COMMUNITY HOME,WWW.SUPERCOVERMAKE,141.95,EDUC VISITS/HOLS/CAMPS/TOYS,BARBER AND BEAUTY SHOPS
03/09/2018,BURBANK COMMUNITY HOME,SAINSBURYS SACAT 2000,11.00,EDUC VISITS/HOLS/CAMPS/TOYS,"GROCERY STORES, SUPERMARKETS"
03/09/2018,BURBANK COMMUNITY HOME,SAINSBURYS SACAT 2000,5.00,MEDICAL EXPENSES,"GROCERY STORES, SUPERMARKETS"
03/09/2018,BURBANK COMMUNITY HOME,SAINSBURYS 2000,9.50,PURCHASE OF FOOD (RAW MATERIALS),"GROCERY STORES, SUPERMARKETS"
03/09/2018,BURBANK COMMUNITY HOME,JOLLY NICE,4.80,REFRESHMENT COSTS,"GROCERY STORES, SUPERMARKETS"
03/09/2018,HOPE SERVICE - WEST,ROBERT DYAS HOLDNG LTD,13.98,DAY TO DAY MAINTENANCE,HARDWARE STORES
03/09/2018,FAMILY GROUP CONFERENCES,AMAZON PRIME,7.99,BOOKS,DIRECT MARKETING-CONTINUITY/SUBSCRIPTION MERCHANTS
03/09/2018,CHEYNE WALK COMMUNITY HOME,BT PAY BY PHONE,389.00,LIBRARY RESOURCES,TELECOM INCL PREPAID/RECURRING PHONE SVCS
03/09/2018,ARUNDEL,ASDA SUPERSTORE,15.27,REFRESHMENT COSTS,"GROCERY STORES, SUPERMARKETS"
03/09/2018,MALLOW CRESCENT,TESCO STORE 2590,108.36,PURCHASE OF FOOD (RAW MATERIALS),"GROCERY STORES, SUPERMARKETS"
03/09/2018,TRAINING AND DEVELOPMENT,WWW.CFOASERVICES.CO.UK,90.00,SUBSISTENCE AND CONFERENCE EXPENSES,"ORGANIZATIONS, MEMBERSHIP-NOT ELSEWHERE CLASSIFIED"
03/09/2018,SHELL UK LICENSING,COLCHESTER BC ONLINE,531.00,FEES,GOVERNMENT SERVICES-NOT ELSEWHERE CLASSIFIED
03/09/2018,SHELL UK LICENSING,WWW.HARROGATE.GOV.UK,113.00,FEES,GOVERNMENT SERVICES-NOT ELSEWHERE CLASSIFIED
03/09/2018,COVEHAM,SAINSBURYS TO YOU 0687,135.13,REFRESHMENT COSTS,"GROCERY STORES, SUPERMARKETS"
03/09/2018,COVEHAM,ARGOS RETAIL GROUP,29.99,EQUIPMENT,DISCOUNT STORES
03/09/2018,COVEHAM,ARGOS RETAIL GROUP,29.99,EQUIPMENT,DISCOUNT STORES
03/09/2018,LOCAL ASSISTANCE SCHEME,WEBSTER FLOORS LTD,300.00,FURNITURE,FLOOR COVERING STORES
03/09/2018,CHEYNE WALK COMMUNITY HOME,CHOZEN NOODLE,6.45,REFRESHMENT COSTS,FAST FOOD RESTAURANTS
03/09/2018,CHEYNE WALK COMMUNITY HOME,AMZN MKTP UK,9.99,3RD PARTY PAYMENTS PRIVATE INDIV,BOOK STORES
03/09/2018,CHEYNE WALK COMMUNITY HOME,AMZN MKTP UK,16.23,3RD PARTY PAYMENTS PRIVATE INDIV,BOOK STORES
03/09/2018,MALLOW CRESCENT,SAINSBURYS TO YOU 0652,99.16,PURCHASE OF FOOD (RAW MATERIALS),"GROCERY STORES, SUPERMARKETS"
03/09/2018,CHEYNE WALK COMMUNITY HOME,WH SMITH TRAVEL,1.99,REFRESHMENT COSTS,NEWS DEALERS AND NEWSSTANDS
03/09/2018,CENTRAL COMMUNICATIONS,HOO HOOTSUITE INC,5.75,PUBLICITY,DIRECT MARKETING-CONTINUITY/SUBSCRIPTION MERCHANTS
03/09/2018,NW CARE - NON-LAC CP & COURT,GRO HM PASSPORT OFFICE,9.25,OTHER COMMUNITY CARE VOL,GOVERNMENT SERVICES-NOT ELSEWHERE CLASSIFIED
03/09/2018,TARGETED INTERVENTION,POST OFFICE COUNTER,67.00,EDUC VISITS/HOLS/CAMPS/TOYS,POSTAL SERVICES-GOVERNMENT ONLY
03/09/2018,FAIRCROFT COMMUNITY HOME,KUNGFU,93.54,REFRESHMENT COSTS,"EATING PLACES, RESTAURANTS"
03/09/2018,FAIRCROFT COMMUNITY HOME,NANDOS,10.95,REFRESHMENT COSTS,"EATING PLACES, RESTAURANTS"
03/09/2018,FAIRCROFT COMMUNITY HOME,BENTALL CENTRE,1.40,NON-STAFF RELATED TRANSPORT COSTS,AUTOMOBILE PARKING LOTS AND GARAGES
03/09/2018,ACL CENTRAL EXPENDITURE,TESCO DELIVERY SAVER2,6.99,REFRESHMENT COSTS,DIRECT MARKETING-CONTINUITY/SUBSCRIPTION MERCHANTS
03/09/2018,HOLLAND CLOSE RESIDENTIAL HOME,TESCO-STORES 6647,151.12,PURCHASE OF FOOD (RAW MATERIALS),"GROCERY STORES, SUPERMARKETS"
03/09/2018,HOPE SERVICE - WEST,SAINSBURYS SACAT(4409),5.80,PURCHASE OF FOOD (RAW MATERIALS),"GROCERY STORES, SUPERMARKETS"
03/09/2018,HOPE SERVICE - WEST,FINDEL ED LTD,236.02,CURRICULUM CONSUMABLES,DIRECT MARKETING-OTHER DIRECT MARKETERS/NOT ELSEW.
03/09/2018,FAMILIES SPELTHORNE,WAITROSE 652,5.44,PURCHASE OF FOOD (RAW MATERIALS),"GROCERY STORES, SUPERMARKETS"
03/09/2018,EXTENDED HOPE,AIRHOP LTD,26.00,EDUC VISITS/HOLS/CAMPS/TOYS,RECREATION SERVICES (NOT ELSEWHERE CLASSIFIED)
03/09/2018,BURBANK COMMUNITY HOME,SCHOOL UNIFORM DIRECT,61.16,"CLOTHING, UNIFORM AND LAUNDRY",MEN'S/WOMEN'S/CHILDREN'S UNIFORMS/COMMERCIAL CLOTH
03/09/2018,BURBANK COMMUNITY HOME,HOBBYCRAFT,16.85,EQUIPMENT,"ARTIST SUPPLY STORES, CRAFT SHOPS"
03/09/2018,BURBANK COMMUNITY HOME,3C_ WOKING BOROUGH COU,2.80,EDUC VISITS/HOLS/CAMPS/TOYS,AUTOMOBILE PARKING LOTS AND GARAGES
03/09/2018,BURBANK COMMUNITY HOME,CLAIRE'S ACCESSORIES,18.00,EDUC VISITS/HOLS/CAMPS/TOYS,ACCESSORY AND APPAREL STORES-MISCELLANEOUS
03/09/2018,BURBANK COMMUNITY HOME,W M MORRISONS,19.49,PURCHASE OF FOOD (RAW MATERIALS),"GROCERY STORES, SUPERMARKETS"
03/09/2018,IMT CRITICAL ENVIRONMENTS,MILK&MORE,7.80,REFRESHMENT COSTS,DAIRY PRODUCTS STORES
03/09/2018,LIBERTAS COMMUNITY HOME,SPS TRADING LTD,109.40,"CLOTHING, UNIFORM AND LAUNDRY",SPORTING GOODS STORES
03/09/2018,LIBERTAS COMMUNITY HOME,SAINSBURYS SACAT 0652,16.80,EDUC VISITS/HOLS/CAMPS/TOYS,"GROCERY STORES, SUPERMARKETS"
03/09/2018,KARIBU COMMUNITY HOME,AMZN MKTP UK,69.99,EDUC VISITS/HOLS/CAMPS/TOYS,BOOK STORES
04/09/2018,LIBERTAS COMMUNITY HOME,PRIMARK STORES 655,15.00,"CLOTHING, UNIFORM AND LAUNDRY",FAMILY CLOTHING STORES
04/09/2018,KARIBU COMMUNITY HOME,PREMIER INN 44537020,54.00,EDUC VISITS/HOLS/CAMPS/TOYS,PREMIER INN
04/09/2018,ROW VOLUNTEERS WEST                     ,PANTILES SERVICE STATI,10.03,PETROL/DIESEL ALL OFF BUSINESS,SERVICE STATIONS WITH OR WITHOUT ANCILLARY SERVICE
04/09/2018,LIBERTAS COMMUNITY HOME,SPORTSDIRECT 234,39.00,"CLOTHING, UNIFORM AND LAUNDRY",SPORTING GOODS STORES
04/09/2018,LIBERTAS COMMUNITY HOME,RIVER ISLAND 129,46.05,"CLOTHING, UNIFORM AND LAUNDRY",MEN'S AND WOMEN'S CLOTHING STORES
04/09/2018,BURBANK COMMUNITY HOME,SAINSBURYS SACAT 0686,5.00,EDUC VISITS/HOLS/CAMPS/TOYS,"GROCERY STORES, SUPERMARKETS"
04/09/2018,EQUIPMENT SCC BUDGET,METCALFE CATERING,68.70,EQUIPMENT,"EQUIP, FURNITURE, HOME FURNSHNGS STRS (EXCPT APPL)"
04/09/2018,HOPE SERVICE - WEST,WWW.BAAT.ORG,140.00,SUBSISTENCE AND CONFERENCE EXPENSES,SCHOOLS & EDUCATIONAL SVC-NOT ELSEWHERE CLASSIFIED
04/09/2018,FAMILY GROUP CONFERENCES,EASYJETEV EVQ2DG5,177.80,MISCELLANEOUS STAFF TRAVEL,EASYJET
04/09/2018,FAMILY GROUP CONFERENCES,TRAVELODGE GB0000,476.00,MISCELLANEOUS STAFF TRAVEL,TRAVELODGE
04/09/2018,PE/CDT MAINTENANCE OVERHEADS,WICKES,9.00,EQUIPMENT,"BUILDING MATERIALS, LUMBER STORES"
04/09/2018,CS BUSINESS SUPPORT EAST,AMZN MKTP UK,7.24,STATIONERY,BOOK STORES
04/09/2018,COUNTY HALL,AMZN MKTP UK,122.00,EQUIPMENT,BOOK STORES
04/09/2018,YSS YOUTH CENTRE IMPROVEMENTS,CO-OP GROUP FOOD,10.59,EQUIPMENT,"GROCERY STORES, SUPERMARKETS"
04/09/2018,CHEYNE WALK COMMUNITY HOME,CO-OP GROUP PETROL,23.72,PURCHASE OF FOOD (RAW MATERIALS),SERVICE STATIONS WITH OR WITHOUT ANCILLARY SERVICE
04/09/2018,B & C PRIMARY AUTHORITY PARTNERSHIP     ,THE CROWN HOTEL,55.00,SUBSISTENCE AND CONFERENCE EXPENSES,"LODGING-HOTELS,MOTELS,RESORTS-NOT CLASSIFIED"
04/09/2018,SE TEACHERS,WWW.ELKLAN.CO.UK,55.00,SUBSCRIPTIONS,SCHOOLS & EDUCATIONAL SVC-NOT ELSEWHERE CLASSIFIED
04/09/2018,RBDM - GENERAL,SP   CHARFLEET BOOKS,140.20,STATIONERY,COMPUTER SOFTWARE STORES
04/09/2018,SURREY ARTS PROJECT,PANALUX LTD,-304.75,EQUIPMENT,PROFESSIONAL SERVICES-NOT ELSEWHERE CLASSIFIED
04/09/2018,ACL CENTRAL EXPENDITURE,REDGWELL SEWING MA,200.00,DAY TO DAY MAINTENANCE,"FABRIC, NEEDLEWORK, PIECE GOODS, AND SEWING STORES"
04/09/2018,KARIBU COMMUNITY HOME,WWW.REDSPOTTEDHANK,221.00,TRANSPORT SOCIAL CARE-TAXI,PASSENGER RAILWAYS
04/09/2018,COVEHAM,ARGOS COBHAM (INSIDE S,-29.99,EQUIPMENT,DISCOUNT STORES
04/09/2018,NEYWORK RESILENCE TEAM,PROTEUS EQUIPMENT LTD,34.20,EQUIPMENT,"PUBLIC WAREHOUSING-FARM, REFRIG GOODS, HHG STORAGE"
04/09/2018,SHELL UK LICENSING,BROMSGROVE DISTRIC,165.00,FEES,GOVERNMENT SERVICES-NOT ELSEWHERE CLASSIFIED
04/09/2018,NW CARE - LAC,EASYJETEV EVPZGLW,66.66,NON-STAFF RELATED TRANSPORT COSTS,EASYJET
04/09/2018,NW CARE - CP & COURT LAC,SURREY CC CARD PAY,11.00,OTHER COMMUNITY CARE VOL,COMPUTER NETWORK/INFORMATION SERVICES
04/09/2018,ASSET PLANNING GROUP,AUTOGLASS,378.59,VEHICLE RUNNING COSTS,"AUTOMOTIVE PARTS, ACCESSORIES STORES"
04/09/2018,ACL CENTRAL EXPENDITURE,REDGWELL SEWING MA,500.00,DAY TO DAY MAINTENANCE,"FABRIC, NEEDLEWORK, PIECE GOODS, AND SEWING STORES"
04/09/2018,HOLLAND CLOSE RESIDENTIAL HOME,TESCO STORE 3066,35.89,EQUIPMENT,"GROCERY STORES, SUPERMARKETS"
04/09/2018,ROW VOLUNTEERS WEST                     ,METHOLD VEHICLE HIRE,54.00,HIRE OF VEHICLES,AUTOMOBILE RENTAL AGENCY-NOT ELSEWHERE CLASSIFIED
04/09/2018,KARIBU COMMUNITY HOME,SAINSBURYS SACAT 0683,85.86,PURCHASE OF FOOD (RAW MATERIALS),"GROCERY STORES, SUPERMARKETS"
04/09/2018,LEGAL EXPENSES CHILD ADULT EDUC TEAM,HMCTS-SURREY125,226.00,LEGAL EXPENSES,FINES
04/09/2018,RUTH HOUSE,SURREY CC CARD PAY,16.00,TRAINING EXPENSES EXTERNAL GENERAL,COMPUTER NETWORK/INFORMATION SERVICES
04/09/2018,WOODLANDS COMMUNITY HOME,SAINSBURYS SACAT 0686,3.20,PURCHASE OF FOOD (RAW MATERIALS),"GROCERY STORES, SUPERMARKETS"
04/09/2018,WOODLANDS COMMUNITY HOME,MCDONALDS,10.95,PURCHASE OF FOOD (RAW MATERIALS),"EATING PLACES, RESTAURANTS"
04/09/2018,NW CARE - CP & COURT LAC,SPORTS OF ADDLESTONE,50.65,OTHER COMMUNITY CARE VOL,MISCELLANEOUS AND SPECIALTY RETAIL STORES
04/09/2018,IMT CRITICAL ENVIRONMENTS,MILK&MORE,-4.68,REFRESHMENT COSTS,DAIRY PRODUCTS STORES
04/09/2018,RUTH HOUSE,SAINSBURY'S FOOD DELIVERY FOR YOUNG PEOPLE,17.20,PURCHASE OF FOOD (RAW MATERIALS),"GROCERY STORES, SUPERMARKETS"
04/09/2018,RUTH HOUSE,SAINSBURY'S FOOD DELIVERY FOR YOUNG PEOPLE ,102.80,PURCHASE OF FOOD (RAW MATERIALS),"GROCERY STORES, SUPERMARKETS"
04/09/2018,RUTH HOUSE,SURREY CC CARD PAY,16.00,TRAINING EXPENSES EXTERNAL GENERAL,COMPUTER NETWORK/INFORMATION SERVICES
04/09/2018,NWEST FOSTERING TEAM,AMZN MKTP UK,15.76,EQUIPMENT,BOOK STORES
04/09/2018,FIRE SERVICES IT,AMZN MKTP UK,35.99,COMPUTER HARDWARE,BOOK STORES
04/09/2018,TRANSPORT,TOOLSTATION LTD,2.33,DAY TO DAY MAINTENANCE,HARDWARE STORES
04/09/2018,FAIRCROFT COMMUNITY HOME,TESCO STORE 2812,146.60,PURCHASE OF FOOD (RAW MATERIALS),"GROCERY STORES, SUPERMARKETS"
04/09/2018,FAIRMOUNT HOUSE LEATHERHEAD,COMMERCIALW,186.72,EQUIPMENT,GENERAL CONTRACTORS/RESIDENTIAL BUILDINGS
04/09/2018,CHMHS RAP TEAM,AMAZON PRIME,-7.99,PUBLICITY,DIRECT MARKETING-CONTINUITY/SUBSCRIPTION MERCHANTS
04/09/2018,WOODLANDS COMMUNITY HOME,AMZN MKTP UK,35.95,EQUIPMENT,BOOK STORES
04/09/2018,WOODLANDS COMMUNITY HOME,AMAZON.CO.UK,26.99,EQUIPMENT,DIRECT MARKETING-OTHER DIRECT MARKETERS/NOT ELSEW.
04/09/2018,HILLSIDE,SAINSBURYS 0675,50.19,PURCHASE OF FOOD (RAW MATERIALS),"GROCERY STORES, SUPERMARKETS"
04/09/2018,SOLD ESTATES MANAGEMENT,TEX HAM CROSS SSTN,125.19,VEHICLE RUNNING COSTS,SERVICE STATIONS WITH OR WITHOUT ANCILLARY SERVICE
04/09/2018,FAIRCROFT COMMUNITY HOME,ARGOS COBHAM (INSIDE S,17.99,EQUIPMENT,DISCOUNT STORES
04/09/2018,BURBANK COMMUNITY HOME,CO-OP GROUP FOOD,1.35,PURCHASE OF FOOD (RAW MATERIALS),"GROCERY STORES, SUPERMARKETS"
04/09/2018,BURBANK COMMUNITY HOME,CO-OP GROUP FOOD,9.68,PURCHASE OF FOOD (RAW MATERIALS),"GROCERY STORES, SUPERMARKETS"
04/09/2018,SOLD CATERING,W M MORRISONS,17.00,EQUIPMENT,"GROCERY STORES, SUPERMARKETS"
04/09/2018,BURBANK COMMUNITY HOME,SAINSBURYS TO YOU 0686,106.90,PURCHASE OF FOOD (RAW MATERIALS),"GROCERY STORES, SUPERMARKETS"
04/09/2018,FIRE SERVICES IT,AMZN MKTP UK AMAZON.CO,25.65,COMPUTER HARDWARE,BOOK STORES
04/09/2018,BURBANK COMMUNITY HOME,LONDIS,1.59,PURCHASE OF FOOD (RAW MATERIALS),"CANDY, NUT, CONFECTIONERY STORES"
04/09/2018,SOLD MANAGEMENT AND OVERHEADS,WWW.OUTDOOR-LEARNING.O,290.00,TRAINING EXPENSES EXTERNAL GENERAL,"ORGANIZATIONS, CHARITABLE AND SOCIAL SERVICES"
05/09/2018,TRANSPORT,GREENHAM TRADING LTD,22.03,EQUIPMENT,INDUSTRIAL SUPPLIES NOT ELSEWHERE CLASSIFIED
05/09/2018,FAMILIES REIGATE AND BANSTREAD,AMZN MKTP UK AMAZON.CO,7.99,CURRICULUM CONSUMABLES,BOOK STORES
05/09/2018,APPLEWOOD,HALFORDS ON LINE,23.99,EDUC VISITS/HOLS/CAMPS/TOYS,BICYCLE SHOPS-SALES AND SERVICE
05/09/2018,ARUNDEL,TESCO STORES 5999,123.11,REFRESHMENT COSTS,"GROCERY STORES, SUPERMARKETS"
05/09/2018,TRANSPORT,PAYPAL  INTERIORGOO,254.10,DAY TO DAY MAINTENANCE,"EQUIP, FURNITURE, HOME FURNSHNGS STRS (EXCPT APPL)"
05/09/2018,FAIRCROFT COMMUNITY HOME,AMAZON PRIME,7.99,SUBSCRIPTIONS,DIRECT MARKETING-CONTINUITY/SUBSCRIPTION MERCHANTS
05/09/2018,FAIRMOUNT HOUSE LEATHERHEAD,SCREWFIX DIR.LTD,29.98,EQUIPMENT,"BUILDING MATERIALS, LUMBER STORES"
05/09/2018,CHMHS RAP TEAM,POST OFFICE COUNTER,360.00,POSTAGE AND COURIER CHARGES,POSTAL SERVICES-GOVERNMENT ONLY
05/09/2018,CHMHS RAP TEAM,WH SMITH,323.60,STATIONERY,NEWS DEALERS AND NEWSSTANDS
05/09/2018,CHMHS RAP TEAM,POUNDLAND LTD 1518,32.00,PUBLICITY,DISCOUNT STORES
05/09/2018,HOPE SERVICE - WEST,STARBUCKS,10.60,REFRESHMENT COSTS,"EATING PLACES, RESTAURANTS"
05/09/2018,PROPERTY OPERATIONS TEAM,CHALLENGE FENCING COB,12.48,PURCHASE OF BUILDING MATERIALS,"BUILDING MATERIALS, LUMBER STORES"
05/09/2018,PROPERTY OPERATIONS TEAM,SCREWFIX WOKING,66.72,PURCHASE OF BUILDING MATERIALS,"BUILDING MATERIALS, LUMBER STORES"
05/09/2018,WOODLANDS COMMUNITY HOME,AMZN MKTP UK AMAZON.CO,34.64,FURNITURE,BOOK STORES
05/09/2018,CHEYNE WALK COMMUNITY HOME,TESCO STORE 2560,143.00,EQUIPMENT,"GROCERY STORES, SUPERMARKETS"
05/09/2018,WOODLANDS COMMUNITY HOME,AMZN MKTP UK,14.99,EQUIPMENT,BOOK STORES
05/09/2018,WOODLANDS COMMUNITY HOME,AMZN MKTP UK,43.99,FURNITURE,BOOK STORES
05/09/2018,WOODLANDS COMMUNITY HOME,AMAZON.CO.UK,15.12,EQUIPMENT,DIRECT MARKETING-OTHER DIRECT MARKETERS/NOT ELSEW.
05/09/2018,BURBANK COMMUNITY HOME,SAINSBURYS TO YOU 0686,304.22,PURCHASE OF FOOD (RAW MATERIALS),"GROCERY STORES, SUPERMARKETS"
05/09/2018,HILLSIDE,GROCERIES ,3.05,PURCHASE OF FOOD (RAW MATERIALS),"GROCERY STORES, SUPERMARKETS"
05/09/2018,HILLSIDE,GROCERIES ,27.35,PURCHASE OF FOOD (RAW MATERIALS),"GROCERY STORES, SUPERMARKETS"
05/09/2018,HILLSIDE,SAINSBURYS 0675,24.00,PURCHASE OF FOOD (RAW MATERIALS),"GROCERY STORES, SUPERMARKETS"
05/09/2018,LIBERTAS COMMUNITY HOME,NEXT RETAIL LTD,22.00,"CLOTHING, UNIFORM AND LAUNDRY",FAMILY CLOTHING STORES
05/09/2018,LIBERTAS COMMUNITY HOME,NEW LOOK 1720,13.98,"CLOTHING, UNIFORM AND LAUNDRY",WOMEN'S READY TO WEAR STORES
05/09/2018,KARIBU COMMUNITY HOME,SAINSBURYS SACAT 0683,57.00,"CLOTHING, UNIFORM AND LAUNDRY","GROCERY STORES, SUPERMARKETS"
05/09/2018,TARGETED INTERVENTION,MAX TESCO 3321,.40,EDUC VISITS/HOLS/CAMPS/TOYS,PHOTOGRAPHIC STUDIOS
05/09/2018,TARGETED INTERVENTION,MAX TESCO 3321,.60,EDUC VISITS/HOLS/CAMPS/TOYS,PHOTOGRAPHIC STUDIOS
05/09/2018,LEAVING CARE PACKAGES,UK TATTOO ACADEMY LTD,200.00,CURRICULUM CONSUMABLES,SCHOOLS & EDUCATIONAL SVC-NOT ELSEWHERE CLASSIFIED
05/09/2018,IMT CRITICAL ENVIRONMENTS,AMAZON.CO.UK,8.17,EQUIPMENT,DIRECT MARKETING-OTHER DIRECT MARKETERS/NOT ELSEW.
05/09/2018,RUTH HOUSE,G J HONOUR,243.05,PURCHASE OF FOOD (RAW MATERIALS),"MISC FOOD STORE-CONVENIENCE,MRKT,SPLTY,VENDNG MACS"
05/09/2018,HOPE SERVICE - WEST,SAINSBURYS TO YOU 0686,87.10,PURCHASE OF FOOD (RAW MATERIALS),"GROCERY STORES, SUPERMARKETS"
05/09/2018,QUADRANT COURT WOKING,B & Q 1029,6.00,EQUIPMENT,"BUILDING MATERIALS, LUMBER STORES"
05/09/2018,QUADRANT COURT WOKING,WICKES,26.99,EQUIPMENT,"BUILDING MATERIALS, LUMBER STORES"
05/09/2018,QUADRANT COURT WOKING,MARKS&SPENCER PLC,-187.50,"CLOTHING, UNIFORM AND LAUNDRY","GROCERY STORES, SUPERMARKETS"
05/09/2018,LIBERTAS COMMUNITY HOME,RIVER ISLAND 129,48.05,"CLOTHING, UNIFORM AND LAUNDRY",MEN'S AND WOMEN'S CLOTHING STORES
05/09/2018,ACL CENTRAL EXPENDITURE,EXPRESS48- BROCHURES TO THE LIBRARIES (85.55%),13.14,PUBLICITY,POSTAL SERVICES-GOVERNMENT ONLY
05/09/2018,ACL CENTRAL EXPENDITURE,2ND CLASS - BROCHURES TO THE CHILDREN CENTRE (14.45%),2.22,PUBLICITY,POSTAL SERVICES-GOVERNMENT ONLY
05/09/2018,BURBANK COMMUNITY HOME,TICKETOFFICESALE,58.40,MISCELLANEOUS STAFF TRAVEL,PASSENGER RAILWAYS
05/09/2018,SOLD ESTATES MANAGEMENT,HANDY STRAPS,115.30,EQUIPMENT,"CAMPER DEALERS, RECREATIONAL AND UTILITY TRAILERS"
05/09/2018,SOLD ESTATES MANAGEMENT,AMZN MKTP UK,11.98,DAY TO DAY MAINTENANCE,BOOK STORES
05/09/2018,SOLD ESTATES MANAGEMENT,SCREWFIX KINGSTON UPON,13.58,DAY TO DAY MAINTENANCE,"BUILDING MATERIALS, LUMBER STORES"
05/09/2018,HOPE SERVICE - WEST,CRANLEIGH AERIALS,87.50,DAY TO DAY MAINTENANCE,ELECTRONIC SALES
05/09/2018,CHILDREN WITH DISABILITIES TEAM WEST,AMZN MKTP UK AMAZON.CO,-24.99,EQUIPMENT,BOOK STORES
05/09/2018,PE/CDT MAINTENANCE OVERHEADS,AMER SPORTS UK LTD,194.21,ITEMS PURCHASED FOR RE-SALE,SPORTING GOODS STORES
05/09/2018,PROPERTY OPERATIONS TEAM,TOOLSTATION LTD,9.30,PURCHASE OF BUILDING MATERIALS,HARDWARE STORES
05/09/2018,PROPERTY OPERATIONS TEAM,SCREWFIX HANWORTH,51.97,PURCHASE OF BUILDING MATERIALS,"BUILDING MATERIALS, LUMBER STORES"
05/09/2018,TRAINING AND DEVELOPMENT,FUTURE INNS CARDIFF,"1,330.00",TRAINING EXPENSES EXTERNAL GENERAL,"LODGING-HOTELS,MOTELS,RESORTS-NOT CLASSIFIED"
05/09/2018,HAVEN GUILDFORD,THE RANGE,19.96,CURRICULUM CONSUMABLES,DEPARTMENT STORES
05/09/2018,FAMILIES REIGATE AND BANSTREAD,AMZN MKTP UK AMAZON.CO,5.99,CURRICULUM CONSUMABLES,BOOK STORES
05/09/2018,CHEYNE WALK COMMUNITY HOME,TESCO-STORES 6647,257.71,PURCHASE OF FOOD (RAW MATERIALS),"GROCERY STORES, SUPERMARKETS"
05/09/2018,TS SERVICE MANAGEMENT,HILLSCOURT,105.00,SUBSISTENCE AND CONFERENCE EXPENSES,"LODGING-HOTELS,MOTELS,RESORTS-NOT CLASSIFIED"
05/09/2018,SHELL UK LICENSING,NORTH NORFOLK  DISTRIC,113.00,FEES,GOVERNMENT SERVICES-NOT ELSEWHERE CLASSIFIED
05/09/2018,SHELL UK LICENSING,WWW.TEIGNBRIDGE.GOV.UK,113.00,FEES,GOVERNMENT SERVICES-NOT ELSEWHERE CLASSIFIED
05/09/2018,ACCESS 2 EDUCATION SE NON-MEDICAL,WWW.AQA.ORG.UK,208.15,TRAINING EXPENSES EXTERNAL GENERAL,SCHOOLS & EDUCATIONAL SVC-NOT ELSEWHERE CLASSIFIED
05/09/2018,ACL CENTRAL EXPENDITURE,UK EDUCATIONAL FURNITU,646.80,FURNITURE,"EQUIP, FURNITURE, HOME FURNSHNGS STRS (EXCPT APPL)"
05/09/2018,DEVELOPMENT TEAM,"CLOUD9 IDE, INC",46.70,COMPUTER SERVICES,"COMPUTERS, COMPUTER PERIPHERAL EQUIPMENT, SOFTWARE"
05/09/2018,ACL CENTRAL EXPENDITURE,UK EDUCATIONAL FURNITU,207.42,FURNITURE,"EQUIP, FURNITURE, HOME FURNSHNGS STRS (EXCPT APPL)"
05/09/2018,ACL CENTRAL EXPENDITURE,WWW.THEWORKS.CO.UK,180.00,EQUIPMENT,DISCOUNT STORES
05/09/2018,LOCAL ASSISTANCE SCHEME,WWW.ARGOS.CO.UK,311.95,FURNITURE,DISCOUNT STORES
05/09/2018,SOUTH WEST OUTREACH,ON LINE GROCERY SHOPPING,24.60,PURCHASE OF FOOD (RAW MATERIALS),"GROCERY STORES, SUPERMARKETS"
05/09/2018,SOUTH WEST OUTREACH,ON LINE GROCERY SHOPPING ,128.75,PURCHASE OF FOOD (RAW MATERIALS),"GROCERY STORES, SUPERMARKETS"
05/09/2018,CHEYNE WALK COMMUNITY HOME,BELL CARRIAGE LTD,20.00,HIRE OF VEHICLES,LIMOUSINES AND TAXICABS
05/09/2018,CHEYNE WALK COMMUNITY HOME,BELL CARRIAGE LTD,2.70,HIRE OF VEHICLES,LIMOUSINES AND TAXICABS
05/09/2018,NE CARE - CP & COURT LAC,GRO HM PASSPORT OFFICE,46.80,OTHER COMMUNITY CARE VOL,GOVERNMENT SERVICES-NOT ELSEWHERE CLASSIFIED
05/09/2018,SE CARE - CP & COURT LAC,SURREY CC CARD PAY,11.00,OTHER COMMUNITY CARE VOL,COMPUTER NETWORK/INFORMATION SERVICES
05/09/2018,HAVEN YTH CENTRE,CO-OP GROUP 310385,3.88,REFRESHMENT COSTS,"GROCERY STORES, SUPERMARKETS"
05/09/2018,SHELL UK LICENSING,EAST RIDING COUNCIL,113.00,FEES,GOVERNMENT SERVICES-NOT ELSEWHERE CLASSIFIED
05/09/2018,SHELL UK LICENSING,EAST RIDING COUNCIL,79.00,FEES,GOVERNMENT SERVICES-NOT ELSEWHERE CLASSIFIED
05/09/2018,SHELL UK LICENSING,WWW.GRAVESHAM.GOV.UK,113.00,FEES,GOVERNMENT SERVICES-NOT ELSEWHERE CLASSIFIED
05/09/2018,SHELL UK LICENSING,SLOUGH BOROUGH COUNCIL,226.00,FEES,GOVERNMENT SERVICES-NOT ELSEWHERE CLASSIFIED
05/09/2018,SW CARE - CP & COURT LAC,WWW.WIGHTLINK.CO.UK,87.00,NON-STAFF RELATED TRANSPORT COSTS,"TRANSPRTN-SUBRBN & LOCAL COMTR PSNGR, INCL FERRIES"
05/09/2018,SE CARE - NON-LAC CP & COURT,BRITANNIA,523.00,CHILDREN ACT SEC 17 PAYMENTS,"LODGING-HOTELS,MOTELS,RESORTS-NOT CLASSIFIED"
05/09/2018,ACL CENTRAL EXPENDITURE,TESCO STORES 2449,10.90,REFRESHMENT COSTS,"GROCERY STORES, SUPERMARKETS"
06/09/2018,ROW VOLUNTEERS WEST                     ,PANTILES SERVICE STATI,10.03,PETROL/DIESEL ALL OFF BUSINESS,SERVICE STATIONS WITH OR WITHOUT ANCILLARY SERVICE
06/09/2018,ROW VOLUNTEERS WEST                     ,METHOLD VEHICLE HIRE,54.00,HIRE OF VEHICLES,AUTOMOBILE RENTAL AGENCY-NOT ELSEWHERE CLASSIFIED
06/09/2018,COVEHAM,RS COMPONENTS,26.93,EQUIPMENT,ELECTRICAL PARTS AND EQUIPMENT
06/09/2018,ENSEMBLES & TOURS,J W PEPPER AND SON INC,83.41,CURRIC BOOKS,"MUSIC STORES-INSTRUMENTS, PIANOS, SHEET MUSIC"
06/09/2018,ENSEMBLES & TOURS,WWW.MUSICROOM.COM,62.80,CURRIC BOOKS,"MUSIC STORES-INSTRUMENTS, PIANOS, SHEET MUSIC"
06/09/2018,ACL CENTRAL EXPENDITURE,AMZN MKTP UK AMAZON.CO,29.95,EQUIPMENT,BOOK STORES
06/09/2018,SOLD DAY TO DAY OPERATIONS,POSTOFFICE SELFSERVICE,3.45,POSTAGE AND COURIER CHARGES,POSTAL SERVICES-GOVERNMENT ONLY
06/09/2018,CORONER SURREY POLICE,OH EQUIPMENT (16.24%),178.14,FURNITURE,OFFICE AND COMMERCIAL FURNITURE
06/09/2018,C&C DIRECTORATE SUPPORT,OH EQUIPMENT (83.76%),918.48,FURNITURE,OFFICE AND COMMERCIAL FURNITURE
06/09/2018,HOPE SERVICE - WEST,SAINSBURYS SACAT 0683,21.08,PURCHASE OF FOOD (RAW MATERIALS),"GROCERY STORES, SUPERMARKETS"
06/09/2018,KARIBU COMMUNITY HOME,THENAILCOMPANY.CO,2.74,EDUC VISITS/HOLS/CAMPS/TOYS,BARBER AND BEAUTY SHOPS
06/09/2018,KARIBU COMMUNITY HOME,THENAILCOMPANY.CO,-.10,EDUC VISITS/HOLS/CAMPS/TOYS,BARBER AND BEAUTY SHOPS
06/09/2018,RBDM - GENERAL,AMAZON.CO.UK,44.09,ITEMS PURCHASED FOR RE-SALE,DIRECT MARKETING-OTHER DIRECT MARKETERS/NOT ELSEW.
06/09/2018,BURBANK COMMUNITY HOME,PRIME BURGER ST PANCRA,4.80,PURCHASE OF FOOD (RAW MATERIALS),FAST FOOD RESTAURANTS
06/09/2018,SOLD ESTATES MANAGEMENT,AMZN MKTP UK,10.95,DAY TO DAY MAINTENANCE,BOOK STORES
06/09/2018,SOLD ESTATES MANAGEMENT,LOOS FOR DOS LTD,180.00,DAY TO DAY MAINTENANCE,"EQUIPMENT RENTAL&LEASING SVS, FURNTURE/TOOL RENTAL"
06/09/2018,CLOSED LANDFILL,IN-SITU EUROPE LTD,213.60,EQUIPMENT,HARDWARE EQUIPMENT AND SUPPLIES
06/09/2018,TRANSPORT,PERRYS AYLESBURY PEUGE,308.00,VEHICLE REPAIRS AND MAINTENANCE,"AUTO & TRUCK DLRS-SALES,SVC, REPRS,PRTS, & LEASING"
06/09/2018,ACL CENTRAL EXPENDITURE,MOSAICS,98.28,EQUIPMENT,"ARTIST SUPPLY STORES, CRAFT SHOPS"
06/09/2018,MALLOW CRESCENT,AMZN MKTP UK,28.38,EQUIPMENT,BOOK STORES
06/09/2018,LIBERTAS COMMUNITY HOME,WOKING GARDEN CENT,5.40,PURCHASE OF FOOD (RAW MATERIALS),LAWN AND GARDEN SUPPLY STORES
06/09/2018,HILLSIDE,SAINSBURYS 2174,6.00,PURCHASE OF FOOD (RAW MATERIALS),"GROCERY STORES, SUPERMARKETS"
06/09/2018,HILLSIDE,WILKO RETAIL LIMIT,4.50,EQUIPMENT,HOUSEHOLD APPLIANCE STORES
06/09/2018,HILLSIDE,ICELAND,19.96,PURCHASE OF FOOD (RAW MATERIALS),"GROCERY STORES, SUPERMARKETS"
06/09/2018,FAMILIES REIGATE AND BANSTREAD,EB  YOUTH WORK SUMMIT,45.00,SUBSISTENCE AND CONFERENCE EXPENSES,BUSINESS SERVICES-NOT ELSEWHERE CLASSIFIED
06/09/2018,FAIRCROFT COMMUNITY HOME,SAINSBURYS 0687,15.99,EQUIPMENT,"GROCERY STORES, SUPERMARKETS"
06/09/2018,FAIRCROFT COMMUNITY HOME,SAINSBURYS PFS0473,6.00,REFRESHMENT COSTS,SERVICE STATIONS WITH OR WITHOUT ANCILLARY SERVICE
06/09/2018,FAIRCROFT COMMUNITY HOME,HOBBYCRAFT,39.00,EQUIPMENT,"ARTIST SUPPLY STORES, CRAFT SHOPS"
06/09/2018,FAIRCROFT COMMUNITY HOME,HOME BARGAINS BYFLEET,11.96,EQUIPMENT,HARDWARE STORES
06/09/2018,ARUNDEL,ASDA GROCERIES ONLINE,122.58,CLEANING MATERIALS,"GROCERY STORES, SUPERMARKETS"
06/09/2018,WAVERLEY CMHRS CARE,TRAVELODGE GB0000,864.50,OTHER COMMUNITY CARE PRIV,TRAVELODGE
06/09/2018,EPSOM & EWELL CMHRS CARE,HMCTS-SURREY125,75.00,FEES,FINES
06/09/2018,S28A MENTAL HEALTH/OLDER PEOPLE,HMCTS-SURREY125,75.00,FEES,FINES
06/09/2018,FAMILIES REIGATE AND BANSTREAD,WWW.SUSSEXUNIFORMS.CO.,64.40,"CLOTHING, UNIFORM AND LAUNDRY",MEN'S/WOMEN'S/CHILDREN'S UNIFORMS/COMMERCIAL CLOTH
06/09/2018,COBHAM CHILDRENS CENTRE,WAITROSE 176,5.47,REFRESHMENT COSTS,"GROCERY STORES, SUPERMARKETS"
06/09/2018,ACL CENTRAL EXPENDITURE,AMAZON.CO.UK,25.29,EQUIPMENT,DIRECT MARKETING-OTHER DIRECT MARKETERS/NOT ELSEW.
06/09/2018,ACL CENTRAL EXPENDITURE,SAINSBURYS SACAT 0673,5.50,REFRESHMENT COSTS,"GROCERY STORES, SUPERMARKETS"
06/09/2018,CHEYNE WALK COMMUNITY HOME,AMZN MKTP UK,8.66,EQUIPMENT,BOOK STORES
06/09/2018,SE CARE - CP & COURT LAC,EXPEDIA 7378539987650,57.23,INDEPENDENT LIVING PLACEMENTS,TRAVEL AGENCIES AND TOUR OPERATORS
06/09/2018,SE CARE - CP & COURT LAC,WWW.ARGOS.CO.UK,219.99,OTHER COMMUNITY CARE VOL,DISCOUNT STORES
06/09/2018,CHEYNE WALK COMMUNITY HOME,TESCO STORES 2560,8.93,REFRESHMENT COSTS,"GROCERY STORES, SUPERMARKETS"
06/09/2018,NE FOSTERING CARE,WWW.BIGYELLOW.CO.UK,64.40,OTHER COMMUNITY CARE VOL,"PUBLIC WAREHOUSING-FARM, REFRIG GOODS, HHG STORAGE"
06/09/2018,HAVEN YTH CENTRE,THE WORKS,37.05,EQUIPMENT,DISCOUNT STORES
06/09/2018,LEAVING CARE PACKAGES,ARGOS RETAIL GROUP,21.00,EQUIPMENT,DISCOUNT STORES
06/09/2018,LEAVING CARE PACKAGES,WWW.ARGOS.CO.UK,152.92,EQUIPMENT,DISCOUNT STORES
06/09/2018,LEAVING CARE PACKAGES,WWW.ARGOS.CO.UK,25.00,EQUIPMENT,DISCOUNT STORES
06/09/2018,TARGETED INTERVENTION,RETAIL-INTERNET,61.50,EDUC VISITS/HOLS/CAMPS/TOYS,RECREATION SERVICES (NOT ELSEWHERE CLASSIFIED)
06/09/2018,TARGETED INTERVENTION,COSTA COFFEE,8.15,EDUC VISITS/HOLS/CAMPS/TOYS,FAST FOOD RESTAURANTS
06/09/2018,TARGETED INTERVENTION,TWO RIVERS CAR PK,1.20,EDUC VISITS/HOLS/CAMPS/TOYS,AUTOMOBILE PARKING LOTS AND GARAGES
06/09/2018,TARGETED INTERVENTION,TESCO STORE 3220,48.00,EDUC VISITS/HOLS/CAMPS/TOYS,"GROCERY STORES, SUPERMARKETS"
06/09/2018,TARGETED INTERVENTION,MCDONALDS,4.47,EDUC VISITS/HOLS/CAMPS/TOYS,FAST FOOD RESTAURANTS
06/09/2018,NE CARE - NON-LAC CP & COURT,TRAVELODGE GB0000,296.00,FEES,TRAVELODGE
06/09/2018,WOODLANDS COMMUNITY HOME,EASTERN & ORIENTAL (CH,42.90,REFRESHMENT COSTS,"EATING PLACES, RESTAURANTS"
06/09/2018,WOODLANDS COMMUNITY HOME,TESCO STORES 3149,27.75,EQUIPMENT,"GROCERY STORES, SUPERMARKETS"
06/09/2018,WOODLANDS COMMUNITY HOME,SCHOOLWEAR OM (54.72%),14.50,"CLOTHING, UNIFORM AND LAUNDRY","GROCERY STORES, SUPERMARKETS"
06/09/2018,WOODLANDS COMMUNITY HOME,HAIR COLOURANT OM (45.28%),12.00,EQUIPMENT,"GROCERY STORES, SUPERMARKETS"
06/09/2018,PSSS VISUALLY IMPAIRED,WOKING LOCAL 81682,60.00,EQUIPMENT,"GROCERY STORES, SUPERMARKETS"
06/09/2018,IMT CRITICAL ENVIRONMENTS,MILK&MORE,7.80,REFRESHMENT COSTS,DAIRY PRODUCTS STORES
06/09/2018,RUTH HOUSE,WWW.BOZFRUITVEG.CO.UK,500.00,PURCHASE OF FOOD (RAW MATERIALS),COMPUTER SOFTWARE STORES
06/09/2018,RUTH HOUSE,WWW.BOZFRUITVEG.CO.UK,582.30,PURCHASE OF FOOD (RAW MATERIALS),COMPUTER SOFTWARE STORES
06/09/2018,RUTH HOUSE,WWW.BOZFRUITVEG.CO.UK,943.00,PURCHASE OF FOOD (RAW MATERIALS),COMPUTER SOFTWARE STORES
06/09/2018,RUTH HOUSE,WWW.BOZFRUITVEG.CO.UK,815.05,PURCHASE OF FOOD (RAW MATERIALS),COMPUTER SOFTWARE STORES
06/09/2018,MALLOW CRESCENT,ARGOS RETAIL GROUP,71.98,EQUIPMENT,DISCOUNT STORES
06/09/2018,ARUNDEL,TESCO STORES 5999,74.78,REFRESHMENT COSTS,"GROCERY STORES, SUPERMARKETS"
06/09/2018,FAIRMOUNT HOUSE LEATHERHEAD,AMAZON.CO.UK,21.99,EQUIPMENT,DIRECT MARKETING-OTHER DIRECT MARKETERS/NOT ELSEW.
06/09/2018,CHMHS RAP TEAM,PAPA JOHNS GUILDFORD,38.97,EDUC VISITS/HOLS/CAMPS/TOYS,FAST FOOD RESTAURANTS
06/09/2018,CHMHS RAP TEAM,LOVE2SHOP.CO.UK,"3,062.95",EDUC VISITS/HOLS/CAMPS/TOYS,"ASSOCIATIONS-CIVIC, SOCIAL, AND FRATERNAL"
06/09/2018,PROPERTY OPERATIONS TEAM,B & Q 1029,41.24,PURCHASE OF BUILDING MATERIALS,"BUILDING MATERIALS, LUMBER STORES"
06/09/2018,PROPERTY OPERATIONS TEAM,GUILDFORD LOCK & SAFE,219.20,PURCHASE OF BUILDING MATERIALS,HARDWARE EQUIPMENT AND SUPPLIES
06/09/2018,PERMANENTLY SURPLUS LAND,GUILDFORD LOCK & SAFE,40.78,EQUIPMENT,HARDWARE EQUIPMENT AND SUPPLIES
06/09/2018,RUTH HOUSE,WWW.BOZFRUITVEG.CO.UK,500.00,PURCHASE OF FOOD (RAW MATERIALS),COMPUTER SOFTWARE STORES
06/09/2018,RUTH HOUSE,WWW.BOZFRUITVEG.CO.UK,704.10,PURCHASE OF FOOD (RAW MATERIALS),COMPUTER SOFTWARE STORES
06/09/2018,RUTH HOUSE,KINGSNORTH- CHOBHAM SU,60.60,EDUC VISITS/HOLS/CAMPS/TOYS,VETERINARY SERVICES
06/09/2018,TARGETED INTERVENTION,NATIONAL TRUST,7.45,EDUC VISITS/HOLS/CAMPS/TOYS,"ORGANIZATIONS, CHARITABLE AND SOCIAL SERVICES"
06/09/2018,TARGETED INTERVENTION,TWO RIVERS CAR PK,1.20,EDUC VISITS/HOLS/CAMPS/TOYS,AUTOMOBILE PARKING LOTS AND GARAGES
06/09/2018,TARGETED INTERVENTION,STARBUCKS,9.60,EDUC VISITS/HOLS/CAMPS/TOYS,"EATING PLACES, RESTAURANTS"
06/09/2018,CS BUSINESS SUPPORT WEST,MILK&MORE,14.10,REFRESHMENT COSTS,DAIRY PRODUCTS STORES
06/09/2018,FIRE SERVICES IT,AMZN MKTP UK,32.99,COMPUTER HARDWARE,BOOK STORES
06/09/2018,FAMILIES MOLE VALLEY,TRAVELODGE GB0000,67.25,INDEPENDENT LIVING PLACEMENTS,TRAVELODGE
06/09/2018,QUADRANT COURT WOKING,FAST KEY SERVICES LIMI,13.23,EQUIPMENT,BUSINESS SERVICES-NOT ELSEWHERE CLASSIFIED
06/09/2018,FAMILIES ELMBRIDGE,EB  YOUTH WORK SUMMIT,45.00,STAFF TRAINING,BUSINESS SERVICES-NOT ELSEWHERE CLASSIFIED
06/09/2018,TRANSPORT,ATSEUROMASTER.CO.U,48.48,VEHICLE REPAIRS AND MAINTENANCE,AUTOMOTIVE SERVICE SHOPS
06/09/2018,COUNTRYSIDE PROJECT DEVELOPMENT,EUROSTAR INTERNET,80.00,MISCELLANEOUS STAFF TRAVEL,PASSENGER RAILWAYS
06/09/2018,FAMILIES ELMBRIDGE,MCDONALDS,8.65,REFRESHMENT COSTS,FAST FOOD RESTAURANTS
06/09/2018,DOWNLANDS COUNTRYSIDE PROJECT,WH SMITH,16.98,STATIONERY,NEWS DEALERS AND NEWSSTANDS
06/09/2018,WELLS HOUSE,GUILDFORD LOCK & SAFE,158.40,EQUIPMENT,HARDWARE EQUIPMENT AND SUPPLIES
06/09/2018,STUDENT FARECARD,SURREY CC CARD PAY,25.00,NON-STAFF RELATED TRANSPORT COSTS,COMPUTER NETWORK/INFORMATION SERVICES
06/09/2018,STUDENT FARECARD,SURREY CC CARD PAY,-25.00,NON-STAFF RELATED TRANSPORT COSTS,COMPUTER NETWORK/INFORMATION SERVICES
06/09/2018,SOLD DAY TO DAY OPERATIONS,MARINE WAREHOUSE,29.00,EQUIPMENT,MEN'S AND WOMEN'S CLOTHING STORES
07/09/2018,TARGETED INTERVENTION,TOP GOLF LTD,14.70,EDUC VISITS/HOLS/CAMPS/TOYS,"CLUBS-CNTRY,MBRSHIP(ATHLET,REC,SPRTS,PRIVATE GOLF"
07/09/2018,COVEHAM,NEDERLANDER THEATRES,385.00,EDUC VISITS/HOLS/CAMPS/TOYS,"THEATRICAL PRODUCERS(EXCL MOTION PIX),TICKET AGNCY"
07/09/2018,SE CARE - CP & COURT LAC,TRAVELODGE GB0000,922.00,INDEPENDENT LIVING PLACEMENTS,TRAVELODGE
07/09/2018,ACL CENTRAL EXPENDITURE,TESCO STORE 2160,88.84,REFRESHMENT COSTS,"GROCERY STORES, SUPERMARKETS"
07/09/2018,ACL CENTRAL EXPENDITURE,TESCO STORE 2160,-2.50,REFRESHMENT COSTS,"GROCERY STORES, SUPERMARKETS"
07/09/2018,HOLLAND CLOSE RESIDENTIAL HOME,TESCO-STORES 6647,93.39,PURCHASE OF FOOD (RAW MATERIALS),"GROCERY STORES, SUPERMARKETS"
07/09/2018,ACL CENTRAL EXPENDITURE,TESCO STORES 3399,17.87,REFRESHMENT COSTS,"GROCERY STORES, SUPERMARKETS"
07/09/2018,TRANSPORT,PAYPAL  AO RETAIL,289.00,EQUIPMENT,ELECTRONIC SALES
07/09/2018,TRANSPORT,MR SNOB LIMITED,71.00,DAY TO DAY MAINTENANCE,"HAT CLEANING SHOPS, SHOE REPAIR SHOPS, SHOE SHINE"
07/09/2018,CHMHS RAP TEAM,POST OFFICE COUNTER,534.24,POSTAGE AND COURIER CHARGES,POSTAL SERVICES-GOVERNMENT ONLY
07/09/2018,CHEYNE WALK COMMUNITY HOME,WAITROSE 233,11.10,PURCHASE OF FOOD (RAW MATERIALS),"GROCERY STORES, SUPERMARKETS"
07/09/2018,APPLEWOOD,ASDA GROCERIES ONLINE,229.29,PURCHASE OF FOOD (RAW MATERIALS),"GROCERY STORES, SUPERMARKETS"
07/09/2018,APPLEWOOD,ASDA GROCERIES ONLINE,-1.15,PURCHASE OF FOOD (RAW MATERIALS),"GROCERY STORES, SUPERMARKETS"
07/09/2018,TILLINGBOURNE,FASTHOSTS INTERNET,35.96,COMPUTER SERVICES,COMPUTER NETWORK/INFORMATION SERVICES
07/09/2018,ACCOMMODATION CLEANING AND REFURBISHMENT,ASDA STORES,16.00,CLEANING AND DOMESTIC SUPPLIES,"GROCERY STORES, SUPERMARKETS"
07/09/2018,SOLD ESTATES MANAGEMENT,WICKES 266,6.00,EQUIPMENT,HOME SUPPLY WAREHOUSE STORES
07/09/2018,WOODLANDS COMMUNITY HOME,PROVISIONS (82.52%),92.53,PURCHASE OF FOOD (RAW MATERIALS),"GROCERY STORES, SUPERMARKETS"
07/09/2018,WOODLANDS COMMUNITY HOME,PROVISIONS (10.35%),11.60,PURCHASE OF FOOD (RAW MATERIALS),"GROCERY STORES, SUPERMARKETS"
07/09/2018,WOODLANDS COMMUNITY HOME,KITCHEN MUGS (7.13%),8.00,EQUIPMENT,"GROCERY STORES, SUPERMARKETS"
07/09/2018,SOLD DAY TO DAY OPERATIONS,TESCO-STORES 2590,9.00,EQUIPMENT,"GROCERY STORES, SUPERMARKETS"
07/09/2018,SW CARE - LAC,WWW.ROBINSONSBREWE,86.00,MISCELLANEOUS STAFF TRAVEL,"LODGING-HOTELS,MOTELS,RESORTS-NOT CLASSIFIED"
07/09/2018,ARUNDEL,BUTLINS HOLIDAYS,"1,000.00",EDUC VISITS/HOLS/CAMPS/TOYS,"LODGING-HOTELS,MOTELS,RESORTS-NOT CLASSIFIED"
07/09/2018,ARUNDEL,BUTLINS HOLIDAYS,306.12,EDUC VISITS/HOLS/CAMPS/TOYS,"LODGING-HOTELS,MOTELS,RESORTS-NOT CLASSIFIED"
07/09/2018,HOPE SERVICE - WEST,WORLD OF GOLF,9.60,REFRESHMENT COSTS,RECREATION SERVICES (NOT ELSEWHERE CLASSIFIED)
07/09/2018,HOPE SERVICE - WEST,WORLD OF GOLF,27.00,EDUC VISITS/HOLS/CAMPS/TOYS,RECREATION SERVICES (NOT ELSEWHERE CLASSIFIED)
07/09/2018,LIBERTAS COMMUNITY HOME,DEBENHAMS,37.99,"CLOTHING, UNIFORM AND LAUNDRY",DEPARTMENT STORES
07/09/2018,LIBERTAS COMMUNITY HOME,MARKS&SPENCER PLC,22.55,"CLOTHING, UNIFORM AND LAUNDRY","GROCERY STORES, SUPERMARKETS"
07/09/2018,LIBERTAS COMMUNITY HOME,HMV RETAIL LTD,20.00,"CLOTHING, UNIFORM AND LAUNDRY",RECORD SHOPS
07/09/2018,LIBERTAS COMMUNITY HOME,SPORTSDIRECT 234,36.05,"CLOTHING, UNIFORM AND LAUNDRY",SPORTING GOODS STORES
07/09/2018,HIGHWAY DESIGN & DELIVERY,AMAZON.CO.UK,41.90,EQUIPMENT,DIRECT MARKETING-OTHER DIRECT MARKETERS/NOT ELSEW.
07/09/2018,SECTOR MANAGER,FAYE (UK) LTD,368.51,ITEMS PURCHASED FOR RE-SALE,MEN'S AND WOMEN'S CLOTHING STORES
07/09/2018,TARGETED INTERVENTION,TESCO STORE 2047,13.10,EDUC VISITS/HOLS/CAMPS/TOYS,"GROCERY STORES, SUPERMARKETS"
07/09/2018,TARGETED INTERVENTION,SURREY CC CARD PAY,16.00,EDUC VISITS/HOLS/CAMPS/TOYS,COMPUTER NETWORK/INFORMATION SERVICES
07/09/2018,SOLD ESTATES MANAGEMENT,HANDY STRAPS,28.59,EQUIPMENT,"CAMPER DEALERS, RECREATIONAL AND UTILITY TRAILERS"
07/09/2018,PE/CDT MAINTENANCE OVERHEADS,JOHNSON HEALTH TECH UK,12.54,ITEMS PURCHASED FOR RE-SALE,SPORTING GOODS STORES
07/09/2018,CHEYNE WALK COMMUNITY HOME,AMZN MKTP UK,124.94,EQUIPMENT,BOOK STORES
07/09/2018,TARGETED INTERVENTION,MCDONALDS,3.67,EDUC VISITS/HOLS/CAMPS/TOYS,FAST FOOD RESTAURANTS
07/09/2018,HEAD OF SCHOOLS AND LEARNING,IW GROUP SERVICES (UK),355.20,VENUE COSTS (INCLUDING HIRE OF ROOMS),REAL ESTATE AGENTS AND MANAGERS-RENTALS
07/09/2018,SW CARE - LAC,WWW.SPARSHOLT.AC.UK,70.00,EDUCATION SEASON TICKETS,"COLLEGES, UNIV, PRO SCHOOLS, JUNIOR COLLEGES"
07/09/2018,CHEYNE WALK COMMUNITY HOME,WAITROSE 233,3.35,PURCHASE OF FOOD (RAW MATERIALS),"GROCERY STORES, SUPERMARKETS"
07/09/2018,RUTH HOUSE, - SAINSBURY'S FOOD DELIVERY FOR YOUNG PEOPLE (23.27%),40.25,PURCHASE OF FOOD (RAW MATERIALS),"GROCERY STORES, SUPERMARKETS"
07/09/2018,RUTH HOUSE, - SAINSBURY'S FOOD DELIVERY FOR YOUNG PEOPLE (76.73%),132.75,PURCHASE OF FOOD (RAW MATERIALS),"GROCERY STORES, SUPERMARKETS"
07/09/2018,HILLSIDE,GROCERIES (2.98%),3.00,PURCHASE OF FOOD (RAW MATERIALS),"GROCERY STORES, SUPERMARKETS"
07/09/2018,HILLSIDE,GROCERIES (97.02%),97.79,PURCHASE OF FOOD (RAW MATERIALS),"GROCERY STORES, SUPERMARKETS"
07/09/2018,HR BUSINESS PARTNERS,BACKCARE SOLUTIONS LTD,880.80,EQUIPMENT,DENTAL/LAB/MED/OPHTHALMIC HOSP EQUIP & SUPPLIES
07/09/2018,RUTH HOUSE,SURREY CC CARD PAY,16.00,TRAINING EXPENSES EXTERNAL GENERAL,COMPUTER NETWORK/INFORMATION SERVICES
07/09/2018,BURBANK COMMUNITY HOME,W M MORRISONS,6.00,PURCHASE OF FOOD (RAW MATERIALS),"GROCERY STORES, SUPERMARKETS"
07/09/2018,ACL CENTRAL EXPENDITURE,TESCO STORE 2160,217.57,REFRESHMENT COSTS,"GROCERY STORES, SUPERMARKETS"
07/09/2018,LIBERTAS COMMUNITY HOME,EQUIPMENT - VAT (1.54%),2.30,EQUIPMENT,"GROCERY STORES, SUPERMARKETS"
07/09/2018,LIBERTAS COMMUNITY HOME,PROVISIONS - VAT (15.76%),23.56,PURCHASE OF FOOD (RAW MATERIALS),"GROCERY STORES, SUPERMARKETS"
07/09/2018,LIBERTAS COMMUNITY HOME,PROVISIONS - NON VAT (82.7%),123.64,PURCHASE OF FOOD (RAW MATERIALS),"GROCERY STORES, SUPERMARKETS"
07/09/2018,HOMELESSNESS PREVENTION PROJECT,TRAVELODGE GB0000,180.00,INDEPENDENT LIVING PLACEMENTS,TRAVELODGE
07/09/2018,SERVICE MARKETING,SIREN FILMS LTD,82.80,STAFF TRAINING,"SCHOOLS, CORRESPONDENCE"
07/09/2018,SERVICE MARKETING,MAGSUBCRIPTIONS COM,149.00,SUBSCRIPTIONS,DIRECT MARKETING-CONTINUITY/SUBSCRIPTION MERCHANTS
07/09/2018,ARUNDEL, - FOOD FOR SERVICE USERS (94.58%),122.09,REFRESHMENT COSTS,"GROCERY STORES, SUPERMARKETS"
07/09/2018,ARUNDEL, - FOOD FOR SERVICE USERS (5.42%),7.00,REFRESHMENT COSTS,"GROCERY STORES, SUPERMARKETS"
07/09/2018,KARIBU COMMUNITY HOME,CURRYS SUPERSTORE,498.99,EQUIPMENT,ELECTRONIC SALES
07/09/2018,LOCAL ASSISTANCE SCHEME,WEBSTER FLOORS LTD,345.00,FURNITURE,FLOOR COVERING STORES
07/09/2018,LOCAL ASSISTANCE SCHEME,WEBSTER FLOORS LTD,345.00,FURNITURE,FLOOR COVERING STORES
07/09/2018,LOCAL ASSISTANCE SCHEME,WEBSTER FLOORS LTD,300.00,FURNITURE,FLOOR COVERING STORES
07/09/2018,LOCAL ASSISTANCE SCHEME,WWW.JOHNLEWIS.COM,180.95,FURNITURE,DEPARTMENT STORES
07/09/2018,CHEYNE WALK COMMUNITY HOME,AMZN MKTP UK,14.99,EQUIPMENT,BOOK STORES
07/09/2018,CHEYNE WALK COMMUNITY HOME,SPECSAVERS,30.00,EQUIPMENT,"OPTICIANS,OPTICAL GOODS & EYEGLASSES"
07/09/2018,SW CARE - CP & COURT LAC,SURREY CC CARD PAY,22.00,OTHER COMMUNITY CARE VOL,COMPUTER NETWORK/INFORMATION SERVICES
07/09/2018,SW CARE - CP & COURT LAC,SURREY CC CARD PAY,12.00,OTHER COMMUNITY CARE VOL,COMPUTER NETWORK/INFORMATION SERVICES
07/09/2018,CENTRAL COMMUNICATIONS,GOOGLE  ADS2060179426,500.00,PUBLICITY,DIRECT MARKETING-CONTINUITY/SUBSCRIPTION MERCHANTS
07/09/2018,FOSTERING SERVICE CENTRAL COSTS,SAINSBURYS TO YOU 2325,169.05,PURCHASE OF FOOD (RAW MATERIALS),"GROCERY STORES, SUPERMARKETS"
08/09/2018,HAVEN YTH CENTRE,CO-OP GROUP 310385,14.64,REFRESHMENT COSTS,"GROCERY STORES, SUPERMARKETS"
08/09/2018,HILLSIDE,GROCERIES (12.67%),21.64,PURCHASE OF FOOD (RAW MATERIALS),"GROCERY STORES, SUPERMARKETS"
08/09/2018,HILLSIDE,GROCERIES (87.33%),149.18,PURCHASE OF FOOD (RAW MATERIALS),"GROCERY STORES, SUPERMARKETS"
08/09/2018,ACL CENTRAL EXPENDITURE,AMAZON.CO.UK,59.95,CURRICULUM EQUIPMENT AND FURNITURE,DIRECT MARKETING-OTHER DIRECT MARKETERS/NOT ELSEW.
08/09/2018,FAIRCROFT COMMUNITY HOME,LUSH KINGSTON,12.08,EQUIPMENT,COSMETIC STORES
08/09/2018,FAIRCROFT COMMUNITY HOME,ROSE CAR PARK,3.20,NON-STAFF RELATED TRANSPORT COSTS,GOVERNMENT SERVICES-NOT ELSEWHERE CLASSIFIED
08/09/2018,FAIRCROFT COMMUNITY HOME,PRIMARK,86.00,"CLOTHING, UNIFORM AND LAUNDRY",FAMILY CLOTHING STORES
08/09/2018,FAIRCROFT COMMUNITY HOME,SPORTSDIRECT 294,105.03,"CLOTHING, UNIFORM AND LAUNDRY",SPORTING GOODS STORES
08/09/2018,SOLD ESTATES MANAGEMENT,WWW.CABP.CO.UK,162.26,DAY TO DAY MAINTENANCE,"BUILDING MATERIALS, LUMBER STORES"
08/09/2018,CHEYNE WALK COMMUNITY HOME,BELL CARRIAGE LTD,32.00,NON-STAFF RELATED TRANSPORT COSTS,LIMOUSINES AND TAXICABS
08/09/2018,CHEYNE WALK COMMUNITY HOME,CREAMS CAFE,61.25,PURCHASE OF FOOD (RAW MATERIALS),"EATING PLACES, RESTAURANTS"
08/09/2018,CHEYNE WALK COMMUNITY HOME,CURRY INN,209.90,PURCHASE OF FOOD (RAW MATERIALS),"EATING PLACES, RESTAURANTS"
08/09/2018,CHEYNE WALK COMMUNITY HOME,ORIGINAL FACTORY S,28.00,EQUIPMENT,DEPARTMENT STORES
08/09/2018,HILLSIDE,GROCERIES (33.51%),12.60,PURCHASE OF FOOD (RAW MATERIALS),"GROCERY STORES, SUPERMARKETS"
08/09/2018,HILLSIDE,GROCERIES (66.49%),25.00,PURCHASE OF FOOD (RAW MATERIALS),"GROCERY STORES, SUPERMARKETS"
08/09/2018,HILLSIDE,WWW.ARGOS.CO.UK,33.94,EQUIPMENT,DISCOUNT STORES
08/09/2018,HOLLAND CLOSE RESIDENTIAL HOME,TESCO STORE 3066,106.60,EQUIPMENT,"GROCERY STORES, SUPERMARKETS"
09/09/2018,CHEYNE WALK COMMUNITY HOME,AMZN MKTP UK AMAZON.CO,65.92,EQUIPMENT,BOOK STORES
09/09/2018,CHEYNE WALK COMMUNITY HOME,AMZN MKTP UK AMAZON.CO,27.98,EQUIPMENT,BOOK STORES
09/09/2018,IMT SUPPORT FOR FIRE & RESCUE,AMZN MKTP UK AMAZON.CO,25.44,COMPUTER HARDWARE,BOOK STORES
09/09/2018,LIBERTAS COMMUNITY HOME,PRIMARK STORES 655,32.00,"CLOTHING, UNIFORM AND LAUNDRY",FAMILY CLOTHING STORES
09/09/2018,FAIRCROFT COMMUNITY HOME,SAINSBURYS SACAT 0687,9.00,PURCHASE OF FOOD (RAW MATERIALS),"GROCERY STORES, SUPERMARKETS"
09/09/2018,WOODLANDS COMMUNITY HOME,NETFLIX.COM,7.99,SUBSCRIPTIONS,"CABLE, SATELLITE, OTHER PAY TELEVISION, RADIO SVCS"
09/09/2018,FAIRCROFT COMMUNITY HOME,KFC,11.38,REFRESHMENT COSTS,FAST FOOD RESTAURANTS
09/09/2018,FAIRCROFT COMMUNITY HOME,NANDOS,46.00,REFRESHMENT COSTS,"EATING PLACES, RESTAURANTS"
09/09/2018,FAIRCROFT COMMUNITY HOME,CAR PARKS SPH,8.00,NON-STAFF RELATED TRANSPORT COSTS,GOVERNMENT SERVICES-NOT ELSEWHERE CLASSIFIED
09/09/2018,FAIRCROFT COMMUNITY HOME,MCDONALDS,17.85,REFRESHMENT COSTS,FAST FOOD RESTAURANTS
09/09/2018,NW EDUCATION WELFARE OFFICERS,AMAZON.CO.UK,151.92,BOOKS,DIRECT MARKETING-OTHER DIRECT MARKETERS/NOT ELSEW.
09/09/2018,KARIBU COMMUNITY HOME,ODEON,23.00,EDUC VISITS/HOLS/CAMPS/TOYS,MOTION PICTURE THEATERS
09/09/2018,KARIBU COMMUNITY HOME,CO-OP GROUP 310385,6.44,PURCHASE OF FOOD (RAW MATERIALS),"GROCERY STORES, SUPERMARKETS"
09/09/2018,LIBERTAS COMMUNITY HOME,NEXT GUILDFORD 0166,120.05,"CLOTHING, UNIFORM AND LAUNDRY",FAMILY CLOTHING STORES
09/09/2018,SURREY ARTS GENERAL,AMZN MKTP UK,15.08,EQUIPMENT,BOOK STORES
09/09/2018,WOODLANDS COMMUNITY HOME,AMZN MKTP UK,10.88,TELECOMMUNICATION CHARGES,BOOK STORES
09/09/2018,ACCESS PROGRAMMES,APPLE ONLINE STORE GBP,"2,699.00",COMPUTER HARDWARE,ELECTRONIC SALES
09/09/2018,SURREY ARTS GENERAL,AMZN MKTP UK AMAZON.CO,354.48,EQUIPMENT,BOOK STORES
09/09/2018,CHEYNE WALK COMMUNITY HOME,TESCO STORE 2560,28.20,EQUIPMENT,"GROCERY STORES, SUPERMARKETS"
09/09/2018,CHEYNE WALK COMMUNITY HOME,TESCO STORE 2560,25.01,PURCHASE OF FOOD (RAW MATERIALS),"GROCERY STORES, SUPERMARKETS"
09/09/2018,CHEYNE WALK COMMUNITY HOME,TESCO-STORES 6647,102.29,EQUIPMENT,"GROCERY STORES, SUPERMARKETS"
09/09/2018,CHEYNE WALK COMMUNITY HOME,AMZN MKTP UK,87.08,EQUIPMENT,BOOK STORES
09/09/2018,CHEYNE WALK COMMUNITY HOME,AMAZON.CO.UK,33.96,EQUIPMENT,DIRECT MARKETING-OTHER DIRECT MARKETERS/NOT ELSEW.
09/09/2018,BURBANK COMMUNITY HOME,HARVESTER JOLLY FA,104.67,REFRESHMENT COSTS,"EATING PLACES, RESTAURANTS"
09/09/2018,CHEYNE WALK COMMUNITY HOME,AMZN MKTP UK AMAZON.CO,156.51,EQUIPMENT,BOOK STORES
10/09/2018,CHEYNE WALK COMMUNITY HOME,LLOYDS PHARMACY,11.99,EQUIPMENT,"DRUG STORES, PHARMACIES"
10/09/2018,ACL CENTRAL EXPENDITURE,AMZN MKTP UK AMAZON.CO,76.00,EQUIPMENT,BOOK STORES
10/09/2018,SW CARE - CP & COURT LAC, - CAR SEATS (25%),35.00,EQUIPMENT,BICYCLE SHOPS-SALES AND SERVICE
10/09/2018,NW CARE - CP & COURT LAC, - CAR SEATS (25%),35.00,EQUIPMENT,BICYCLE SHOPS-SALES AND SERVICE
10/09/2018,NE CARE - CP & COURT LAC, - CAR SEATS (25%),35.00,EQUIPMENT,BICYCLE SHOPS-SALES AND SERVICE
10/09/2018,SE CARE - CP & COURT LAC, - CAR SEATS (25%),35.00,EQUIPMENT,BICYCLE SHOPS-SALES AND SERVICE
10/09/2018,COUNTRYSIDE PROJECT DEVELOPMENT,AMOMA RESERVATIO,102.59,SUBSISTENCE AND CONFERENCE EXPENSES,"LODGING-HOTELS,MOTELS,RESORTS-NOT CLASSIFIED"
10/09/2018,HEALTH & WELLBEING                      ,PAYPAL  SPRINTPRINT,10.49,PRINTING,CHEMICALS/ALLIED PRODUCTS NOT ELSEWHERE CLASSIFIED
10/09/2018,ESTATES TEAM,AMZN MKTP UK,32.31,EQUIPMENT,BOOK STORES
10/09/2018,MALLOW CRESCENT,TESCO STORE 2590,115.41,PURCHASE OF FOOD (RAW MATERIALS),"GROCERY STORES, SUPERMARKETS"
10/09/2018,COVEHAM,POST OFFICE COUNTER,3.95,POSTAGE AND COURIER CHARGES,POSTAL SERVICES-GOVERNMENT ONLY
10/09/2018,FAMILIES GUILDFORD,TABLE TABLE41015900,1.69,REFRESHMENT COSTS,"EATING PLACES, RESTAURANTS"
10/09/2018,FAMILIES REIGATE AND BANSTREAD,FOODWISE HORLEY,4.23,REFRESHMENT COSTS,"GROCERY STORES, SUPERMARKETS"
10/09/2018,FAIRCROFT COMMUNITY HOME,SAINSBURYS SACAT 0687,23.99,EQUIPMENT,"GROCERY STORES, SUPERMARKETS"
10/09/2018,CHEYNE WALK COMMUNITY HOME,AMZN MKTP UK AMAZON.CO,24.36,EQUIPMENT,BOOK STORES
10/09/2018,SHELL UK LICENSING,SPELTHORNE BC INTERNET,192.00,FEES,GOVERNMENT SERVICES-NOT ELSEWHERE CLASSIFIED
10/09/2018,ACCESS 2 EDUCATION SE NON-MEDICAL,SURREY CC CARD PAY,16.00,SUBSISTENCE AND CONFERENCE EXPENSES,COMPUTER NETWORK/INFORMATION SERVICES
10/09/2018,HOLLAND CLOSE RESIDENTIAL HOME,AMZN MKTP UK,14.00,EDUC VISITS/HOLS/CAMPS/TOYS,BOOK STORES
10/09/2018,ACL CENTRAL EXPENDITURE,TESCO STORE 3149,124.03,REFRESHMENT COSTS,"GROCERY STORES, SUPERMARKETS"
10/09/2018,ACL CENTRAL EXPENDITURE,AMZN MKTP UK AMAZON.CO,31.45,EQUIPMENT,BOOK STORES
10/09/2018,ACL CENTRAL EXPENDITURE,AMZN MKTP UK AMAZON.CO,99.00,EQUIPMENT,BOOK STORES
10/09/2018,ACL CENTRAL EXPENDITURE,AMZN MKTP UK AMAZON.CO,39.90,EQUIPMENT,BOOK STORES
10/09/2018,ACL CENTRAL EXPENDITURE,AMZN MKTP UK AMAZON.CO,36.94,EQUIPMENT,BOOK STORES
10/09/2018,ACL CENTRAL EXPENDITURE,AMZN MKTP UK AMAZON.CO,135.97,EQUIPMENT,BOOK STORES
10/09/2018,LOCAL ASSISTANCE SCHEME,WWW.JOHNLEWIS.COM,414.00,FURNITURE,DEPARTMENT STORES
10/09/2018,LOCAL ASSISTANCE SCHEME,WWW.JOHNLEWIS.COM,844.00,FURNITURE,DEPARTMENT STORES
10/09/2018,CHEYNE WALK COMMUNITY HOME,AMAZON PRIME,7.99,EQUIPMENT,DIRECT MARKETING-CONTINUITY/SUBSCRIPTION MERCHANTS
10/09/2018,CHEYNE WALK COMMUNITY HOME,BELLA ITALIA,110.24,PURCHASE OF FOOD (RAW MATERIALS),"EATING PLACES, RESTAURANTS"
10/09/2018,SE CARE - CP & COURT LAC,SURREY CC CARD PAY,31.00,OTHER COMMUNITY CARE VOL,COMPUTER NETWORK/INFORMATION SERVICES
10/09/2018,TARGETED INTERVENTION,COSTA COFFEE,5.25,EDUC VISITS/HOLS/CAMPS/TOYS,FAST FOOD RESTAURANTS
10/09/2018,ACL CENTRAL EXPENDITURE,TESCO STORE 2160,25.77,REFRESHMENT COSTS,"GROCERY STORES, SUPERMARKETS"
10/09/2018,HILLSIDE,TESCO STORE 3149,29.03,PURCHASE OF FOOD (RAW MATERIALS),"GROCERY STORES, SUPERMARKETS"
10/09/2018,MALLOW CRESCENT,SAINSBURYS TO YOU 0652,106.67,PURCHASE OF FOOD (RAW MATERIALS),"GROCERY STORES, SUPERMARKETS"
10/09/2018,ROW VOLUNTEERS WEST                     ,LC PACKAGING UK LTD,66.00,PURCHASE OF BUILDING MATERIALS,BUSINESS SERVICES-NOT ELSEWHERE CLASSIFIED
10/09/2018,FAMILIES SPELTHORNE,SAINSBURYS SACAT (4117,4.04,REFRESHMENT COSTS,"GROCERY STORES, SUPERMARKETS"
10/09/2018,FAMILIES SPELTHORNE,TESCO STORE 2047,8.58,PURCHASE OF FOOD (RAW MATERIALS),"GROCERY STORES, SUPERMARKETS"
10/09/2018,LIBERTAS COMMUNITY HOME,SAINSBURYS SACAT 0652,6.00,"CLOTHING, UNIFORM AND LAUNDRY","GROCERY STORES, SUPERMARKETS"
10/09/2018,FAMILIES TANDRIDGE,WM MORRISONS,2.71,REFRESHMENT COSTS,"GROCERY STORES, SUPERMARKETS"
10/09/2018,FAMILIES WAVERLEY,PP FAMILYLINKS,143.00,BOOKS,"ORGANIZATIONS, CHARITABLE AND SOCIAL SERVICES"
10/09/2018,ALP EDGE OF CARE,ASDA  STORES 4775,3.00,EDUC VISITS/HOLS/CAMPS/TOYS,"GROCERY STORES, SUPERMARKETS"
10/09/2018,TARGETED INTERVENTION,STARBUCKS,11.85,EDUC VISITS/HOLS/CAMPS/TOYS,FAST FOOD RESTAURANTS
10/09/2018,ASSET PLANNING - OPERATIONS,ETI LTD,196.80,EQUIPMENT,COMPUTER SOFTWARE STORES
10/09/2018,ASSET PLANNING - OPERATIONS,POST OFFICE COUNTER,13.14,POSTAGE AND COURIER CHARGES,POSTAL SERVICES-GOVERNMENT ONLY
10/09/2018,SURREY HEATH LOCALITY TEAM,TRAVELODGE GB0000,488.00,VENUE COSTS (INCLUDING HIRE OF ROOMS),TRAVELODGE
10/09/2018,IMT CRITICAL ENVIRONMENTS,MILK&MORE,23.90,REFRESHMENT COSTS,DAIRY PRODUCTS STORES
10/09/2018,MALLOW CRESCENT,TESCO STORE 2590,155.12,PURCHASE OF FOOD (RAW MATERIALS),"GROCERY STORES, SUPERMARKETS"
10/09/2018,LIBERTAS COMMUNITY HOME,PROVISIONS VAT (11.55%),18.30,PURCHASE OF FOOD (RAW MATERIALS),"GROCERY STORES, SUPERMARKETS"
10/09/2018,LIBERTAS COMMUNITY HOME, - PROVISIONS NON VAT (88.45%),140.14,PURCHASE OF FOOD (RAW MATERIALS),"GROCERY STORES, SUPERMARKETS"
10/09/2018,FIRE SERVICES IT,AMZN MKTP UK AMAZON.CO,9.99,COMPUTER HARDWARE,BOOK STORES
10/09/2018,LEAVING CARE PACKAGES,TRAVELODGE GB0000,85.25,CHILDREN ACT SEC 17 PAYMENTS,TRAVELODGE
10/09/2018,MALLOW CRESCENT,SAINSBURYS TO YOU 0652,129.27,PURCHASE OF FOOD (RAW MATERIALS),"GROCERY STORES, SUPERMARKETS"
10/09/2018,COVEHAM,SAINSBURYS TO YOU 0687,171.94,REFRESHMENT COSTS,"GROCERY STORES, SUPERMARKETS"
10/09/2018,HOPE SERVICE - WEST,SAINSBURYS TO YOU 0686,111.15,PURCHASE OF FOOD (RAW MATERIALS),"GROCERY STORES, SUPERMARKETS"
10/09/2018,HOMELESSNESS PREVENTION PROJECT,TRAVELODGE GB0000,80.00,INDEPENDENT LIVING PLACEMENTS,TRAVELODGE
10/09/2018,ACL CENTRAL EXPENDITURE,AMZN MKTP UK,20.94,EQUIPMENT,BOOK STORES
10/09/2018,ACCESS 2 EDUCATION SW NON-MEDICAL,SURREY CC CARD PAY,16.00,TRAINING EXPENSES EXTERNAL GENERAL,COMPUTER NETWORK/INFORMATION SERVICES
10/09/2018,WOKING BANSTAND DEVELOPMENTS LTD,COMP HSE PENALTY,375.00,FEES,GOVERNMENT SERVICES-NOT ELSEWHERE CLASSIFIED
10/09/2018,FAIRCROFT COMMUNITY HOME,TESCO STORE 2812,215.69,PURCHASE OF FOOD (RAW MATERIALS),"GROCERY STORES, SUPERMARKETS"
10/09/2018,SURREY ARTS GENERAL,MARKS&SPENCER PLC,262.00,REFRESHMENT COSTS,"GROCERY STORES, SUPERMARKETS"
10/09/2018,PROPERTY OPERATIONS TEAM,TOOLSTATION LTD,6.59,PURCHASE OF BUILDING MATERIALS,HARDWARE STORES
10/09/2018,PROPERTY OPERATIONS TEAM,GUILDFORD LOCK & SAFE,74.83,PURCHASE OF BUILDING MATERIALS,HARDWARE EQUIPMENT AND SUPPLIES
10/09/2018,PROPERTY OPERATIONS TEAM,WICKES,25.60,PURCHASE OF BUILDING MATERIALS,HOME SUPPLY WAREHOUSE STORES
10/09/2018,PROPERTY OPERATIONS TEAM,SCREWFIX GUILFORD WOOD,24.95,PURCHASE OF BUILDING MATERIALS,"BUILDING MATERIALS, LUMBER STORES"
10/09/2018,PROPERTY OPERATIONS TEAM,SCREWFIX WOKING,21.55,PURCHASE OF BUILDING MATERIALS,"BUILDING MATERIALS, LUMBER STORES"
10/09/2018,FAIRCROFT COMMUNITY HOME,SAINSBURYS SACAT 0687,12.15,PURCHASE OF FOOD (RAW MATERIALS),"GROCERY STORES, SUPERMARKETS"
10/09/2018,TARGETED INTERVENTION,STARBUCKS,7.30,EDUC VISITS/HOLS/CAMPS/TOYS,FAST FOOD RESTAURANTS
10/09/2018,SOLD DAY TO DAY OPERATIONS,AMZN MKTP UK,12.99,EQUIPMENT,BOOK STORES
10/09/2018,FAIRCROFT COMMUNITY HOME,HOMEBASE LTD 050,20.00,EQUIPMENT,"BUILDING MATERIALS, LUMBER STORES"
10/09/2018,WOODLANDS COMMUNITY HOME,PROVISIONS (55.13%),18.00,PURCHASE OF FOOD (RAW MATERIALS),"GROCERY STORES, SUPERMARKETS"
10/09/2018,WOODLANDS COMMUNITY HOME,MOP AND BUCKET (44.87%),14.65,CLEANING MATERIALS,"GROCERY STORES, SUPERMARKETS"
10/09/2018,FAMILY WORKFORCE DEVELOPMENT EAST,VIKING,67.18,STATIONERY,STATIONERY/OFFICE SUPPLIES/PRINTING & WRITING PAP.
10/09/2018,HOPE SERVICE - WEST,SAINSBURYS SACAT 0683,86.58,PURCHASE OF FOOD (RAW MATERIALS),"GROCERY STORES, SUPERMARKETS"
10/09/2018,HOPE SERVICE - WEST,SAINSBURYS 0683,4.70,REFRESHMENT COSTS,"GROCERY STORES, SUPERMARKETS"
10/09/2018,CHILDREN'S RIGHTS TEAM,DOMINOS PIZZA UK & IRE,53.16,REFRESHMENT COSTS,"EATING PLACES, RESTAURANTS"
10/09/2018,WOODLANDS COMMUNITY HOME,PROVISIONS FOR THE HOME (16.99%),33.80,PURCHASE OF FOOD (RAW MATERIALS),"GROCERY STORES, SUPERMARKETS"
10/09/2018,WOODLANDS COMMUNITY HOME,PROVISIONS FOR THE HOME (83.01%),165.17,PURCHASE OF FOOD (RAW MATERIALS),"GROCERY STORES, SUPERMARKETS"
10/09/2018,BURBANK COMMUNITY HOME,JOLLY NICE,7.20,REFRESHMENT COSTS,"GROCERY STORES, SUPERMARKETS"
10/09/2018,SOLD ESTATES MANAGEMENT,SHEERWATER GLASS CENTR,110.33,DAY TO DAY MAINTENANCE,"CONTRACTORS,SPECIAL TRADE-NOT ELSEWHERE CLASSIFIED"
10/09/2018,SOLD DAY TO DAY OPERATIONS,AMZN MKTP UK,11.98,EQUIPMENT,BOOK STORES
10/09/2018,RUTH HOUSE,AMZN MKTP UK,29.97,EDUC VISITS/HOLS/CAMPS/TOYS,BOOK STORES
11/09/2018,NE CARE - LAC,GRO HM PASSPORT OFFICE,-18.50,OTHER COMMUNITY CARE VOL,GOVERNMENT SERVICES-NOT ELSEWHERE CLASSIFIED
11/09/2018,NE CARE - LAC,GRO HM PASSPORT OFFICE,-18.50,OTHER COMMUNITY CARE VOL,GOVERNMENT SERVICES-NOT ELSEWHERE CLASSIFIED
11/09/2018,STUDENT FARECARD,SURREY CC CARD PAY,-10.00,NON-STAFF RELATED TRANSPORT COSTS,COMPUTER NETWORK/INFORMATION SERVICES
11/09/2018,ACL CENTRAL EXPENDITURE,AMZN MKTP UK AMAZON.CO,4.18,EQUIPMENT,BOOK STORES
11/09/2018,SW CARE - LAC,BRITISH A 12587794344370,134.15,MISCELLANEOUS STAFF TRAVEL,BRITISH A
11/09/2018,IMT MANAGEMENT TEAM,AMZN MKTP UK AMAZON.CO,987.00,EQUIPMENT,BOOK STORES
11/09/2018,LIBERTAS COMMUNITY HOME,ALFOLD SF CONNECT,10.71,PURCHASE OF FOOD (RAW MATERIALS),SERVICE STATIONS WITH OR WITHOUT ANCILLARY SERVICE
11/09/2018,SW CARE - CP & COURT LAC,BRITANNIA EUROPA H,62.00,OTHER COMMUNITY CARE VOL,"LODGING-HOTELS,MOTELS,RESORTS-NOT CLASSIFIED"
11/09/2018,ROW VOLUNTEERS WEST                     ,PANTILES SERVICE STATI,10.00,PETROL/DIESEL ALL OFF BUSINESS,SERVICE STATIONS WITH OR WITHOUT ANCILLARY SERVICE
11/09/2018,ROW VOLUNTEERS WEST                     ,METHOLD VEHICLE HIRE,40.00,HIRE OF VEHICLES,AUTOMOBILE RENTAL AGENCY-NOT ELSEWHERE CLASSIFIED
11/09/2018,HILLSIDE,GROCERIES (8.35%),8.24,PURCHASE OF FOOD (RAW MATERIALS),"GROCERY STORES, SUPERMARKETS"
11/09/2018,HILLSIDE,GROCERIES (91.65%),90.41,PURCHASE OF FOOD (RAW MATERIALS),"GROCERY STORES, SUPERMARKETS"
11/09/2018,COVEHAM,FARRANTS,5.99,STATIONERY,"GIFT, CARD, NOVELTY AND SOUVENIR SHOPS"
11/09/2018,IMT MODERN WORKER,GITHUB.COM,34.13,COMPUTER SERVICES,"COMPUTERS, COMPUTER PERIPHERAL EQUIPMENT, SOFTWARE"
11/09/2018,FAMILIES WOKING,SAINSBURYS SACAT 0802,6.50,REFRESHMENT COSTS,"GROCERY STORES, SUPERMARKETS"
11/09/2018,SUPERFAST BROADBAND ECONOMIC DEVELOPMENT,LAYERSHIFT,120.00,COMPUTER SERVICES,COMPUTER NETWORK/INFORMATION SERVICES
11/09/2018,ACCESS 2 EDUCATION SE NON-MEDICAL,SURREY CC CARD PAY,16.00,SUBSISTENCE AND CONFERENCE EXPENSES,COMPUTER NETWORK/INFORMATION SERVICES
11/09/2018,ACL CENTRAL EXPENDITURE,AO RETAIL LIMITED,"2,828.85",FURNITURE,HOUSEHOLD APPLIANCE STORES
11/09/2018,EPSOM & EWELL CMHRS CARE,HMCTS-SURREY125,75.00,FEES,FINES
11/09/2018,ACL CENTRAL EXPENDITURE,AMZN MKTP UK AMAZON.CO,5.98,REFRESHMENT COSTS,BOOK STORES
11/09/2018,CHEYNE WALK COMMUNITY HOME,GIFFGAFF,25.00,SUBSCRIPTIONS,TELECOM INCL PREPAID/RECURRING PHONE SVCS
11/09/2018,EXTENDED HOPE,TESCO STORE 2590,117.11,PURCHASE OF FOOD (RAW MATERIALS),"GROCERY STORES, SUPERMARKETS"
11/09/2018,CENTRAL COMMUNICATIONS,GOOGLE  ADS2060179426,500.00,PUBLICITY,DIRECT MARKETING-CONTINUITY/SUBSCRIPTION MERCHANTS
11/09/2018,SW CARE - CP & COURT LAC,HOTEL ON BOOKING.COM,60.00,CHILDREN ACT SEC 17 PAYMENTS,"LODGING-HOTELS,MOTELS,RESORTS-NOT CLASSIFIED"
11/09/2018,SHELL UK LICENSING,AYLESBURY V D COUNCIL,226.00,FEES,GOVERNMENT SERVICES-NOT ELSEWHERE CLASSIFIED
11/09/2018,TARGETED INTERVENTION,THE NATIONAL TRUST,4.40,EDUC VISITS/HOLS/CAMPS/TOYS,"ORGANIZATIONS, CHARITABLE AND SOCIAL SERVICES"
11/09/2018,FAMILIES MOLE VALLEY,TRAVELODGE GB0000,90.00,EDUC VISITS/HOLS/CAMPS/TOYS,TRAVELODGE
11/09/2018,WEB OPERATIONS TEAM,BT BILL PAYMENT 2,67.07,TELECOMMUNICATION CHARGES,TELECOMMUNICATION EQUIPMENT INCL TELEPHONE SALES
11/09/2018,NE CARE - NON-LAC CP & COURT,WANDSWORTH COUNCIL,27.00,OTHER COMMUNITY CARE VOL,GOVERNMENT SERVICES-NOT ELSEWHERE CLASSIFIED
11/09/2018,NE CARE - LAC,GRO HM PASSPORT OFFICE,37.00,OTHER COMMUNITY CARE VOL,GOVERNMENT SERVICES-NOT ELSEWHERE CLASSIFIED
11/09/2018,TRAINING DELIVERY STAFF COSTS,AMZN MKTP UK,18.48,COMPUTER HARDWARE,BOOK STORES
11/09/2018,SW CHILDREN IN NEED TEAM,AMZN MKTP UK,16.98,BOOKS,BOOK STORES
11/09/2018,DITTONS & CLAYGATE CC,CARTRIDGE SAVE,183.94,STATIONERY,STATIONERY/OFFICE SUPPLIES/PRINTING & WRITING PAP.
11/09/2018,TARGETED INTERVENTION,THE NATIONAL TRUST,5.00,EDUC VISITS/HOLS/CAMPS/TOYS,"ORGANIZATIONS, CHARITABLE AND SOCIAL SERVICES"
11/09/2018,TARGETED INTERVENTION,AMF BOWLING,7.60,EDUC VISITS/HOLS/CAMPS/TOYS,"CLUBS-CNTRY,MBRSHIP(ATHLET,REC,SPRTS,PRIVATE GOLF"
11/09/2018,TARGETED INTERVENTION,AMF BOWLING,7.70,EDUC VISITS/HOLS/CAMPS/TOYS,"CLUBS-CNTRY,MBRSHIP(ATHLET,REC,SPRTS,PRIVATE GOLF"
11/09/2018,TARGETED INTERVENTION,AMF BOWLING,20.32,EDUC VISITS/HOLS/CAMPS/TOYS,"CLUBS-CNTRY,MBRSHIP(ATHLET,REC,SPRTS,PRIVATE GOLF"
11/09/2018,HEAD OF SCHOOLS AND LEARNING,EB  EFFECTIVE AREA BAS,253.29,STAFF TRAINING,BUSINESS SERVICES-NOT ELSEWHERE CLASSIFIED
11/09/2018,RUTH HOUSE, - SAINSBURY'S FOOD DELIVERY FOR YOUNG PEOPLE (10.32%),19.40,PURCHASE OF FOOD (RAW MATERIALS),"GROCERY STORES, SUPERMARKETS"
11/09/2018,RUTH HOUSE, - SAINSBURY'S FOOD DELIVERY FOR YOUNG PEOPLE (89.68%),168.65,PURCHASE OF FOOD (RAW MATERIALS),"GROCERY STORES, SUPERMARKETS"
11/09/2018,TARGETED INTERVENTION,SAINSBURYS 0683,10.10,EDUC VISITS/HOLS/CAMPS/TOYS,"GROCERY STORES, SUPERMARKETS"
11/09/2018,TARGETED INTERVENTION,SAINSBURYS 0683,4.25,EDUC VISITS/HOLS/CAMPS/TOYS,"GROCERY STORES, SUPERMARKETS"
11/09/2018,TARGETED INTERVENTION,IZ  HUB COFFEE HOU,5.20,EDUC VISITS/HOLS/CAMPS/TOYS,"ORGANIZATIONS, CHARITABLE AND SOCIAL SERVICES"
11/09/2018,TARGETED INTERVENTION,FREEDOM LEISURE,15.20,EDUC VISITS/HOLS/CAMPS/TOYS,GOVERNMENT SERVICES-NOT ELSEWHERE CLASSIFIED
11/09/2018,CS BUSINESS SUPPORT WEST,WWW.STOCKSIGNS.CO.UK,101.62,EQUIPMENT,"COMMERCIAL ART, GRAPHICS, PHOTOGRAPHY"
11/09/2018,KEYS YC HORLEY,SELDONS LOCKSMITH,157.80,DAY TO DAY MAINTENANCE,"DETECTVE/PROTECTVE AGNCY,SECURITY SRVS, ARMOR CARS"
11/09/2018,QUADRANT COURT WOKING,FAST KEY SERVICES LIMI,13.23,EQUIPMENT,BUSINESS SERVICES-NOT ELSEWHERE CLASSIFIED
11/09/2018,CONSERVATION,WWW.OXBOWBOOKS.COM,40.00,BOOKS,BOOK STORES
11/09/2018,ACL CENTRAL EXPENDITURE,WWW.HSWALSH.COM,975.92,EQUIPMENT,"CLOCK, JEWELRY, WATCH, AND SILVERWARE STORE"
11/09/2018,MALLOW CRESCENT,AMZN MKTP UK,42.99,EQUIPMENT,BOOK STORES
11/09/2018,FAIRCROFT COMMUNITY HOME,TESCO STORE 2812,168.05,PURCHASE OF FOOD (RAW MATERIALS),"GROCERY STORES, SUPERMARKETS"
11/09/2018,READY FOR WORK YSS,NCS VUE CITB HS&E REV,21.00,EDUC VISITS/HOLS/CAMPS/TOYS,SCHOOLS & EDUCATIONAL SVC-NOT ELSEWHERE CLASSIFIED
11/09/2018,CHMHS RAP TEAM,WOWTASTIC UK,183.75,EDUC VISITS/HOLS/CAMPS/TOYS,"GAME, TOY, AND HOBBY SHOPS"
11/09/2018,MGMT - ORBIS (MANAGEMENT TEAM & SUPPORT),CUSTOMER THERMOMETER,94.28,FEES,COMPUTER SOFTWARE STORES
11/09/2018,"9 GOSDEN COMMON, BRAMLEY",GUILDFORD LOCK & SAFE,45.50,EQUIPMENT,HARDWARE EQUIPMENT AND SUPPLIES
11/09/2018,STUDENT FARECARD,SURREY CC CARD PAY,10.00,NON-STAFF RELATED TRANSPORT COSTS,COMPUTER NETWORK/INFORMATION SERVICES
11/09/2018,SOLD CATERING,W M MORRISONS,24.00,EQUIPMENT,"GROCERY STORES, SUPERMARKETS"
11/09/2018,FAMILY WORKFORCE DEVELOPMENT EAST,SURREY CC CARD PAY,16.00,TRAINING EXPENSES EXTERNAL GENERAL,COMPUTER NETWORK/INFORMATION SERVICES
11/09/2018,CORONER,WWW.OFFICEFURNITUREONL,615.60,FURNITURE,"EQUIP, FURNITURE, HOME FURNSHNGS STRS (EXCPT APPL)"
11/09/2018,PROJECTS AND CONTRACTS GROUP,FENNERS HOTEL,170.00,VENUE COSTS (INCLUDING HIRE OF ROOMS),"LODGING-HOTELS,MOTELS,RESORTS-NOT CLASSIFIED"
11/09/2018,HOPE SERVICE - WEST,SAINSBURYS SACAT(4409),2.20,PURCHASE OF FOOD (RAW MATERIALS),"GROCERY STORES, SUPERMARKETS"
11/09/2018,GUILDFORD LIBRARY,AMZN MKTP UK,13.40,STATIONERY,BOOK STORES
11/09/2018,ACL CENTRAL EXPENDITURE,AMZN MKTP UK,62.99,EQUIPMENT,BOOK STORES
11/09/2018,ACL CENTRAL EXPENDITURE,AMZN MKTP UK,7.99,EQUIPMENT,BOOK STORES
11/09/2018,BURBANK COMMUNITY HOME,CURRYS SUPERSTORE 2324,84.99,EQUIPMENT,ELECTRONIC SALES
11/09/2018,ACL CENTRAL EXPENDITURE,AMZN MKTP UK AMAZON.CO,30.00,EQUIPMENT,BOOK STORES
11/09/2018,ACL CENTRAL EXPENDITURE,REPLACEMENTKEYS.CO.UK,8.95,EQUIPMENT,MISCELLANEOUS GENERAL MERCHANDISE
11/09/2018,BURBANK COMMUNITY HOME,POST OFFICE COUNTER,3.45,POSTAGE AND COURIER CHARGES,POSTAL SERVICES-GOVERNMENT ONLY
11/09/2018,HOPE SERVICE - WEST,SAINSBURYS 0683,10.85,PURCHASE OF FOOD (RAW MATERIALS),"GROCERY STORES, SUPERMARKETS"
11/09/2018,NE TEACHERS,SURREY CC CARD PAY,16.00,TRAINING EXPENSES EXTERNAL GENERAL,COMPUTER NETWORK/INFORMATION SERVICES
11/09/2018,TRANSPORT,DON BOARDSERVICE GMBH,14.07,MISCELLANEOUS STAFF TRAVEL,"EATING PLACES, RESTAURANTS"
11/09/2018,COVEHAM,WWW.JOHNLEWIS.COM,259.99,EQUIPMENT,DEPARTMENT STORES
11/09/2018,ARUNDEL, - FOOD FOR SERVICE USERS (85.67%),119.60,REFRESHMENT COSTS,"GROCERY STORES, SUPERMARKETS"
11/09/2018,ARUNDEL, - FOOD FOR SERVICE USERS (14.33%),20.00,REFRESHMENT COSTS,"GROCERY STORES, SUPERMARKETS"
11/09/2018,PROPERTY OPERATIONS TEAM,DULUX DECORATOR CENTRE,18.61,PURCHASE OF BUILDING MATERIALS,"PAINTS,VARNISHES AND SUPPLIES"
11/09/2018,NW EDUCATION WELFARE OFFICERS,SURREY CC CARD PAY,16.00,TRAINING EXPENSES EXTERNAL GENERAL,COMPUTER NETWORK/INFORMATION SERVICES
11/09/2018,NW EDUCATION WELFARE OFFICERS,SURREY CC CARD PAY,16.00,TRAINING EXPENSES EXTERNAL GENERAL,COMPUTER NETWORK/INFORMATION SERVICES
11/09/2018,NW EDUCATION WELFARE OFFICERS,SURREY CC CARD PAY,16.00,TRAINING EXPENSES EXTERNAL GENERAL,COMPUTER NETWORK/INFORMATION SERVICES
11/09/2018,NW EDUCATION WELFARE OFFICERS,SURREY CC CARD PAY,16.00,TRAINING EXPENSES EXTERNAL GENERAL,COMPUTER NETWORK/INFORMATION SERVICES
11/09/2018,FARNHAM AEI WEST STREET,TIMPSON LTD,25.00,DAY TO DAY MAINTENANCE,"HAT CLEANING SHOPS, SHOE REPAIR SHOPS, SHOE SHINE"
11/09/2018,PROPERTY OPERATIONS TEAM,TOOLSTATION LTD,14.06,PURCHASE OF BUILDING MATERIALS,HARDWARE STORES
11/09/2018,PROPERTY OPERATIONS TEAM,SCREWFIX HANWORTH,5.97,PURCHASE OF BUILDING MATERIALS,"BUILDING MATERIALS, LUMBER STORES"
11/09/2018,PROPERTY OPERATIONS TEAM,SCREWFIX HANWORTH,71.98,PURCHASE OF BUILDING MATERIALS,"BUILDING MATERIALS, LUMBER STORES"
12/09/2018,ACL CENTRAL EXPENDITURE,AMZN MKTP UK AMAZON.CO,35.13,EQUIPMENT,BOOK STORES
12/09/2018,TRANSPORT,CAFE RESTAURANT GUTENB,45.97,MISCELLANEOUS STAFF TRAVEL,"EATING PLACES, RESTAURANTS"
12/09/2018,DEVELOPMENT TEAM,MSFT  <E01006GVKQ>,153.53,COMPUTER SOFTWARE,"COMPUTERS, COMPUTER PERIPHERAL EQUIPMENT, SOFTWARE"
12/09/2018,DEVELOPMENT TEAM,MSFT  <E01006GV6P>,15.93,COMPUTER SOFTWARE,"COMPUTERS, COMPUTER PERIPHERAL EQUIPMENT, SOFTWARE"
12/09/2018,TARGETED INTERVENTION,TOP GOLF LTD,16.05,EDUC VISITS/HOLS/CAMPS/TOYS,"CLUBS-CNTRY,MBRSHIP(ATHLET,REC,SPRTS,PRIVATE GOLF"
12/09/2018,TARGETED INTERVENTION,OPEN UNIVERSITY MOTO,"1,000.00",STAFF TRAINING,"COLLEGES, UNIV, PRO SCHOOLS, JUNIOR COLLEGES"
12/09/2018,SW CARE - CP & COURT LAC, - CAR SEATS (25%),17.50,EQUIPMENT,BICYCLE SHOPS-SALES AND SERVICE
12/09/2018,NW CARE - CP & COURT LAC, - CAR SEATS (25%),17.50,EQUIPMENT,BICYCLE SHOPS-SALES AND SERVICE
12/09/2018,NE CARE - CP & COURT LAC, - CAR SEATS (25%),17.50,EQUIPMENT,BICYCLE SHOPS-SALES AND SERVICE
12/09/2018,SE CARE - CP & COURT LAC, - CAR SEATS (25%),17.50,EQUIPMENT,BICYCLE SHOPS-SALES AND SERVICE
12/09/2018,LIBERTAS COMMUNITY HOME,PROVISIONS - NON VAT (100%),20.85,PURCHASE OF FOOD (RAW MATERIALS),SERVICE STATIONS WITH OR WITHOUT ANCILLARY SERVICE
12/09/2018,SW TEACHERS,WWW.ELKLAN.CO.UK,55.00,SUBSCRIPTIONS,SCHOOLS & EDUCATIONAL SVC-NOT ELSEWHERE CLASSIFIED
12/09/2018,STUDENT FARECARD,SURREY CC CARD PAY,-25.00,NON-STAFF RELATED TRANSPORT COSTS,COMPUTER NETWORK/INFORMATION SERVICES
12/09/2018,RUTH HOUSE,WWW.CARWARDENHOUSE.COM,120.00,EDUC VISITS/HOLS/CAMPS/TOYS,"SCHOOLS, ELEMENTARY AND SECONDARY"
12/09/2018,ACL CENTRAL EXPENDITURE,AMZN MKTP UK,16.48,COMPUTER HARDWARE,BOOK STORES
12/09/2018,TARGETED INTERVENTION,ALLSAINTS,4.55,EDUC VISITS/HOLS/CAMPS/TOYS,"EATING PLACES, RESTAURANTS"
12/09/2018,TARGETED INTERVENTION,BOCKETTS FARM PARK,6.90,EDUC VISITS/HOLS/CAMPS/TOYS,TOURIST ATTRACTIONS AND EXHIBITS
12/09/2018,TARGETED INTERVENTION,SAINSBURYS SACAT 0015,9.75,EDUC VISITS/HOLS/CAMPS/TOYS,"GROCERY STORES, SUPERMARKETS"
12/09/2018,TARGETED INTERVENTION,STARBUCKS,12.20,EDUC VISITS/HOLS/CAMPS/TOYS,FAST FOOD RESTAURANTS
12/09/2018,PROGRAMME TEAM,AMZN MKTP UK,81.40,EQUIPMENT,BOOK STORES
12/09/2018,QUADRANT COURT WOKING,AMZN MKTP UK AMAZON.CO,14.85,EQUIPMENT,BOOK STORES
12/09/2018,SW EDUCATION WELFARE OFFICERS,SURREY CC CARD PAY,16.00,STAFF TRAINING,COMPUTER NETWORK/INFORMATION SERVICES
12/09/2018,ACCESS 2 EDUCATION SW NON-MEDICAL,SURREY CC CARD PAY,16.00,STAFF TRAINING,COMPUTER NETWORK/INFORMATION SERVICES
12/09/2018,SW EDUCATION WELFARE OFFICERS,SURREY CC CARD PAY,16.00,STAFF TRAINING,COMPUTER NETWORK/INFORMATION SERVICES
12/09/2018,SW EDUCATION WELFARE OFFICERS,SURREY CC CARD PAY,16.00,STAFF TRAINING,COMPUTER NETWORK/INFORMATION SERVICES
12/09/2018,TRANSPORT,PAYPAL  GB DIYSTORE,5.99,DAY TO DAY MAINTENANCE,HARDWARE STORES
12/09/2018,TRANSPORT,PAYPAL  HENSHAWTIMB,7.99,DAY TO DAY MAINTENANCE,"ANTIQUE SHOPS-SALES,REPAIRS,RESTORATION SERVICES"
12/09/2018,FAIRMOUNT HOUSE LEATHERHEAD,POUNDLAND,6.00,EQUIPMENT,DISCOUNT STORES
12/09/2018,CHEYNE WALK COMMUNITY HOME,APOLLO MOTOR CO,544.74,EXPENSES,AUTOMOTIVE SERVICE SHOPS
12/09/2018,SURREY HILLS AONB,TESCO STORE 2675,53.83,REFRESHMENT COSTS,"GROCERY STORES, SUPERMARKETS"
12/09/2018,FAIRCROFT COMMUNITY HOME,NANDOS,56.00,REFRESHMENT COSTS,"EATING PLACES, RESTAURANTS"
12/09/2018,FAIRCROFT COMMUNITY HOME,MCDONALDS,42.44,REFRESHMENT COSTS,FAST FOOD RESTAURANTS
12/09/2018,BURBANK COMMUNITY HOME,SAINSBURYS TO YOU 0686,189.09,PURCHASE OF FOOD (RAW MATERIALS),"GROCERY STORES, SUPERMARKETS"
12/09/2018,BURBANK COMMUNITY HOME,COSTA COFFEE 43037185,9.55,REFRESHMENT COSTS,FAST FOOD RESTAURANTS
12/09/2018,STUDENT FARECARD,SURREY CC CARD PAY,25.00,NON-STAFF RELATED TRANSPORT COSTS,COMPUTER NETWORK/INFORMATION SERVICES
12/09/2018,BURBANK COMMUNITY HOME,WOKINGHIGH.SURREY.SCH.,450.00,EDUC VISITS/HOLS/CAMPS/TOYS,"SCHOOLS, ELEMENTARY AND SECONDARY"
12/09/2018,FIRE SERVICES IT,AMZN MKTP UK,24.19,COMPUTER HARDWARE,BOOK STORES
12/09/2018,IMT SUPPORT FOR FIRE & RESCUE,AMAZON.CO.UK,81.56,COMPUTER HARDWARE,DIRECT MARKETING-OTHER DIRECT MARKETERS/NOT ELSEW.
12/09/2018,HOPE SERVICE - WEST,SAINSBURYS SACAT 0683,9.90,PURCHASE OF FOOD (RAW MATERIALS),"GROCERY STORES, SUPERMARKETS"
12/09/2018,LOCAL DELIVERY GROUP,DHF PRODUCTS LTD,114.00,EQUIPMENT,COMPUTER SOFTWARE STORES
12/09/2018,WOODLANDS COMMUNITY HOME,"TOILETRIES FOR NN, KD AND JS (72.22%)",10.40,EQUIPMENT,"GROCERY STORES, SUPERMARKETS"
12/09/2018,WOODLANDS COMMUNITY HOME,LUNCH ITEMS (27.78%),4.00,PURCHASE OF FOOD (RAW MATERIALS),"GROCERY STORES, SUPERMARKETS"
12/09/2018,RESOURCES STATIONERY                    ,AMZN MKTP UK,5.80,LIBRARY RESOURCES,BOOK STORES
12/09/2018,PRISON CAPITATION                       ,AMAZON.CO.UK,10.30,LIBRARY RESOURCES,DIRECT MARKETING-OTHER DIRECT MARKETERS/NOT ELSEW.
12/09/2018,ACL CENTRAL EXPENDITURE,AMZN MKTP UK,23.99,EQUIPMENT,BOOK STORES
12/09/2018,ACL CENTRAL EXPENDITURE,AMZN MKTP UK,13.26,EQUIPMENT,BOOK STORES
12/09/2018,ACL CENTRAL EXPENDITURE,AMZN MKTP UK,30.41,EQUIPMENT,BOOK STORES
12/09/2018,ACL CENTRAL EXPENDITURE,AMZN MKTP UK,45.38,EQUIPMENT,BOOK STORES
12/09/2018,ACL CENTRAL EXPENDITURE,AMZN MKTP UK,6.73,EQUIPMENT,BOOK STORES
12/09/2018,BURBANK COMMUNITY HOME,ARGOS COBHAM (INSIDE S,29.99,EQUIPMENT,DISCOUNT STORES
12/09/2018,SOLD ESTATES MANAGEMENT,MOLE VALLEY MOWERS,107.61,UPKEEP OF GROUNDS,LAWN AND GARDEN SUPPLY STORES
12/09/2018,SOLD ESTATES MANAGEMENT,GBW SUPPLIES UK LT,294.42,HEATING OIL & FUEL,"PACKAGE STORES, BEER, WINE, LIQUOR"
12/09/2018,HOPE SERVICE - WEST,AMZN MKTP UK,2.29,E25 CATERING EQUIPMENT,BOOK STORES
12/09/2018,FAMILIES TANDRIDGE,VIRTUAL COLLEGE LIMITE,90.00,TRAINING EXPENSES EXTERNAL GENERAL,SCHOOLS & EDUCATIONAL SVC-NOT ELSEWHERE CLASSIFIED
12/09/2018,ARUNDEL, - FOOD FOR SERVICE USERS (63.13%),11.13,REFRESHMENT COSTS,"GROCERY STORES, SUPERMARKETS"
12/09/2018,ARUNDEL, - FOOD FOR SERVICE USERS (36.87%),6.50,REFRESHMENT COSTS,"GROCERY STORES, SUPERMARKETS"
12/09/2018,TARGETED INTERVENTION,SAINSBURYS 0687,6.50,EDUC VISITS/HOLS/CAMPS/TOYS,"GROCERY STORES, SUPERMARKETS"
12/09/2018,TARGETED INTERVENTION,WWW.BRITISHMUSICEXPERI,32.50,EDUC VISITS/HOLS/CAMPS/TOYS,TOURIST ATTRACTIONS AND EXHIBITS
12/09/2018,TARGETED INTERVENTION,FREEDOM LEISURE,9.20,EDUC VISITS/HOLS/CAMPS/TOYS,GOVERNMENT SERVICES-NOT ELSEWHERE CLASSIFIED
12/09/2018,PE/CDT MAINTENANCE OVERHEADS,POWERHOUSE FITNESS,30.00,ITEMS PURCHASED FOR RE-SALE,SPORTING GOODS STORES
12/09/2018,PE/CDT MAINTENANCE OVERHEADS,HARROD UK SPORT,69.04,ITEMS PURCHASED FOR RE-SALE,"SPORTS APPAREL, RIDING APPAREL STORES"
12/09/2018,PE/CDT MAINTENANCE OVERHEADS,JOHNSON HEALTH TECH UK,94.40,ITEMS PURCHASED FOR RE-SALE,SPORTING GOODS STORES
12/09/2018,DOWNLANDS COUNTRYSIDE PROJECT,WRAYSBURY TYRES,43.20,VEHICLE REPAIRS AND MAINTENANCE,AUTOMOTIVE TIRE STORES
12/09/2018,DOWNLANDS COUNTRYSIDE PROJECT,J H LORIMER,39.99,STATIONERY,"OFFICE, SCHOOL SUPPLY, AND STATIONERY STORES"
12/09/2018,DOWNLANDS COUNTRYSIDE PROJECT,WWW.GISURPLUS.CO.UK,258.00,EQUIPMENT,MISCELLANEOUS AND SPECIALTY RETAIL STORES
12/09/2018,DOWNLANDS COUNTRYSIDE PROJECT,TESCO STORE 3066,106.41,REFRESHMENT COSTS,"GROCERY STORES, SUPERMARKETS"
12/09/2018,ARUNDEL,TESCO STORES 5999,115.56,REFRESHMENT COSTS,"GROCERY STORES, SUPERMARKETS"
12/09/2018,CHEYNE WALK COMMUNITY HOME,AMZN MKTP UK,54.95,EQUIPMENT,BOOK STORES
12/09/2018,COUNTY HALL,POST OFFICE COUNTER,69.20,POSTAGE AND COURIER CHARGES,POSTAL SERVICES-GOVERNMENT ONLY
12/09/2018,COUNTY HALL,AMZN MKTP UK,4.16,EQUIPMENT,BOOK STORES
12/09/2018,COUNTY HALL,AMZN MKTP UK,11.90,EQUIPMENT,BOOK STORES
12/09/2018,KARIBU COMMUNITY HOME,TESCO STORE 2812,412.27,PURCHASE OF FOOD (RAW MATERIALS),"GROCERY STORES, SUPERMARKETS"
12/09/2018,CHEYNE WALK COMMUNITY HOME,TESCO-STORES 6647,250.65,EQUIPMENT,"GROCERY STORES, SUPERMARKETS"
12/09/2018,SE EDUCATION PSYCHOLOGISTS,AMZ BABY CRAFT,-32.80,EQUIPMENT,MISCELLANEOUS AND SPECIALTY RETAIL STORES
12/09/2018,WAVERLEY CMHRS CARE,TRAVELODGE GB0000,906.00,OTHER COMMUNITY CARE PRIV,TRAVELODGE
12/09/2018,IMT MANAGEMENT TEAM,AMZN MKTP UK AMAZON.CO,50.00,STATIONERY,BOOK STORES
12/09/2018,IMT MANAGEMENT TEAM,AMZN MKTP UK AMAZON.CO,59.99,EQUIPMENT,BOOK STORES
12/09/2018,IMT MANAGEMENT TEAM,AMZN MKTP UK AMAZON.CO,59.99,EQUIPMENT,BOOK STORES
12/09/2018,IMT MANAGEMENT TEAM,AMZN MKTP UK AMAZON.CO,59.99,COMPUTER SOFTWARE,BOOK STORES
12/09/2018,IMT MANAGEMENT TEAM,AMZN MKTP UK AMAZON.CO,59.99,EQUIPMENT,BOOK STORES
12/09/2018,IMT MANAGEMENT TEAM,AMZN MKTP UK AMAZON.CO,59.99,COMPUTER SOFTWARE,BOOK STORES
12/09/2018,COMM LRNG & SKILLS,WWW.PUBLICPOLICYEXCHAN,283.20,TRAINING EXPENSES EXTERNAL GENERAL,BUSINESS SERVICES-NOT ELSEWHERE CLASSIFIED
12/09/2018,LOCAL ASSISTANCE SCHEME,WEBSTER FLOORS LTD,490.00,FURNITURE,FLOOR COVERING STORES
12/09/2018,LOCAL ASSISTANCE SCHEME,WWW.ARGOS.CO.UK,51.92,FURNITURE,DISCOUNT STORES
12/09/2018,SOUTH WEST OUTREACH, - ON LINE GROCERY SHOPPING (16.13%),19.20,PURCHASE OF FOOD (RAW MATERIALS),"GROCERY STORES, SUPERMARKETS"
12/09/2018,SOUTH WEST OUTREACH, - ON LINE GROCERY SHOPPING (83.87%),99.85,PURCHASE OF FOOD (RAW MATERIALS),"GROCERY STORES, SUPERMARKETS"
12/09/2018,FACILITIES - EAST,SAINSBURYS 2325,13.60,REFRESHMENT COSTS,"GROCERY STORES, SUPERMARKETS"
12/09/2018,NE CARE - NON-LAC CP & COURT,TRAVELODGE GB0767,420.00,INDEPENDENT LIVING PLACEMENTS,TRAVELODGE
12/09/2018,HILLSIDE,GROCERIES (6.54%),1.79,PURCHASE OF FOOD (RAW MATERIALS),"GROCERY STORES, SUPERMARKETS"
12/09/2018,HILLSIDE,GROCERIES (93.46%),25.56,PURCHASE OF FOOD (RAW MATERIALS),"GROCERY STORES, SUPERMARKETS"
12/09/2018,HILLSIDE,ALDI 34 775,2.90,PURCHASE OF FOOD (RAW MATERIALS),"GROCERY STORES, SUPERMARKETS"
12/09/2018,SPEECH & LANGUAGE THERAPY,AMZN MKTP UK,13.90,EQUIPMENT,BOOK STORES
12/09/2018,TARGETED INTERVENTION,TOP GOLF LTD,20.00,EDUC VISITS/HOLS/CAMPS/TOYS,"CLUBS-CNTRY,MBRSHIP(ATHLET,REC,SPRTS,PRIVATE GOLF"
12/09/2018,TARGETED INTERVENTION,SAINSBURYS 0015,10.00,EDUC VISITS/HOLS/CAMPS/TOYS,"GROCERY STORES, SUPERMARKETS"
12/09/2018,TARGETED INTERVENTION,HORSTED K.TICKET OFFIC,4.00,EDUC VISITS/HOLS/CAMPS/TOYS,TOURIST ATTRACTIONS AND EXHIBITS
12/09/2018,SW CARE - LAC,SURREY CC CARD PAY,11.00,OTHER COMMUNITY CARE VOL,COMPUTER NETWORK/INFORMATION SERVICES
12/09/2018,ACL CENTRAL EXPENDITURE,TESCO STORE 2160,40.09,REFRESHMENT COSTS,"GROCERY STORES, SUPERMARKETS"
12/09/2018,ROW VOLUNTEERS WEST                     ,SCREWFIX DIRECT,109.96,EQUIPMENT,"BUILDING MATERIALS, LUMBER STORES"
12/09/2018,ACL CENTRAL EXPENDITURE,AMZN MKTP UK,2.51,EQUIPMENT,BOOK STORES
12/09/2018,ACL CENTRAL EXPENDITURE,AMZN MKTP UK,8.39,EQUIPMENT,BOOK STORES
12/09/2018,ACL CENTRAL EXPENDITURE,AMZN MKTP UK,8.39,EQUIPMENT,BOOK STORES
12/09/2018,BURBANK COMMUNITY HOME,NETFLIX.COM,7.99,EDUC VISITS/HOLS/CAMPS/TOYS,"CABLE, SATELLITE, OTHER PAY TELEVISION, RADIO SVCS"
13/09/2018,BURBANK COMMUNITY HOME,SUPERCUTS ORACLE,15.95,EDUC VISITS/HOLS/CAMPS/TOYS,BARBER AND BEAUTY SHOPS
13/09/2018,BURBANK COMMUNITY HOME,PRIMARK,6.90,"CLOTHING, UNIFORM AND LAUNDRY",FAMILY CLOTHING STORES
13/09/2018,WASTE DISPOSAL,ARCO LTD,100.80,"CLOTHING, UNIFORM AND LAUNDRY",MEN'S/WOMEN'S/CHILDREN'S UNIFORMS/COMMERCIAL CLOTH
13/09/2018,TRANSPORT,NH VIENNA AIRPORT,253.04,MISCELLANEOUS INSURANCE,"LODGING-HOTELS,MOTELS,RESORTS-NOT CLASSIFIED"
13/09/2018,WAVERLEY LOCALITY TEAM,EBUYER (UK) LTD,110.46,EQUIPMENT,HOUSEHOLD APPLIANCE STORES
13/09/2018,TRANSPORT,NH VIENNA AIRPORT,45.79,MISCELLANEOUS STAFF TRAVEL,"LODGING-HOTELS,MOTELS,RESORTS-NOT CLASSIFIED"
13/09/2018,NW NIL RECOURSE TO PUBLIC FUNDS CARE,THE WOKING HOTEL,931.28,INDEPENDENT LIVING PLACEMENTS,"LODGING-HOTELS,MOTELS,RESORTS-NOT CLASSIFIED"
13/09/2018,RUTH HOUSE,WILKO WOKING,45.55,PURCHASE OF FOOD (RAW MATERIALS),HOUSEHOLD APPLIANCE STORES
13/09/2018,LEAVING CARE PACKAGES,ARGOS RETAIL GROUP,-21.00,EQUIPMENT,DISCOUNT STORES
13/09/2018,BURBANK COMMUNITY HOME,PRIMARK,16.00,"CLOTHING, UNIFORM AND LAUNDRY",FAMILY CLOTHING STORES
13/09/2018,PRISON CAPITATION                       ,AMZN MKTP UK,9.97,LIBRARY RESOURCES,BOOK STORES
13/09/2018,PRISON CAPITATION                       ,AMAZON.CO.UK,7.55,LIBRARY RESOURCES,DIRECT MARKETING-OTHER DIRECT MARKETERS/NOT ELSEW.
13/09/2018,ACL CENTRAL EXPENDITURE,AMZN MKTP UK,.68,EQUIPMENT,BOOK STORES
13/09/2018,ACL CENTRAL EXPENDITURE,AMZN MKTP UK,.68,EQUIPMENT,BOOK STORES
13/09/2018,ACL CENTRAL EXPENDITURE,AMZN MKTP UK,.68,EQUIPMENT,BOOK STORES
13/09/2018,ACL CENTRAL EXPENDITURE,AMZN MKTP UK AMAZON.CO,5.56,EQUIPMENT,BOOK STORES
13/09/2018,OCCUPATIONAL HEALTH,VITALOGRAPH LTD,126.24,EQUIPMENT,"HEALTH PRACTITIONERS, MEDICAL SRVCS-NOT ELSEWHERE"
13/09/2018,SFRS-SERVICE DELIVERY,WWW.INDIGODISPLAYS.CO.,73.08,STATIONERY,"COMMERCIAL ART, GRAPHICS, PHOTOGRAPHY"
13/09/2018,HOPE SERVICE - WEST,AMZN MKTP UK,4.99,E25 CATERING EQUIPMENT,BOOK STORES
13/09/2018,HOPE SERVICE - WEST,REPLACEMENTKEYS.CO.UK,8.95,DAY TO DAY MAINTENANCE,MISCELLANEOUS GENERAL MERCHANDISE
13/09/2018,HOPE SERVICE - WEST,WWW.NISBETS.COM,79.15,E25 CATERING EQUIPMENT,DIRECT MARKETING-CATALOG MERCHANTS
13/09/2018,HAL CONTRACT,MERSEYFLOW,4.00,EXPENSES,"BRIDGE AND ROAD FEES, TOLLS"
13/09/2018,TRANSPORT,ARDENHOTEL.CO.UK,304.20,MISCELLANEOUS STAFF TRAVEL,"EATING PLACES, RESTAURANTS"
13/09/2018,TRANSPORT,ZUGVOGEL,22.34,MISCELLANEOUS STAFF TRAVEL,"EATING PLACES, RESTAURANTS"
13/09/2018,TRANSPORT,APCOA-HAL-SS T3,123.60,EXPENSES,AUTOMOBILE PARKING LOTS AND GARAGES
13/09/2018,DOWNLANDS COUNTRYSIDE PROJECT,DVLA VEHICLE TAX,252.50,VEHICLE RUNNING COSTS,GOVERNMENT SERVICES-NOT ELSEWHERE CLASSIFIED
13/09/2018,ARUNDEL,TESCO STORES 5999,69.82,REFRESHMENT COSTS,"GROCERY STORES, SUPERMARKETS"
13/09/2018,HEAD OF SERVICES FOR YOUNG PEOPLE,AMZN MKTP UK,14.49,EQUIPMENT,BOOK STORES
13/09/2018,PE/CDT MAINTENANCE OVERHEADS,POTCLAYS LTD,785.88,ITEMS PURCHASED FOR RE-SALE,CRYSTAL AND GLASSWARE STORES
13/09/2018,PE/CDT MAINTENANCE OVERHEADS,BEARINGS AND BELTS,38.40,EQUIPMENT,"ARCHITECTURAL, ENGINEERING, AND SURVEYING SERVICES"
13/09/2018,COUNTY HALL,AMZN MKTP UK,15.98,EQUIPMENT,BOOK STORES
13/09/2018,COUNTY HALL,AMZN MKTP UK,3.74,EQUIPMENT,BOOK STORES
13/09/2018,COUNTY HALL,AMZN MKTP UK,5.49,EQUIPMENT,BOOK STORES
13/09/2018,COUNTY HALL,AMZN MKTP UK,8.98,EQUIPMENT,BOOK STORES
13/09/2018,COUNTY HALL,AMAZON.CO.UK,5.99,EQUIPMENT,DIRECT MARKETING-OTHER DIRECT MARKETERS/NOT ELSEW.
13/09/2018,PROPERTY OPERATIONS TEAM,SCREWFIX WALTON ON THA,21.98,PURCHASE OF BUILDING MATERIALS,"BUILDING MATERIALS, LUMBER STORES"
13/09/2018,EARLY YEARS NEEDS,GL-ASSESMENT.CO.UK,475.97,CURRICULUM CONSUMABLES,BOOK STORES
13/09/2018,HILLSIDE,SAINSBURYS 0675,44.55,PURCHASE OF FOOD (RAW MATERIALS),"GROCERY STORES, SUPERMARKETS"
13/09/2018,FAMILIES RUNNYMEDE,AMAZON.CO.UK,100.26,EQUIPMENT,DIRECT MARKETING-OTHER DIRECT MARKETERS/NOT ELSEW.
13/09/2018,YSS YOUTH CENTRE IMPROVEMENTS,ASDA STORES 4823,18.16,EQUIPMENT,"GROCERY STORES, SUPERMARKETS"
13/09/2018,CHEYNE WALK COMMUNITY HOME,AMZN MKTP UK,23.99,EQUIPMENT,BOOK STORES
13/09/2018,IMT MANAGEMENT TEAM,AMZN MKTP UK AMAZON.CO,292.00,STATIONERY,BOOK STORES
13/09/2018,LOCAL ASSISTANCE SCHEME,WEBSTER FLOORS LTD,345.00,FURNITURE,FLOOR COVERING STORES
13/09/2018,SE CARE - LAC,LB CROYDON,12.00,OTHER COMMUNITY CARE VOL,GOVERNMENT SERVICES-NOT ELSEWHERE CLASSIFIED
13/09/2018,TARGETED INTERVENTION,BUCK PALACE RETAIL,8.00,EDUC VISITS/HOLS/CAMPS/TOYS,RECREATION SERVICES (NOT ELSEWHERE CLASSIFIED)
13/09/2018,TARGETED INTERVENTION,ELMBRIDGE BOROUGH COUN,8.00,EDUC VISITS/HOLS/CAMPS/TOYS,AUTOMOBILE PARKING LOTS AND GARAGES
13/09/2018,TARGETED INTERVENTION,TICKETOFFICESALE,46.20,EDUC VISITS/HOLS/CAMPS/TOYS,PASSENGER RAILWAYS
13/09/2018,TARGETED INTERVENTION,FREEDOM LEISURE,8.70,EDUC VISITS/HOLS/CAMPS/TOYS,RECREATION SERVICES (NOT ELSEWHERE CLASSIFIED)
13/09/2018,HOLLAND CLOSE RESIDENTIAL HOME,MCDONALDS,14.93,REFRESHMENT COSTS,FAST FOOD RESTAURANTS
13/09/2018,ROW AREA3 MV EPS ELM                    ,RYALL & EDWARDS LTD,66.90,EQUIPMENT,"BUILDING MATERIALS, LUMBER STORES"
13/09/2018,LEAP SURREY HEATH,AMZN MKTP UK,3.98,EDUC VISITS/HOLS/CAMPS/TOYS,BOOK STORES
13/09/2018,FAMILIES SPELTHORNE,AMAZON.CO.UK,10.55,BOOKS,DIRECT MARKETING-OTHER DIRECT MARKETERS/NOT ELSEW.
13/09/2018,FAMILIES SPELTHORNE,AMAZON.CO.UK,66.81,BOOKS,DIRECT MARKETING-OTHER DIRECT MARKETERS/NOT ELSEW.
13/09/2018,EXTENDED HOPE,AMZN MKTP UK,10.99,CURRICULUM CONSUMABLES,BOOK STORES
13/09/2018,EXTENDED HOPE,TESCO STORE 2590,114.89,PURCHASE OF FOOD (RAW MATERIALS),"GROCERY STORES, SUPERMARKETS"
13/09/2018,BURBANK COMMUNITY HOME,SAINSBURYS 0802,1.10,PURCHASE OF FOOD (RAW MATERIALS),"GROCERY STORES, SUPERMARKETS"
13/09/2018,BURBANK COMMUNITY HOME,THE ENTERTAINER 99,15.50,EDUC VISITS/HOLS/CAMPS/TOYS,"GAME, TOY, AND HOBBY SHOPS"
13/09/2018,BURBANK COMMUNITY HOME,3C_ WOKING BOROUGH COU,2.80,EDUC VISITS/HOLS/CAMPS/TOYS,AUTOMOBILE PARKING LOTS AND GARAGES
13/09/2018,BURBANK COMMUNITY HOME,MILLIES COOKIES,2.59,PURCHASE OF FOOD (RAW MATERIALS),FAST FOOD RESTAURANTS
13/09/2018,BURBANK COMMUNITY HOME,BOOTS 2142,2.62,EQUIPMENT,"DRUG STORES, PHARMACIES"
13/09/2018,HEALTH EDU KENT SURREY @ SUSSEX,WWW.APPITIERRE.COM,118.80,COMPUTER SOFTWARE,SCHOOLS & EDUCATIONAL SVC-NOT ELSEWHERE CLASSIFIED
13/09/2018,KARIBU COMMUNITY HOME,SCOUT & GUIDE SHOP,84.00,"CLOTHING, UNIFORM AND LAUNDRY",WOMEN'S ACCESSORY AND SPECIALTY STORES
13/09/2018,HAVEN GUILDFORD,THE SHOP AT STROOD GRE,10.00,REFRESHMENT COSTS,"GROCERY STORES, SUPERMARKETS"
13/09/2018,FAMILIES TANDRIDGE,WAITROSE 838,5.13,PURCHASE OF FOOD (RAW MATERIALS),"GROCERY STORES, SUPERMARKETS"
13/09/2018,FAMILIES TANDRIDGE,ALDI 72 776,15.31,PURCHASE OF FOOD (RAW MATERIALS),"GROCERY STORES, SUPERMARKETS"
13/09/2018,NW CARE - CP & COURT LAC,WWW.ARGOS.CO.UK,324.98,OTHER COMMUNITY CARE VOL,DISCOUNT STORES
13/09/2018,NW CARE - CP & COURT LAC,AO RETAIL LIMITED,219.00,EQUIPMENT,HOUSEHOLD APPLIANCE STORES
13/09/2018,SW CARE - CP & COURT LAC,SURREY CC CARD PAY,12.00,OTHER COMMUNITY CARE VOL,COMPUTER NETWORK/INFORMATION SERVICES
13/09/2018,SW CARE - NON-LAC CP & COURT,SURREY CC CARD PAY,11.00,OTHER COMMUNITY CARE VOL,COMPUTER NETWORK/INFORMATION SERVICES
13/09/2018,SW CARE - NON-LAC CP & COURT,SURREY CC CARD PAY,11.00,OTHER COMMUNITY CARE VOL,COMPUTER NETWORK/INFORMATION SERVICES
13/09/2018,SW CARE - CP & COURT LAC,SURREY CC CARD PAY,12.00,OTHER COMMUNITY CARE VOL,COMPUTER NETWORK/INFORMATION SERVICES
13/09/2018,PSSS HEARING IMPAIRED,AMZN MKTP UK,18.12,EQUIPMENT,BOOK STORES
13/09/2018,IMT CRITICAL ENVIRONMENTS,AMAZON.CO.UK,16.00,CLEANING MATERIALS,DIRECT MARKETING-OTHER DIRECT MARKETERS/NOT ELSEW.
13/09/2018,RUTH HOUSE,3C_ WOKING BOROUGH COU,1.40,VEHICLE RUNNING COSTS,AUTOMOBILE PARKING LOTS AND GARAGES
13/09/2018,TARGETED INTERVENTION,HORIZON PARKING LTD,4.00,EDUC VISITS/HOLS/CAMPS/TOYS,AUTOMOBILE PARKING LOTS AND GARAGES
13/09/2018,COVEHAM,SAINSBURYS TO YOU 0687,39.00,CLEANING MATERIALS,"GROCERY STORES, SUPERMARKETS"
13/09/2018,HOPE SERVICE - WEST,SAINSBURYS TO YOU 0686,40.85,PURCHASE OF FOOD (RAW MATERIALS),"GROCERY STORES, SUPERMARKETS"
13/09/2018,QUADRANT COURT WOKING,AMAZON.CO.UK,24.99,EQUIPMENT,DIRECT MARKETING-OTHER DIRECT MARKETERS/NOT ELSEW.
13/09/2018,FAMILIES ELMBRIDGE,TOPS PIZZA WALTON ON T,21.99,REFRESHMENT COSTS,FAST FOOD RESTAURANTS
13/09/2018,ACL CENTRAL EXPENDITURE,THE ENTERTAINER 30,8.00,EQUIPMENT,"GAME, TOY, AND HOBBY SHOPS"
13/09/2018,ACL CENTRAL EXPENDITURE,WH SMITH,13.44,EQUIPMENT,NEWS DEALERS AND NEWSSTANDS
13/09/2018,ACCESS 2 EDUCATION SW NON-MEDICAL,SURREY CC CARD PAY,16.00,STAFF TRAINING,COMPUTER NETWORK/INFORMATION SERVICES
13/09/2018,DOWNLANDS COUNTRYSIDE PROJECT,MOLE COUNTRY STORES,24.48,EQUIPMENT,AGRICULTURAL COOPERATIVES
13/09/2018,DOWNLANDS COUNTRYSIDE PROJECT,WICKES,24.00,PURCHASE OF BUILDING MATERIALS,"BUILDING MATERIALS, LUMBER STORES"
13/09/2018,TRANSPORT,PAYPAL  SOPHIABARGA,3.95,DAY TO DAY MAINTENANCE,DISCOUNT STORES
13/09/2018,TRANSPORT,PAYPAL  LIYULAN,12.44,EQUIPMENT,WOMEN'S READY TO WEAR STORES
13/09/2018,CHMHS RAP TEAM,BIG ART AND BANNERS,52.14,EDUC VISITS/HOLS/CAMPS/TOYS,MISCELLANEOUS PUBLISHING AND PRINTING
13/09/2018,TRANSPORT,ALBERT JAGGER LTD VT,77.04,VEHICLE REPAIRS AND MAINTENANCE,"AUTOMOTIVE PARTS, ACCESSORIES STORES"
13/09/2018,BURBANK COMMUNITY HOME,3C_ WOKING BOROUGH COU,2.80,EDUC VISITS/HOLS/CAMPS/TOYS,AUTOMOBILE PARKING LOTS AND GARAGES
13/09/2018,BURBANK COMMUNITY HOME,MCDONALDS,5.27,REFRESHMENT COSTS,"EATING PLACES, RESTAURANTS"
13/09/2018,SOLD DAY TO DAY OPERATIONS,TESCO-STORES 2590,1.61,PURCHASE OF FOOD (RAW MATERIALS),"GROCERY STORES, SUPERMARKETS"
13/09/2018,BURBANK COMMUNITY HOME,ROBERT DYAS HOLDNG LTD,54.89,EQUIPMENT,HARDWARE STORES
13/09/2018,WOODLANDS COMMUNITY HOME,KITCHEN MUGS (19.78%),8.00,EQUIPMENT,"GROCERY STORES, SUPERMARKETS"
13/09/2018,WOODLANDS COMMUNITY HOME,FOIL/CLING FILM (37.58%),15.20,EQUIPMENT,"GROCERY STORES, SUPERMARKETS"
13/09/2018,WOODLANDS COMMUNITY HOME,PROVISIONS (42.65%),17.25,PURCHASE OF FOOD (RAW MATERIALS),"GROCERY STORES, SUPERMARKETS"
13/09/2018,ACCESS 2 EDUCATION NE NON-MEDICAL,WWW.POWEROF2.CO.UK,8.40,EQUIPMENT,MISCELLANEOUS PUBLISHING AND PRINTING
13/09/2018,ACCESS 2 EDUCATION NE NON-MEDICAL,WWW.RYMAN.CO.UK,43.93,STATIONERY,"OFFICE, SCHOOL SUPPLY, AND STATIONERY STORES"
13/09/2018,NE EDUCATION PSYCHOLOGISTS,BOOKPOINT LIMITED,58.50,BOOKS,"BOOKS,PERIODICALS AND NEWSPAPERS"
13/09/2018,WOODLANDS COMMUNITY HOME,WWW.MEDIPOST.CO.UK,30.00,BOOKS,"HEALTH PRACTITIONERS, MEDICAL SRVCS-NOT ELSEWHERE"
13/09/2018,HOPE SERVICE - WEST,SAINSBURYS LOC 4409,3.50,PURCHASE OF FOOD (RAW MATERIALS),"GROCERY STORES, SUPERMARKETS"
13/09/2018,SOLD ESTATES MANAGEMENT,CROWBOROUGH COACHW,717.51,VEHICLE REPAIRS AND MAINTENANCE,AUTOMOTIVE SERVICE SHOPS
13/09/2018,TRAINING DELIVERY STAFF COSTS,AMZ COJOIE,-20.48,COMPUTER HARDWARE,MISCELLANEOUS AND SPECIALTY RETAIL STORES
14/09/2018,PASSENGER TRANSPORT CO-ORDINATION CENTRE,HALFORDS ON LINE,75.00,EQUIPMENT,BICYCLE SHOPS-SALES AND SERVICE
14/09/2018,WASTE DISPOSAL,WWW.ARCO.CO.UK,100.80,"CLOTHING, UNIFORM AND LAUNDRY",INDUSTRIAL SUPPLIES NOT ELSEWHERE CLASSIFIED
14/09/2018,APPLEWOOD,ASDA GROCERIES ONLINE,-.66,PURCHASE OF FOOD (RAW MATERIALS),"GROCERY STORES, SUPERMARKETS"
14/09/2018,NE EDUCATION PSYCHOLOGISTS,GL-ASSESMENT.CO.UK,58.67,BOOKS,BOOK STORES
14/09/2018,PASSENGER TRANSPORT CO-ORDINATION CENTRE,HALFORDS ON LINE,240.00,EQUIPMENT,BICYCLE SHOPS-SALES AND SERVICE
14/09/2018,SCHOOLS AND LEARNING,IW GROUP SERVICES (UK),228.00,TRAINING EXPENSES EXTERNAL GENERAL,REAL ESTATE AGENTS AND MANAGERS-RENTALS
14/09/2018,LIBERTAS COMMUNITY HOME,GUILDFORD COBBLERS,15.00,3RD PARTY PAYMENTS PRIVATE INDIV,"HAT CLEANING SHOPS, SHOE REPAIR SHOPS, SHOE SHINE"
14/09/2018,LIBERTAS COMMUNITY HOME,HOUSE OF FRASER,18.00,3RD PARTY PAYMENTS PRIVATE INDIV,DEPARTMENT STORES
14/09/2018,ACL CENTRAL EXPENDITURE,TEXTMARKETER,90.00,PUBLICITY,COMPUTER SOFTWARE STORES
14/09/2018,TRANSPORT,WILSONS EPSOM,331.12,VEHICLE REPAIRS AND MAINTENANCE,AUTOMOTIVE SERVICE SHOPS
14/09/2018,ACL CENTRAL EXPENDITURE,TEXTMARKETER,90.00,PUBLICITY,COMPUTER SOFTWARE STORES
14/09/2018,BOOKS - ADULT NON-FICTION               ,AMZN MKTP UK,3.79,LIBRARY RESOURCES,BOOK STORES
14/09/2018,PSSS ICT SUPPORT,AMZN MKTP UK AMAZON.CO,33.97,EQUIPMENT,BOOK STORES
14/09/2018,TRANSPORT,AMZN MKTP UK,32.50,EQUIPMENT,BOOK STORES
14/09/2018,ARUNDEL,TESCO STORES 5999,148.97,REFRESHMENT COSTS,"GROCERY STORES, SUPERMARKETS"
14/09/2018,HILLSIDE,SAINSBURYS SACAT 0675,65.84,PURCHASE OF FOOD (RAW MATERIALS),"GROCERY STORES, SUPERMARKETS"
14/09/2018,HILLSIDE,GROCERIES (6.27%),12.30,PURCHASE OF FOOD (RAW MATERIALS),"GROCERY STORES, SUPERMARKETS"
14/09/2018,HILLSIDE,GROCERIES (93.73%),183.81,PURCHASE OF FOOD (RAW MATERIALS),"GROCERY STORES, SUPERMARKETS"
14/09/2018,FAMILIES WOKING,SP   VIP GRAFFITI PAIN,127.70,EQUIPMENT,COMPUTER SOFTWARE STORES
14/09/2018,FAMILIES REIGATE AND BANSTREAD,CO-OP GROUP 310390,7.14,PURCHASE OF FOOD (RAW MATERIALS),"GROCERY STORES, SUPERMARKETS"
14/09/2018,FAIRCROFT COMMUNITY HOME,SAINSBURYS SACAT 0687,14.66,EQUIPMENT,"GROCERY STORES, SUPERMARKETS"
14/09/2018,TANDRIDGE CMHRS CARE,HMCTS-SURREY125,75.00,FEES,FINES
14/09/2018,IMT MANAGEMENT TEAM,AMZN MKTP UK,584.97,FURNITURE,BOOK STORES
14/09/2018,DEVELOPMENT TEAM,MSFT  <E01006HAJT>,149.05,COMPUTER SOFTWARE,"COMPUTERS, COMPUTER PERIPHERAL EQUIPMENT, SOFTWARE"
14/09/2018,HOLLAND CLOSE RESIDENTIAL HOME,SP   WOW SOFA,-65.80,FURNITURE,COMPUTER SOFTWARE STORES
14/09/2018,LIBERTAS COMMUNITY HOME,F HINDS LTD,49.05,EDUC VISITS/HOLS/CAMPS/TOYS,"CLOCK, JEWELRY, WATCH, AND SILVERWARE STORE"
14/09/2018,LOCAL ASSISTANCE SCHEME,WEBSTER FLOORS LTD,300.00,FURNITURE,FLOOR COVERING STORES
14/09/2018,NATIONAL TRADING STANDARDS SCAM TEAM,HOTEL ON BOOKING.COM,70.00,EXPENSES,"LODGING-HOTELS,MOTELS,RESORTS-NOT CLASSIFIED"
14/09/2018,LOCAL ASSISTANCE SCHEME,WEBSTER FLOORS LTD,300.00,FURNITURE,FLOOR COVERING STORES
14/09/2018,SE CARE - NON-LAC CP & COURT,HANDY SERVICES LTD,120.00,OTHER COMMUNITY CARE VOL,"FREIGHT CARRIER,TRUCKING-LCL/LNG DIST, MVG/STORAGE"
14/09/2018,SE CARE - LAC,SURREY CC CARD PAY,31.00,OTHER COMMUNITY CARE VOL,COMPUTER NETWORK/INFORMATION SERVICES
14/09/2018,NEYWORK RESILENCE TEAM,WWW.SOUTHSURVEY.CO.UK,468.00,EQUIPMENT,"ARCHITECTURAL, ENGINEERING, AND SURVEYING SERVICES"
14/09/2018,LEAP SURREY HEATH,AMZN MKTP UK,82.45,EDUC VISITS/HOLS/CAMPS/TOYS,BOOK STORES
14/09/2018,KARIBU COMMUNITY HOME,D W STEVENSON,79.00,"CLOTHING, UNIFORM AND LAUNDRY",FAMILY CLOTHING STORES
14/09/2018,CORPORATE GROUP - LEGAL SERVICES,ELIOR@WEST SUSSEX COUN,14.34,REFRESHMENT COSTS,CATERERS
14/09/2018,SW CARE - CP & COURT LAC,KENDALL CARS LEATHERHE,40.00,REMOVAL EXPENSES,AUTOMOBILE RENTAL AGENCY-NOT ELSEWHERE CLASSIFIED
14/09/2018,ARUNDEL,ROYAL ALBERT HALL,50.00,EDUC VISITS/HOLS/CAMPS/TOYS,"THEATRICAL PRODUCERS(EXCL MOTION PIX),TICKET AGNCY"
14/09/2018,ARUNDEL,CHURCHILLTHEATRE.C,388.50,EDUC VISITS/HOLS/CAMPS/TOYS,"THEATRICAL PRODUCERS(EXCL MOTION PIX),TICKET AGNCY"
14/09/2018,WOODLANDS COMMUNITY HOME,PROVISIONS (11.27%),24.27,PURCHASE OF FOOD (RAW MATERIALS),"GROCERY STORES, SUPERMARKETS"
14/09/2018,WOODLANDS COMMUNITY HOME,PROVISIONS (88.73%),191.01,PURCHASE OF FOOD (RAW MATERIALS),"GROCERY STORES, SUPERMARKETS"
14/09/2018,SW CARE - CP & COURT LAC,PREMIER INN44011295,91.00,INDEPENDENT LIVING PLACEMENTS,PREMIER INN
14/09/2018,SW CARE - CP & COURT LAC,GCC - REGISTRARS,15.65,OTHER COMMUNITY CARE VOL,GOVERNMENT SERVICES-NOT ELSEWHERE CLASSIFIED
14/09/2018,WEST CWD NON-LAC CARE,WWW.SACOAPARTMENTS.CO.,"2,433.60",INDEPENDENT LIVING PLACEMENTS,"LODGING-HOTELS,MOTELS,RESORTS-NOT CLASSIFIED"
14/09/2018,ASSET PLANNING - OPERATIONS,POST OFFICE COUNTER,26.28,POSTAGE AND COURIER CHARGES,POSTAL SERVICES-GOVERNMENT ONLY
14/09/2018,ASSET PLANNING - OPERATIONS,PP SHELBROOKEA,25.00,EQUIPMENT,AUTOMOTIVE TIRE STORES
14/09/2018,RUTH HOUSE,G J HONOUR,160.46,PURCHASE OF FOOD (RAW MATERIALS),"MISC FOOD STORE-CONVENIENCE,MRKT,SPLTY,VENDNG MACS"
14/09/2018,CHEYNE WALK COMMUNITY HOME,TESCO STORE 2560,41.52,PURCHASE OF FOOD (RAW MATERIALS),"GROCERY STORES, SUPERMARKETS"
14/09/2018,RUTH HOUSE, - SAINSBURY'S FOOD DELIVERY FOR YOUNG PEOPLE (31.77%),61.60,PURCHASE OF FOOD (RAW MATERIALS),"GROCERY STORES, SUPERMARKETS"
14/09/2018,RUTH HOUSE, - SAINSBURY'S FOOD DELIVERY FOR YOUNG PEOPLE (68.23%),132.30,PURCHASE OF FOOD (RAW MATERIALS),"GROCERY STORES, SUPERMARKETS"
14/09/2018,IMT CRITICAL ENVIRONMENTS,AMZN MKTP UK,23.58,CLEANING MATERIALS,BOOK STORES
14/09/2018,RUTH HOUSE,INNOVATE SERVICES LTD,140.90,PURCHASE OF FOOD (RAW MATERIALS),CATERERS
14/09/2018,TARGETED INTERVENTION,HORIZON PARKING LTD,4.00,EDUC VISITS/HOLS/CAMPS/TOYS,AUTOMOBILE PARKING LOTS AND GARAGES
14/09/2018,IMT CRITICAL ENVIRONMENTS,MILK&MORE,7.80,REFRESHMENT COSTS,DAIRY PRODUCTS STORES
14/09/2018,TARGETED INTERVENTION,FREEDOM LEISURE,6.55,EDUC VISITS/HOLS/CAMPS/TOYS,GOVERNMENT SERVICES-NOT ELSEWHERE CLASSIFIED
14/09/2018,LIBERTAS COMMUNITY HOME,EQUIPMENT VAT (6.05%),8.00,EQUIPMENT,"GROCERY STORES, SUPERMARKETS"
14/09/2018,LIBERTAS COMMUNITY HOME,PROVISIONS VAT (9.04%),11.95,PURCHASE OF FOOD (RAW MATERIALS),"GROCERY STORES, SUPERMARKETS"
14/09/2018,LIBERTAS COMMUNITY HOME,PROVISIONS NON VAT (84.91%),112.24,PURCHASE OF FOOD (RAW MATERIALS),"GROCERY STORES, SUPERMARKETS"
14/09/2018,ACL CENTRAL EXPENDITURE,AMZN MKTP UK,41.10,EQUIPMENT,BOOK STORES
14/09/2018,SW TEACHERS,SURREY CC CARD PAY,16.00,TRAINING EXPENSES EXTERNAL GENERAL,COMPUTER NETWORK/INFORMATION SERVICES
14/09/2018,CS BUSINESS SUPPORT WEST,MILK&MORE,14.10,REFRESHMENT COSTS,DAIRY PRODUCTS STORES
14/09/2018,HOPE SERVICE - WEST,WELCOME BREAK STARBUCK,8.78,REFRESHMENT COSTS,"MISC FOOD STORE-CONVENIENCE,MRKT,SPLTY,VENDNG MACS"
14/09/2018,PROPERTY OPERATIONS TEAM,SCREWFIX GUILFORD WOOD,37.96,PURCHASE OF BUILDING MATERIALS,"BUILDING MATERIALS, LUMBER STORES"
14/09/2018,CHEYNE WALK COMMUNITY HOME,TESCO STORE 2560,145.99,EQUIPMENT,"GROCERY STORES, SUPERMARKETS"
14/09/2018,APPLEWOOD,ASDA GROCERIES ONLINE,128.91,PURCHASE OF FOOD (RAW MATERIALS),"GROCERY STORES, SUPERMARKETS"
14/09/2018,NW CARE - LAC,GRO HM PASSPORT OFFICE,234.00,OTHER COMMUNITY CARE VOL,GOVERNMENT SERVICES-NOT ELSEWHERE CLASSIFIED
14/09/2018,NW CARE - LAC,SURREY CC CARD PAY,11.00,OTHER COMMUNITY CARE VOL,COMPUTER NETWORK/INFORMATION SERVICES
14/09/2018,SW CARE - CP & COURT LAC,SURREY CC CARD PAY,12.00,OTHER COMMUNITY CARE VOL,COMPUTER NETWORK/INFORMATION SERVICES
14/09/2018,SE CARE - CP & COURT LAC,TRAVELODGE GB0000,990.00,CHILDREN ACT SEC 17 PAYMENTS,TRAVELODGE
14/09/2018,HERITAGE PUBLIC SERVICE,W M MORRISONS,11.81,REFRESHMENT COSTS,"GROCERY STORES, SUPERMARKETS"
14/09/2018,HERITAGE STEWARDSHIP AND PRESERVATION,W M MORRISONS,1.60,NEWSPAPER AND PERIODICALS,"GROCERY STORES, SUPERMARKETS"
14/09/2018,FAMILIES SPELTHORNE,AMAZON.CO.UK,12.48,BOOKS,DIRECT MARKETING-OTHER DIRECT MARKETERS/NOT ELSEW.
14/09/2018,PRISON CAPITATION                       ,AMAZON.CO.UK,23.75,LIBRARY RESOURCES,DIRECT MARKETING-OTHER DIRECT MARKETERS/NOT ELSEW.
14/09/2018,PRISON CAPITATION                       ,AMAZON.CO.UK,9.48,LIBRARY RESOURCES,DIRECT MARKETING-OTHER DIRECT MARKETERS/NOT ELSEW.
15/09/2018,HILLSIDE,SAINSBURYS SACAT 0675,28.90,PURCHASE OF FOOD (RAW MATERIALS),"GROCERY STORES, SUPERMARKETS"
15/09/2018,FAIRCROFT COMMUNITY HOME,HOBBYCRAFT,13.75,EQUIPMENT,"ARTIST SUPPLY STORES, CRAFT SHOPS"
15/09/2018,HILLSIDE,DEICHMANN SE 0087,15.04,"CLOTHING, UNIFORM AND LAUNDRY",SHOE STORES
15/09/2018,HILLSIDE,THE CLARKS SHOP,55.00,"CLOTHING, UNIFORM AND LAUNDRY",SHOE STORES
15/09/2018,BURBANK COMMUNITY HOME,AMAZON.CO.UK,65.94,EDUC VISITS/HOLS/CAMPS/TOYS,DIRECT MARKETING-OTHER DIRECT MARKETERS/NOT ELSEW.
15/09/2018,RUTH HOUSE,DUNELM LTD,43.99,EQUIPMENT,"DRAPERY, UPOLSTERY, AND WINDOW COVERINGS STORES"
15/09/2018,NATIONAL TRADING STANDARDS SCAM TEAM,HOTEL ON BOOKING.COM,-70.00,EXPENSES,"LODGING-HOTELS,MOTELS,RESORTS-NOT CLASSIFIED"
15/09/2018,BURBANK COMMUNITY HOME,THE PARTY SHOP LTD,2.99,EQUIPMENT,MISCELLANEOUS AND SPECIALTY RETAIL STORES
15/09/2018,SW CARE - CP & COURT LAC,KENDALL CARS LEATHERHE,-200.00,REMOVAL EXPENSES,AUTOMOBILE RENTAL AGENCY-NOT ELSEWHERE CLASSIFIED
15/09/2018,NW CARE - CP & COURT LAC,NATIONAL EXPRESS LIMIT,65.10,NON-STAFF RELATED TRANSPORT COSTS,BUS LINES
15/09/2018,ACL CENTRAL EXPENDITURE,AMZN MKTP UK,7.52,DAY TO DAY MAINTENANCE,BOOK STORES
15/09/2018,FIRE SERVICES IT,AMZN MKTP UK,8.28,COMPUTER HARDWARE,BOOK STORES
15/09/2018,HILLSIDE,DEICHMANN SE 0087,-15.04,"CLOTHING, UNIFORM AND LAUNDRY",SHOE STORES
15/09/2018,FAIRCROFT COMMUNITY HOME,SAINSBURYS 0687,29.32,PURCHASE OF FOOD (RAW MATERIALS),"GROCERY STORES, SUPERMARKETS"
15/09/2018,ACL CENTRAL EXPENDITURE,CLUSKEYS CCP LTD,8.52,REFRESHMENT COSTS,MISCELLANEOUS GENERAL MERCHANDISE
15/09/2018,HOLLAND CLOSE RESIDENTIAL HOME,TESCO-STORES 6647,191.40,PURCHASE OF FOOD (RAW MATERIALS),"GROCERY STORES, SUPERMARKETS"
15/09/2018,CENTRAL COMMUNICATIONS,GOOGLE  ADS2060179426,500.00,PUBLICITY,DIRECT MARKETING-CONTINUITY/SUBSCRIPTION MERCHANTS
15/09/2018,BURBANK COMMUNITY HOME,W M MORRISONS,2.00,PURCHASE OF FOOD (RAW MATERIALS),"GROCERY STORES, SUPERMARKETS"
16/09/2018,WOODLANDS COMMUNITY HOME,MEDICAL SUPPLIES (28.72%),18.26,EQUIPMENT,BOOK STORES
16/09/2018,WOODLANDS COMMUNITY HOME,GARDEN LIGHTS (71.28%),45.32,UPKEEP OF GROUNDS,BOOK STORES
16/09/2018,FIRE SERVICES IT,WWW.GATWICKAIRPORT.COM,36.00,MISCELLANEOUS STAFF TRAVEL,AUTOMOBILE PARKING LOTS AND GARAGES
16/09/2018,FAIRCROFT COMMUNITY HOME,SAINSBURYS PFS0473,4.50,PURCHASE OF FOOD (RAW MATERIALS),SERVICE STATIONS WITH OR WITHOUT ANCILLARY SERVICE
16/09/2018,FAIRCROFT COMMUNITY HOME,KFC,16.07,REFRESHMENT COSTS,FAST FOOD RESTAURANTS
16/09/2018,FAIRCROFT COMMUNITY HOME,MOBILEBITZ,9.00,TELECOMMUNICATION CHARGES,ELECTRONIC REPAIR SHOPS
16/09/2018,FAIRCROFT COMMUNITY HOME,ODEON UPT,17.50,EDUC VISITS/HOLS/CAMPS/TOYS,MOTION PICTURE THEATERS
16/09/2018,FAIRCROFT COMMUNITY HOME,ODEON,12.50,EDUC VISITS/HOLS/CAMPS/TOYS,MOTION PICTURE THEATERS
16/09/2018,FAIRCROFT COMMUNITY HOME,MCDONALDS,14.56,REFRESHMENT COSTS,FAST FOOD RESTAURANTS
16/09/2018,FAIRCROFT COMMUNITY HOME,MCDONALDS,2.58,REFRESHMENT COSTS,FAST FOOD RESTAURANTS
16/09/2018,FAIRCROFT COMMUNITY HOME,MCDONALDS,31.18,REFRESHMENT COSTS,FAST FOOD RESTAURANTS
16/09/2018,C&C DIRECTORATE SUPPORT,AMZN MKTP UK,10.08,EQUIPMENT,BOOK STORES
16/09/2018,HIGHWAYS INFORMATION TEAM,AMZN MKTP UK,22.34,EQUIPMENT,BOOK STORES
16/09/2018,HAVEN GUILDFORD,SAINSBURYS SACAT 0828,10.55,PURCHASE OF FOOD (RAW MATERIALS),"GROCERY STORES, SUPERMARKETS"
16/09/2018,ACT,AMZN MKTP UK,61.47,CLEANING AND DOMESTIC SUPPLIES,BOOK STORES
16/09/2018,SURREY ARTS GENERAL,WOUND DRESSINGS - SURREY ARTS (23.19%),6.25,EQUIPMENT,BOOK STORES
16/09/2018,SURREY ARTS GENERAL,PLASTERS - SURREY ARTS (18.22%),4.91,EQUIPMENT,BOOK STORES
16/09/2018,SURREY ARTS GENERAL,NITRILE GLOVES - SURREY ARTS (37.07%),9.99,EQUIPMENT,BOOK STORES
16/09/2018,SURREY ARTS GENERAL,KOOLPAK - SURREY ARTS (21.52%),5.80,EQUIPMENT,BOOK STORES
16/09/2018,BURBANK COMMUNITY HOME,W M MORRISONS,10.00,EQUIPMENT,"GROCERY STORES, SUPERMARKETS"
16/09/2018,WOODLANDS COMMUNITY HOME,TOILETRIES  JS (9.56%),5.50,EQUIPMENT,"GROCERY STORES, SUPERMARKETS"
16/09/2018,WOODLANDS COMMUNITY HOME,CLOTHING  JS (90.44%),52.05,"CLOTHING, UNIFORM AND LAUNDRY","GROCERY STORES, SUPERMARKETS"
16/09/2018,WOODLANDS COMMUNITY HOME,PC WORLD ONLINE,109.99,EQUIPMENT,ELECTRONIC SALES
16/09/2018,CHEYNE WALK COMMUNITY HOME,AMAZON.CO.UK,26.89,BOOKS,DIRECT MARKETING-OTHER DIRECT MARKETERS/NOT ELSEW.
16/09/2018,CENTRAL COMMUNICATIONS,FACEBK P7YT4JWZR2,600.00,PUBLICITY,ADVERTISING SERVICES
16/09/2018,FAMILIES WOKING,AMAZON.CO.UK,41.87,EQUIPMENT,DIRECT MARKETING-OTHER DIRECT MARKETERS/NOT ELSEW.
16/09/2018,LEAP SURREY HEATH,AMZN MKTP UK,37.26,EDUC VISITS/HOLS/CAMPS/TOYS,BOOK STORES
17/09/2018,CHMHS RAP TEAM,OPEN UNIVERSITY,"-2,040.00",EDUC VISITS/HOLS/CAMPS/TOYS,"COLLEGES, UNIV, PRO SCHOOLS, JUNIOR COLLEGES"
17/09/2018,FACILITIES - EAST,TVLICENSING.CO.UK,150.50,LICENCE FEES,"CONSULTING, MANAGEMENT, AND PUBLIC RELATIONS SVCS"
17/09/2018,CHEYNE WALK COMMUNITY HOME,AMZN MKTP UK AMAZON.CO,6.99,EQUIPMENT,BOOK STORES
17/09/2018,TRAFFIC MANAGEMENT,TVLICENSING.CO.UK,150.50,LICENCE FEES,"CONSULTING, MANAGEMENT, AND PUBLIC RELATIONS SVCS"
17/09/2018,NATIONAL TRADING STANDARDS SCAM TEAM,PREMIER INN 44537785,243.00,EXPENSES,PREMIER INN
17/09/2018,FAMILIES SPELTHORNE,TESCO STORES-2047,16.58,REFRESHMENT COSTS,"GROCERY STORES, SUPERMARKETS"
17/09/2018,CHMHS RAP TEAM,OPEN UNIVERSITY,"2,040.00",EDUC VISITS/HOLS/CAMPS/TOYS,"COLLEGES, UNIV, PRO SCHOOLS, JUNIOR COLLEGES"
17/09/2018,FIRE SERVICES IT,AMZN MKTP UK AMAZON.CO,21.26,COMPUTER CONSUMABLES,BOOK STORES
17/09/2018,HOPE SERVICE - WEST,TVLICENSING.CO.UK,150.50,LICENCE FEES,"CONSULTING, MANAGEMENT, AND PUBLIC RELATIONS SVCS"
17/09/2018,EXTENDED HOPE,TVLICENSING.CO.UK,150.50,LICENCE FEES,"CONSULTING, MANAGEMENT, AND PUBLIC RELATIONS SVCS"
17/09/2018,ACL CENTRAL EXPENDITURE,TESCO STORE 2160,68.45,REFRESHMENT COSTS,"GROCERY STORES, SUPERMARKETS"
17/09/2018,ACL CENTRAL EXPENDITURE,POUNDLAND LTD 1749,13.00,REFRESHMENT COSTS,DISCOUNT STORES
17/09/2018,CORE ACTIVITY                           ,MAILCHIMP    MONTHLY,38.59,COMPUTER SOFTWARE,DIRECT MARKETING-CONTINUITY/SUBSCRIPTION MERCHANTS
17/09/2018,CHMHS RAP TEAM,MIXAM UK LTD,"1,010.00",PRINTING,MISCELLANEOUS PUBLISHING AND PRINTING
17/09/2018,TRANSPORT,LIDL UK  LEATHERHEAD,11.98,DAY TO DAY MAINTENANCE,"GROCERY STORES, SUPERMARKETS"
17/09/2018,CHMHS RAP TEAM,BALCON PLASTICS,355.00,EDUC VISITS/HOLS/CAMPS/TOYS,MISCELLANEOUS AND SPECIALTY RETAIL STORES
17/09/2018,FAIRCROFT COMMUNITY HOME,TESCO STORE 2812,256.02,PURCHASE OF FOOD (RAW MATERIALS),"GROCERY STORES, SUPERMARKETS"
17/09/2018,CHMHS RAP TEAM,CURRYS S/S,343.93,EQUIPMENT,ELECTRONIC SALES
17/09/2018,HOPE SERVICE - WEST,B & Q 1018,13.97,CURRICULUM CONSUMABLES,"BUILDING MATERIALS, LUMBER STORES"
17/09/2018,PROPERTY OPERATIONS TEAM,SCREWFIX GUILFORD WOOD,11.99,PURCHASE OF BUILDING MATERIALS,"BUILDING MATERIALS, LUMBER STORES"
17/09/2018,CHEYNE WALK COMMUNITY HOME,AMZN MKTP UK,25.23,STATIONERY,BOOK STORES
17/09/2018,CORONER SURREY POLICE,TRAVELODGE GB0000,35.25,SUBSISTENCE AND CONFERENCE EXPENSES,TRAVELODGE
17/09/2018,WOODLANDS COMMUNITY HOME,TESCO STORE 2560,158.60,EQUIPMENT,"GROCERY STORES, SUPERMARKETS"
17/09/2018,CHEYNE WALK COMMUNITY HOME,WAITROSE 233,2.20,PURCHASE OF FOOD (RAW MATERIALS),"GROCERY STORES, SUPERMARKETS"
17/09/2018,STUDENT FARECARD,SURREY CC CARD PAY,25.00,NON-STAFF RELATED TRANSPORT COSTS,COMPUTER NETWORK/INFORMATION SERVICES
17/09/2018,STUDENT FARECARD,SURREY CC CARD PAY,-25.00,NON-STAFF RELATED TRANSPORT COSTS,COMPUTER NETWORK/INFORMATION SERVICES
17/09/2018,BURBANK COMMUNITY HOME,AMZN MKTP UK,49.00,EQUIPMENT,BOOK STORES
17/09/2018,BURBANK COMMUNITY HOME,AMZN MKTP UK AMAZON.CO,11.62,EQUIPMENT,BOOK STORES
17/09/2018,ASSISTED PURCHASE SCHEME,WWW.REIDYS.COM,469.00,EQUIPMENT,"MUSIC STORES-INSTRUMENTS, PIANOS, SHEET MUSIC"
17/09/2018,FAMILIES TANDRIDGE,W M MORRISONS,13.56,PURCHASE OF FOOD (RAW MATERIALS),"GROCERY STORES, SUPERMARKETS"
17/09/2018,SW CARE - CP & COURT LAC,ARGOS RETAIL GROUP,28.99,EDUC VISITS/HOLS/CAMPS/TOYS,DISCOUNT STORES
17/09/2018,TARGETED INTERVENTION,TESCO STORES-2047,19.00,EDUC VISITS/HOLS/CAMPS/TOYS,"GROCERY STORES, SUPERMARKETS"
17/09/2018,WOODLANDS COMMUNITY HOME,AMZN MKTP UK AMAZON.CO,4.66,EQUIPMENT,BOOK STORES
17/09/2018,CS BUSINESS SUPPORT EAST,AMAZON.CO.UK,14.97,BOOKS,DIRECT MARKETING-OTHER DIRECT MARKETERS/NOT ELSEW.
17/09/2018,CS BUSINESS SUPPORT EAST,AMZN MKTP UK AMAZON.CO,6.19,BOOKS,BOOK STORES
17/09/2018,PE/CDT MAINTENANCE OVERHEADS,JOHNSON HEALTH TECH UK,271.89,ITEMS PURCHASED FOR RE-SALE,SPORTING GOODS STORES
17/09/2018,NW CARE - CP & COURT LAC,BRITISH A 12528664490462,138.36,NON-STAFF RELATED TRANSPORT COSTS,BRITISH A
17/09/2018,NW CARE - CP & COURT LAC,BRITISH A 12528664490473,138.36,NON-STAFF RELATED TRANSPORT COSTS,BRITISH A
17/09/2018,SW CARE - CP & COURT LAC,Y GARTH,80.00,OTHER COMMUNITY CARE VOL,"LODGING-HOTELS,MOTELS,RESORTS-NOT CLASSIFIED"
17/09/2018,NW CARE - CP & COURT LAC,EASYJET00 000    EVS7CTF,337.50,NON-STAFF RELATED TRANSPORT COSTS,EASYJET
17/09/2018,SFRS-SERVICE DELIVERY,SAINSBURYS SACAT 0687,62.70,REFRESHMENT COSTS,"GROCERY STORES, SUPERMARKETS"
17/09/2018,TARGETED INTERVENTION,COSTA COFFEE,7.95,EDUC VISITS/HOLS/CAMPS/TOYS,"EATING PLACES, RESTAURANTS"
17/09/2018,HOPE SERVICE - WEST,SAINSBURYS SACAT 0683,92.81,PURCHASE OF FOOD (RAW MATERIALS),"GROCERY STORES, SUPERMARKETS"
17/09/2018,HOPE SERVICE - WEST,SAINSBURYS 0683,4.75,REFRESHMENT COSTS,"GROCERY STORES, SUPERMARKETS"
17/09/2018,SOLD PROFESSIONAL TRAINING AND DEVLPMNT,MOUNTAIN TRAINING,36.00,STAFF TRAINING,COMPUTER SOFTWARE STORES
17/09/2018,KARIBU COMMUNITY HOME,AMZN MKTP UK,13.55,EDUC VISITS/HOLS/CAMPS/TOYS,BOOK STORES
17/09/2018,HOPE SERVICE - WEST,SAINSBURYS SACAT(4409),3.30,PURCHASE OF FOOD (RAW MATERIALS),"GROCERY STORES, SUPERMARKETS"
17/09/2018,HOPE SERVICE - WEST,SAINSBURYS SACAT(4409),2.10,PURCHASE OF FOOD (RAW MATERIALS),"GROCERY STORES, SUPERMARKETS"
17/09/2018,SURREY THE GREAT WAR,EB  VOICES OF THE HOME,40.00,TRAINING EXPENSES EXTERNAL GENERAL,BUSINESS SERVICES-NOT ELSEWHERE CLASSIFIED
17/09/2018,INNOVATION FUND,INC SOC MUSICIANS,632.85,FEES,"ORGANIZATIONS, MEMBERSHIP-NOT ELSEWHERE CLASSIFIED"
17/09/2018,TRAINING AND DEVELOPMENT,AMAZON.CO.UK,54.47,COMPUTER HARDWARE,DIRECT MARKETING-OTHER DIRECT MARKETERS/NOT ELSEW.
17/09/2018,OCCUPATIONAL HEALTH,AMPLIVOX LTD,228.00,EQUIPMENT,"HEALTH PRACTITIONERS, MEDICAL SRVCS-NOT ELSEWHERE"
17/09/2018,SURREY HEATH LOCALITY TEAM,TRAVELODGE GB0000,478.00,VENUE COSTS (INCLUDING HIRE OF ROOMS),TRAVELODGE
17/09/2018,CHEYNE WALK COMMUNITY HOME,AMZN MKTP UK,15.98,EQUIPMENT,BOOK STORES
17/09/2018,CHEYNE WALK COMMUNITY HOME,COSTA COFFEE,8.35,PURCHASE OF FOOD (RAW MATERIALS),FAST FOOD RESTAURANTS
17/09/2018,RUTH HOUSE,DEBENHAMS,9.00,"CLOTHING, UNIFORM AND LAUNDRY",DEPARTMENT STORES
17/09/2018,CHEYNE WALK COMMUNITY HOME,TESCO STORE 2560,97.60,"CLOTHING, UNIFORM AND LAUNDRY","GROCERY STORES, SUPERMARKETS"
17/09/2018,IMT CRITICAL ENVIRONMENTS,AMZN MKTP UK AMAZON.CO,15.99,CLEANING MATERIALS,BOOK STORES
17/09/2018,IMT CRITICAL ENVIRONMENTS,MILK&MORE,4.89,REFRESHMENT COSTS,DAIRY PRODUCTS STORES
17/09/2018,RUTH HOUSE,"NEXT 0528, WOKING PEAC",20.05,"CLOTHING, UNIFORM AND LAUNDRY",FAMILY CLOTHING STORES
17/09/2018,RUTH HOUSE,SAINSBURYS 0652,118.05,EQUIPMENT,"GROCERY STORES, SUPERMARKETS"
17/09/2018,RUTH HOUSE,PARTY PEOPLE,5.59,EDUC VISITS/HOLS/CAMPS/TOYS,"GIFT, CARD, NOVELTY AND SOUVENIR SHOPS"
17/09/2018,RUTH HOUSE,NOWTV.COM/BILLINGHELP,33.99,EDUC VISITS/HOLS/CAMPS/TOYS,"CABLE, SATELLITE, OTHER PAY TELEVISION, RADIO SVCS"
17/09/2018,HOPE SERVICE - WEST,SAINSBURYS TO YOU 0686,-1.30,PURCHASE OF FOOD (RAW MATERIALS),"GROCERY STORES, SUPERMARKETS"
17/09/2018,RUTH HOUSE,WOKING GARDEN CENT,14.99,EDUC VISITS/HOLS/CAMPS/TOYS,LAWN AND GARDEN SUPPLY STORES
17/09/2018,HILLSIDE,SAINSBURYS 0784,10.80,PURCHASE OF FOOD (RAW MATERIALS),"GROCERY STORES, SUPERMARKETS"
17/09/2018,MALLOW CRESCENT,TESCO STORE 2590,154.68,PURCHASE OF FOOD (RAW MATERIALS),"GROCERY STORES, SUPERMARKETS"
17/09/2018,ACL CENTRAL EXPENDITURE,AMZN MKTP UK,22.99,REFRESHMENT COSTS,BOOK STORES
17/09/2018,TARGETED INTERVENTION,ALLSAINTS,4.75,EDUC VISITS/HOLS/CAMPS/TOYS,"EATING PLACES, RESTAURANTS"
17/09/2018,TARGETED INTERVENTION,FREEDOM LEISURE,20.60,EDUC VISITS/HOLS/CAMPS/TOYS,GOVERNMENT SERVICES-NOT ELSEWHERE CLASSIFIED
17/09/2018,TARGETED INTERVENTION,FREEDOM LEISURE,7.60,EDUC VISITS/HOLS/CAMPS/TOYS,GOVERNMENT SERVICES-NOT ELSEWHERE CLASSIFIED
17/09/2018,LIBERTAS COMMUNITY HOME,PROVISIONS VAT (28.4%),49.05,PURCHASE OF FOOD (RAW MATERIALS),"GROCERY STORES, SUPERMARKETS"
17/09/2018,LIBERTAS COMMUNITY HOME,PROVISIONS NON VAT (71.6%),123.64,PURCHASE OF FOOD (RAW MATERIALS),"GROCERY STORES, SUPERMARKETS"
17/09/2018,MALLOW CRESCENT,SAINSBURYS TO YOU 0652,131.10,PURCHASE OF FOOD (RAW MATERIALS),"GROCERY STORES, SUPERMARKETS"
17/09/2018,HOPE SERVICE - WEST,SAINSBURYS TO YOU 0686,97.85,PURCHASE OF FOOD (RAW MATERIALS),"GROCERY STORES, SUPERMARKETS"
17/09/2018,QUADRANT COURT WOKING,FAST KEY SERVICES LIMI,10.24,EQUIPMENT,BUSINESS SERVICES-NOT ELSEWHERE CLASSIFIED
17/09/2018,FAMILIES ELMBRIDGE,PP FAMILYLINKS,227.50,ITEMS PURCHASED FOR RE-SALE,"ORGANIZATIONS, CHARITABLE AND SOCIAL SERVICES"
17/09/2018,CHEYNE WALK COMMUNITY HOME,PRIME VIDEO,7.99,EQUIPMENT,RECORD SHOPS
17/09/2018,CHEYNE WALK COMMUNITY HOME,AMZN MKTP UK,56.46,BOOKS,BOOK STORES
17/09/2018,DOWNLANDS COUNTRYSIDE PROJECT,TESCO STORES,8.00,REFRESHMENT COSTS,"GROCERY STORES, SUPERMARKETS"
17/09/2018,MALLOW CRESCENT,TESCO STORE 2590,72.58,PURCHASE OF FOOD (RAW MATERIALS),"GROCERY STORES, SUPERMARKETS"
17/09/2018,KARIBU COMMUNITY HOME,SAINSBURYS SACAT 0683,26.18,PURCHASE OF FOOD (RAW MATERIALS),"GROCERY STORES, SUPERMARKETS"
17/09/2018,HILLSIDE,SAINSBURYS LOC (4898),26.55,PURCHASE OF FOOD (RAW MATERIALS),"GROCERY STORES, SUPERMARKETS"
17/09/2018,FAMILIES WOKING,WAITROSE 181,4.50,REFRESHMENT COSTS,"GROCERY STORES, SUPERMARKETS"
17/09/2018,SHELL UK LICENSING,PAYMENT TO HDC,644.00,FEES,GOVERNMENT SERVICES-NOT ELSEWHERE CLASSIFIED
17/09/2018,SHELL UK LICENSING,WWW.DERBY.GOV.UK,113.00,FEES,GOVERNMENT SERVICES-NOT ELSEWHERE CLASSIFIED
17/09/2018,ACCESS 2 EDUCATION SE NON-MEDICAL,GLS EDUCATIONAL SU,117.84,EQUIPMENT,"COLLEGES, UNIV, PRO SCHOOLS, JUNIOR COLLEGES"
17/09/2018,ACCESS 2 EDUCATION SE NON-MEDICAL,SURREY CC CARD PAY,16.00,SUBSISTENCE AND CONFERENCE EXPENSES,COMPUTER NETWORK/INFORMATION SERVICES
17/09/2018,ACL CENTRAL EXPENDITURE,TESCO STORE 3149,62.55,REFRESHMENT COSTS,"GROCERY STORES, SUPERMARKETS"
17/09/2018,CHEYNE WALK COMMUNITY HOME,AMAZON.CO.UK,4.51,BOOKS,DIRECT MARKETING-OTHER DIRECT MARKETERS/NOT ELSEW.
17/09/2018,CHEYNE WALK COMMUNITY HOME,ALIBABA CHARCOAL GRILL,34.00,PURCHASE OF FOOD (RAW MATERIALS),FAST FOOD RESTAURANTS
17/09/2018,CHEYNE WALK COMMUNITY HOME,CO-OP GROUP 310390,3.60,PURCHASE OF FOOD (RAW MATERIALS),"GROCERY STORES, SUPERMARKETS"
17/09/2018,SHELL UK LICENSING,SOUTH GLOS INTERNET,113.00,FEES,GOVERNMENT SERVICES-NOT ELSEWHERE CLASSIFIED
17/09/2018,SHELL UK LICENSING,SOUTH GLOS INTERNET,113.00,FEES,GOVERNMENT SERVICES-NOT ELSEWHERE CLASSIFIED
17/09/2018,NW CARE - CP & COURT LAC,HOTEL ON BOOKING.COM,328.00,INDEPENDENT LIVING PLACEMENTS,"LODGING-HOTELS,MOTELS,RESORTS-NOT CLASSIFIED"
17/09/2018,SHELL UK LICENSING,DARTFORD BC INTERNET,339.00,FEES,GOVERNMENT SERVICES-NOT ELSEWHERE CLASSIFIED
17/09/2018,SHELL UK LICENSING,WEST OXFORDSHIRE D,226.00,FEES,"ORGANIZATIONS, MEMBERSHIP-NOT ELSEWHERE CLASSIFIED"
17/09/2018,SW CARE - CP & COURT LAC,SW RAILWAY,204.00,NON-STAFF RELATED TRANSPORT COSTS,PASSENGER RAILWAYS
17/09/2018,SW CARE - CP & COURT LAC,HM PASSPORT,122.00,OTHER COMMUNITY CARE VOL,GOVERNMENT SERVICES-NOT ELSEWHERE CLASSIFIED
17/09/2018,MALLOW CRESCENT,SAINSBURYS TO YOU 0652,137.84,PURCHASE OF FOOD (RAW MATERIALS),"GROCERY STORES, SUPERMARKETS"
17/09/2018,ROW VOLUNTEERS WEST                     ,CHAMBERS RUNFOLD,300.00,PURCHASE OF BUILDING MATERIALS,"FREIGHT CARRIER,TRUCKING-LCL/LNG DIST, MVG/STORAGE"
17/09/2018,ROW VOLUNTEERS WEST                     ,SCREWFIX DIRECT,27.98,PURCHASE OF BUILDING MATERIALS,"BUILDING MATERIALS, LUMBER STORES"
17/09/2018,ROW VOLUNTEERS WEST                     ,SCREWFIX DIRECT,22.99,EQUIPMENT,"BUILDING MATERIALS, LUMBER STORES"
17/09/2018,BURBANK COMMUNITY HOME,COSTA COFFEE 43037185,2.90,REFRESHMENT COSTS,FAST FOOD RESTAURANTS
18/09/2018,DOWNLANDS COUNTRYSIDE PROJECT,WWW.SHEARWELL.CO.UK,43.62,EQUIPMENT,MISCELLANEOUS AND SPECIALTY RETAIL STORES
18/09/2018,WOODLANDS COMMUNITY HOME,IPOSTPARCELS.COM,20.99,POSTAGE AND COURIER CHARGES,"COURIER SVC-AIR & GROUND, FREIGHT FORWARDERS"
18/09/2018,ROW VOLUNTEERS WEST                     ,METHOLD VEHICLE HIRE,75.00,HIRE OF VEHICLES,AUTOMOBILE RENTAL AGENCY-NOT ELSEWHERE CLASSIFIED
18/09/2018,SHELL UK LICENSING,SUFFOLK COASTAL DC,226.00,FEES,GOVERNMENT SERVICES-NOT ELSEWHERE CLASSIFIED
18/09/2018,DOWNLANDS COUNTRYSIDE PROJECT,A BATTERIES,104.99,EQUIPMENT,ELECTRONIC SALES
18/09/2018,SE EDUCATION PSYCHOLOGISTS,AMZN MKTP UK,25.84,EQUIPMENT,BOOK STORES
18/09/2018,ARUNDEL,TESCO STORES 5999,-1.00,REFRESHMENT COSTS,"GROCERY STORES, SUPERMARKETS"
18/09/2018,LIBERTAS COMMUNITY HOME,SAINSBURYS SACAT 0652,90.05,"CLOTHING, UNIFORM AND LAUNDRY","GROCERY STORES, SUPERMARKETS"
18/09/2018,LIBERTAS COMMUNITY HOME,ARGOS BURPHAM,10.99,"CLOTHING, UNIFORM AND LAUNDRY",DISCOUNT STORES
18/09/2018,SPELTHORNE CMHRS CARE,HMCTS-SURREY125,75.00,FEES,FINES
18/09/2018,HOLLAND CLOSE RESIDENTIAL HOME,WILKO RETAIL LIMIT,57.25,EQUIPMENT,HOUSEHOLD APPLIANCE STORES
18/09/2018,ACL CENTRAL EXPENDITURE,JUST LAPTOPS LTD,29.99,COMPUTER HARDWARE,"COMP PROGRAMING,DATA PRCSNG,INTGRTD SYS DSGN SRVS"
18/09/2018,CHEYNE WALK COMMUNITY HOME,AMZN MKTP UK,4.29,EQUIPMENT,BOOK STORES
18/09/2018,CHEYNE WALK COMMUNITY HOME,AMZN MKTP UK,3.74,EQUIPMENT,BOOK STORES
18/09/2018,CHEYNE WALK COMMUNITY HOME,AMAZON.CO.UK,4.99,EQUIPMENT,DIRECT MARKETING-OTHER DIRECT MARKETERS/NOT ELSEW.
18/09/2018,CHEYNE WALK COMMUNITY HOME,AMAZON.CO.UK,9.99,EQUIPMENT,DIRECT MARKETING-OTHER DIRECT MARKETERS/NOT ELSEW.
18/09/2018,CHEYNE WALK COMMUNITY HOME,TESCO STORES 2560,6.85,PURCHASE OF FOOD (RAW MATERIALS),"GROCERY STORES, SUPERMARKETS"
18/09/2018,NATIONAL TRADING STANDARDS SCAM TEAM,NEWPORT GUEST HOUSE,80.00,EXPENSES,"LODGING-HOTELS,MOTELS,RESORTS-NOT CLASSIFIED"
18/09/2018,CENTRAL COMMUNICATIONS,GOOGLE  ADS2060179426,500.00,PUBLICITY,DIRECT MARKETING-CONTINUITY/SUBSCRIPTION MERCHANTS
18/09/2018,HAVEN YTH CENTRE,CO-OP GROUP 310385,8.33,REFRESHMENT COSTS,"GROCERY STORES, SUPERMARKETS"
18/09/2018,SHELL UK LICENSING,DONCASTER MBC,108.00,FEES,GOVERNMENT SERVICES-NOT ELSEWHERE CLASSIFIED
18/09/2018,SHELL UK LICENSING,AYLESBURY V D COUNCIL,226.00,FEES,GOVERNMENT SERVICES-NOT ELSEWHERE CLASSIFIED
18/09/2018,RECRUITMENT,LASER CUTTING SERVICES,131.94,STAFF ADVERTISING ,INDUSTRIAL SUPPLIES NOT ELSEWHERE CLASSIFIED
18/09/2018,SHELL UK LICENSING,WWW.N-SOMERSET.GOV.UK,113.00,FEES,GOVERNMENT SERVICES-NOT ELSEWHERE CLASSIFIED
18/09/2018,NW CARE - NON-LAC CP & COURT,TRAVELODGE GB0000,456.50,INDEPENDENT LIVING PLACEMENTS,TRAVELODGE
18/09/2018,NE CARE - NON-LAC CP & COURT,TRAVELODGE GB0000,485.00,CHILDREN ACT SEC 17 PAYMENTS,TRAVELODGE
18/09/2018,HERITAGE PUBLIC SERVICE,W M MORRISONS,11.00,REFRESHMENT COSTS,"GROCERY STORES, SUPERMARKETS"
18/09/2018,LEAP SURREY HEATH,AMZN MKTP UK,1.99,EDUC VISITS/HOLS/CAMPS/TOYS,BOOK STORES
18/09/2018,ROW VOLUNTEERS WEST                     ,B & Q 1029,9.50,PURCHASE OF BUILDING MATERIALS,"BUILDING MATERIALS, LUMBER STORES"
18/09/2018,ROW VOLUNTEERS WEST                     ,SHELL BURNT CM 199,10.07,PETROL/DIESEL ALL OFF BUSINESS,SERVICE STATIONS WITH OR WITHOUT ANCILLARY SERVICE
18/09/2018,FAMILIES SPELTHORNE,ASDA SUPERSTORE,8.99,PURCHASE OF FOOD (RAW MATERIALS),"GROCERY STORES, SUPERMARKETS"
18/09/2018,FAMILIES SPELTHORNE,AMAZON.CO.UK,146.79,BOOKS,DIRECT MARKETING-OTHER DIRECT MARKETERS/NOT ELSEW.
18/09/2018,WOODLANDS COMMUNITY HOME,PROVISIONS (3.55%),4.80,PURCHASE OF FOOD (RAW MATERIALS),"GROCERY STORES, SUPERMARKETS"
18/09/2018,WOODLANDS COMMUNITY HOME,PROVISIONS (96.45%),130.57,PURCHASE OF FOOD (RAW MATERIALS),"GROCERY STORES, SUPERMARKETS"
18/09/2018,ALP EDGE OF CARE,RINGGO PARKING 8,2.32,EDUC VISITS/HOLS/CAMPS/TOYS,AUTOMOBILE PARKING LOTS AND GARAGES
18/09/2018,KARIBU COMMUNITY HOME,AMZN MKTP UK,124.95,EQUIPMENT,BOOK STORES
18/09/2018,TARGETED INTERVENTION,WOKING SNOOKER CENTRE,9.70,EDUC VISITS/HOLS/CAMPS/TOYS,RECREATIONAL AND SPORTING CAMPS
18/09/2018,HILLSIDE,SAINSBURYS 0675,30.10,PURCHASE OF FOOD (RAW MATERIALS),"GROCERY STORES, SUPERMARKETS"
18/09/2018,BURBANK COMMUNITY HOME,SAINSBURYS SACAT 0686,7.50,"CLOTHING, UNIFORM AND LAUNDRY","GROCERY STORES, SUPERMARKETS"
18/09/2018,ROAD SAFETY TEAM,VILLAGE HOTEL COVENTRY,543.05,TRAINING EXPENSES EXTERNAL GENERAL,"LODGING-HOTELS,MOTELS,RESORTS-NOT CLASSIFIED"
18/09/2018,ALP EDGE OF CARE,RINGGO PARKING 8,1.32,EDUC VISITS/HOLS/CAMPS/TOYS,AUTOMOBILE PARKING LOTS AND GARAGES
18/09/2018,ALP EDGE OF CARE,RINGGO PARKING 8,1.32,EDUC VISITS/HOLS/CAMPS/TOYS,AUTOMOBILE PARKING LOTS AND GARAGES
18/09/2018,TARGETED INTERVENTION,THE OLD FORGE DELI,7.05,EDUC VISITS/HOLS/CAMPS/TOYS,"EATING PLACES, RESTAURANTS"
18/09/2018,TARGETED INTERVENTION,RONTEC KINGSCROFT,2.60,EDUC VISITS/HOLS/CAMPS/TOYS,SERVICE STATIONS WITH OR WITHOUT ANCILLARY SERVICE
18/09/2018,WOODLANDS COMMUNITY HOME,HOBBYCRAFT,24.55,EQUIPMENT,"ARTIST SUPPLY STORES, CRAFT SHOPS"
18/09/2018,WOODLANDS COMMUNITY HOME,HARRY RAMSDENS,13.45,PURCHASE OF FOOD (RAW MATERIALS),"MISC FOOD STORE-CONVENIENCE,MRKT,SPLTY,VENDNG MACS"
18/09/2018,WOODLANDS COMMUNITY HOME,MCDONALDS,19.85,PURCHASE OF FOOD (RAW MATERIALS),FAST FOOD RESTAURANTS
18/09/2018,NW CARE - CP & COURT LAC,SERVICED ACCOMMODATION,200.00,INDEPENDENT LIVING PLACEMENTS,"LODGING-HOTELS,MOTELS,RESORTS-NOT CLASSIFIED"
18/09/2018,IMT CRITICAL ENVIRONMENTS,AMZN MKTP UK AMAZON.CO,13.99,EQUIPMENT,BOOK STORES
18/09/2018,RUTH HOUSE,PAYPAL  EBAY-SALE,13.22,EDUC VISITS/HOLS/CAMPS/TOYS,ELECTRONIC SALES
18/09/2018,RUTH HOUSE,HOMEBASE LTD 084,113.89,EQUIPMENT,"BUILDING MATERIALS, LUMBER STORES"
18/09/2018,RUTH HOUSE,PAYPAL  SHANYMM,29.83,EDUC VISITS/HOLS/CAMPS/TOYS,"ARTIST SUPPLY STORES, CRAFT SHOPS"
18/09/2018,RUTH HOUSE,WWW.PARENTMAIL.CO.,144.00,EDUC VISITS/HOLS/CAMPS/TOYS,SCHOOLS & EDUCATIONAL SVC-NOT ELSEWHERE CLASSIFIED
18/09/2018,RUTH HOUSE,WWW.PARENTMAIL.CO.,40.00,PURCHASE OF FOOD (RAW MATERIALS),SCHOOLS & EDUCATIONAL SVC-NOT ELSEWHERE CLASSIFIED
18/09/2018,RUTH HOUSE,WWW.PARENTMAIL.CO.,40.00,PURCHASE OF FOOD (RAW MATERIALS),SCHOOLS & EDUCATIONAL SVC-NOT ELSEWHERE CLASSIFIED
18/09/2018,RUTH HOUSE,WWW.PARENTMAIL.CO.,24.00,EDUC VISITS/HOLS/CAMPS/TOYS,SCHOOLS & EDUCATIONAL SVC-NOT ELSEWHERE CLASSIFIED
18/09/2018,ACL CENTRAL EXPENDITURE,TESCO STORE 2160,141.90,REFRESHMENT COSTS,"GROCERY STORES, SUPERMARKETS"
18/09/2018,TARGETED INTERVENTION,TOPS PIZZA LEATHERHEAD,3.50,EDUC VISITS/HOLS/CAMPS/TOYS,FAST FOOD RESTAURANTS
18/09/2018,TARGETED INTERVENTION,SAINSBURYS 0026,4.90,EDUC VISITS/HOLS/CAMPS/TOYS,"GROCERY STORES, SUPERMARKETS"
18/09/2018,TARGETED INTERVENTION,CRAWLEY BOROUGH COUNCI,2.20,EDUC VISITS/HOLS/CAMPS/TOYS,AUTOMOBILE PARKING LOTS AND GARAGES
18/09/2018,LIBERTAS COMMUNITY HOME,EQUIPMENT NON VAT (100%),60.00,EQUIPMENT,HOUSEHOLD APPLIANCE STORES
18/09/2018,SERVICE DELIVERY RESOURCES,DOMINOS ALDERSHOT,186.79,REFRESHMENT COSTS,FAST FOOD RESTAURANTS
18/09/2018,QUADRANT COURT WOKING,SCREWFIX DIRECT,27.56,EQUIPMENT,"BUILDING MATERIALS, LUMBER STORES"
18/09/2018,MEMBERS EXPENSES (INCL ALLOWANCES),WWW.ICO.GOV.UK,40.00,SUBSCRIPTIONS,GOVERNMENT SERVICES-NOT ELSEWHERE CLASSIFIED
18/09/2018,MEMBERS EXPENSES (INCL ALLOWANCES),WWW.ICO.GOV.UK,40.00,SUBSCRIPTIONS,GOVERNMENT SERVICES-NOT ELSEWHERE CLASSIFIED
18/09/2018,MEMBERS EXPENSES (INCL ALLOWANCES),WWW.ICO.GOV.UK,40.00,SUBSCRIPTIONS,GOVERNMENT SERVICES-NOT ELSEWHERE CLASSIFIED
18/09/2018,MEMBERS EXPENSES (INCL ALLOWANCES),WWW.ICO.GOV.UK,40.00,SUBSCRIPTIONS,GOVERNMENT SERVICES-NOT ELSEWHERE CLASSIFIED
18/09/2018,MEMBERS EXPENSES (INCL ALLOWANCES),WWW.ICO.GOV.UK,40.00,SUBSCRIPTIONS,GOVERNMENT SERVICES-NOT ELSEWHERE CLASSIFIED
18/09/2018,MEMBERS EXPENSES (INCL ALLOWANCES),WWW.ICO.GOV.UK,40.00,SUBSCRIPTIONS,GOVERNMENT SERVICES-NOT ELSEWHERE CLASSIFIED
18/09/2018,MEMBERS EXPENSES (INCL ALLOWANCES),WWW.ICO.GOV.UK,40.00,SUBSCRIPTIONS,GOVERNMENT SERVICES-NOT ELSEWHERE CLASSIFIED
18/09/2018,MEMBERS EXPENSES (INCL ALLOWANCES),WWW.ICO.GOV.UK,40.00,SUBSCRIPTIONS,GOVERNMENT SERVICES-NOT ELSEWHERE CLASSIFIED
18/09/2018,MEMBERS EXPENSES (INCL ALLOWANCES),WWW.ICO.GOV.UK,40.00,SUBSCRIPTIONS,GOVERNMENT SERVICES-NOT ELSEWHERE CLASSIFIED
18/09/2018,FAIRCROFT COMMUNITY HOME,TESCO STORE 2812,124.80,PURCHASE OF FOOD (RAW MATERIALS),"GROCERY STORES, SUPERMARKETS"
18/09/2018,PROPERTY OPERATIONS TEAM,B & Q 1029,16.82,PURCHASE OF BUILDING MATERIALS,"BUILDING MATERIALS, LUMBER STORES"
18/09/2018,TARGETED INTERVENTION,MB WORLD,10.00,EDUC VISITS/HOLS/CAMPS/TOYS,AUTOMOTIVE SERVICE SHOPS
18/09/2018,KARIBU COMMUNITY HOME,AMZN MKTP UK,73.24,EQUIPMENT,BOOK STORES
18/09/2018,LOCAL DELIVERY GROUP,AMAZON.CO.UK,41.79,EQUIPMENT,DIRECT MARKETING-OTHER DIRECT MARKETERS/NOT ELSEW.
18/09/2018,VIRTUAL SCHOOL FOR LAC PUPIL PREMIUM,EB  EVERY CHILD INCLUD,45.00,SUBSISTENCE AND CONFERENCE EXPENSES,BUSINESS SERVICES-NOT ELSEWHERE CLASSIFIED
18/09/2018,ACL CENTRAL EXPENDITURE,HELLOPRINT,134.76,PUBLICITY,"QUICK COPY,REPRODUCTION AND BLUEPRINTING SERVICES"
18/09/2018,SURREY ARTS GENERAL,AMZN MKTP UK,19.11,STATIONERY,BOOK STORES
18/09/2018,EQUIPMENT SCC BUDGET,FIRSTCHOICE CATERING S,27.38,EQUIPMENT,INDUSTRIAL SUPPLIES NOT ELSEWHERE CLASSIFIED
18/09/2018,PE/CDT MAINTENANCE OVERHEADS,STAFFORD IN,351.44,EQUIPMENT,ELECTRONIC SALES
18/09/2018,TRANSPORT,WWW.ANSONUK.CO.UK,"1,591.92",OPERATIONAL FIRE EQUIPMENT,COMPUTER SOFTWARE STORES
18/09/2018,HAL CONTRACT,MERSEYFLOW,4.00,EXPENSES,"BRIDGE AND ROAD FEES, TOLLS"
18/09/2018,HAL CONTRACT,MERSEYFLOW,4.00,EXPENSES,"BRIDGE AND ROAD FEES, TOLLS"
18/09/2018,ACL CENTRAL EXPENDITURE,MOSAICS,184.15,EQUIPMENT,"ARTIST SUPPLY STORES, CRAFT SHOPS"
18/09/2018,TRANSPORT,ARDEN RESTAURANT,15.80,MISCELLANEOUS STAFF TRAVEL,"EATING PLACES, RESTAURANTS"
18/09/2018,TRANSPORT,ARDEN HOTEL RECEPT,20.00,MISCELLANEOUS STAFF TRAVEL,"LODGING-HOTELS,MOTELS,RESORTS-NOT CLASSIFIED"
18/09/2018,HOPE SERVICE - WEST,NAS UK,144.00,TRAINING EXPENSES EXTERNAL GENERAL,"ORGANIZATIONS, CHARITABLE AND SOCIAL SERVICES"
18/09/2018,ACL CENTRAL EXPENDITURE,GEORGE WEIL & SONS,94.45,EQUIPMENT,"ARTIST SUPPLY STORES, CRAFT SHOPS"
18/09/2018,PROPERTY OPERATIONS TEAM,THE FASCIA PLACE,66.62,PURCHASE OF BUILDING MATERIALS,"BUILDING MATERIALS, LUMBER STORES"
18/09/2018,FAMILIES RUNNYMEDE,SAINSBURYS SACAT 0679,3.50,CURRICULUM CONSUMABLES,"GROCERY STORES, SUPERMARKETS"
18/09/2018,SE EDUCATION PSYCHOLOGISTS,AMZN MKTP UK AMAZON.CO,10.98,EQUIPMENT,BOOK STORES
18/09/2018,FAMILIES RUNNYMEDE,HOMEBASE LTD 069,6.00,CURRICULUM CONSUMABLES,"BUILDING MATERIALS, LUMBER STORES"
18/09/2018,ARUNDEL, - FOOD FOR SERVICE USERS (95.91%),140.54,REFRESHMENT COSTS,"GROCERY STORES, SUPERMARKETS"
18/09/2018,ARUNDEL, - FOOD FOR SERVICE USERS (4.09%),6.00,REFRESHMENT COSTS,"GROCERY STORES, SUPERMARKETS"
18/09/2018,FAMILIES WOKING,PP ONETAKE UK,10.00,POSTAGE AND COURIER CHARGES,"ARTIST SUPPLY STORES, CRAFT SHOPS"
18/09/2018,FAMILIES REIGATE AND BANSTREAD,CO-OP GROUP FOOD,6.17,REFRESHMENT COSTS,"GROCERY STORES, SUPERMARKETS"
18/09/2018,FAMILIES GUILDFORD,CO-OP GROUP FOOD,4.66,PURCHASE OF FOOD (RAW MATERIALS),"GROCERY STORES, SUPERMARKETS"
19/09/2018,MARCH OF THE WOMEN,BROWNPAPERTICKETS.COM,30.56,SUBSISTENCE AND CONFERENCE EXPENSES,BUSINESS SERVICES-NOT ELSEWHERE CLASSIFIED
19/09/2018,CHILDREN'S RIGHTS TEAM,CANVA FOR WORK MONTHLY,10.18,COMPUTER SOFTWARE,PHOTOGRAPHIC STUDIOS
19/09/2018,TS SERVICE MANAGEMENT,WWW.REGISTRY-TRUST.ORG,750.00,COMPUTER SERVICES,PROFESSIONAL SERVICES-NOT ELSEWHERE CLASSIFIED
19/09/2018,TRAINING AND DEVELOPMENT,PREMIER INN44521720,87.50,SUBSISTENCE AND CONFERENCE EXPENSES,PREMIER INN
19/09/2018,TARGETED INTERVENTION,NBX CRAGGY ISLAND,60.00,EDUC VISITS/HOLS/CAMPS/TOYS,RECREATION SERVICES (NOT ELSEWHERE CLASSIFIED)
19/09/2018,CHEYNE WALK COMMUNITY HOME,AMZN MKTP UK AMAZON.CO,43.92,BOOKS,BOOK STORES
19/09/2018,CHEYNE WALK COMMUNITY HOME,AMZN MKTP UK AMAZON.CO,62.50,LIBRARY RESOURCES,BOOK STORES
19/09/2018,CHEYNE WALK COMMUNITY HOME,AMZN MKTP UK AMAZON.CO,43.92,BOOKS,BOOK STORES
19/09/2018,CHEYNE WALK COMMUNITY HOME,AMZN MKTP UK AMAZON.CO,7.77,BOOKS,BOOK STORES
19/09/2018,RUTH HOUSE,PAYPAL  SASHTIMELTD,79.12,EQUIPMENT,MISCELLANEOUS HOUSE FURNISHING SPECIALTY SHOPS
19/09/2018,TARGETED INTERVENTION,TOP GOLF LTD,9.30,EDUC VISITS/HOLS/CAMPS/TOYS,"CLUBS-CNTRY,MBRSHIP(ATHLET,REC,SPRTS,PRIVATE GOLF"
19/09/2018,CHAIRMAN,AMZN MKTP UK AMAZON.CO,31.48,EQUIPMENT,BOOK STORES
19/09/2018,CHEYNE WALK COMMUNITY HOME,TESCO-STORES 6647,261.78,PURCHASE OF FOOD (RAW MATERIALS),"GROCERY STORES, SUPERMARKETS"
19/09/2018,SE TEACHERS,WWW.ELKLAN.CO.UK,55.00,SUBSCRIPTIONS,SCHOOLS & EDUCATIONAL SVC-NOT ELSEWHERE CLASSIFIED
19/09/2018,ENSEMBLES & TOURS,JUST MUSIC,49.06,CURRICULUM EQUIPMENT AND FURNITURE,"MUSIC STORES-INSTRUMENTS, PIANOS, SHEET MUSIC"
19/09/2018,SURREY HEATH CMHRS CARE,HMCTS-SURREY125,75.00,FEES,FINES
19/09/2018,IMT MANAGEMENT TEAM,AMAZON PRIME,7.99,SUBSCRIPTIONS,DIRECT MARKETING-CONTINUITY/SUBSCRIPTION MERCHANTS
19/09/2018,IMT MANAGEMENT TEAM,AMAZON.CO.UK,128.99,STATIONERY,DIRECT MARKETING-OTHER DIRECT MARKETERS/NOT ELSEW.
19/09/2018,FAMILIES TANDRIDGE,AMZN MKTP UK,7.99,EQUIPMENT,BOOK STORES
19/09/2018,SW CHILDREN IN NEED TEAM,AMAZON.CO.UK,5.81,BOOKS,DIRECT MARKETING-OTHER DIRECT MARKETERS/NOT ELSEW.
19/09/2018,TARGETED INTERVENTION,FREEDOM LEISURE,9.20,EDUC VISITS/HOLS/CAMPS/TOYS,GOVERNMENT SERVICES-NOT ELSEWHERE CLASSIFIED
19/09/2018,TARGETED INTERVENTION,KINGSCROFT SUBWAY,6.20,EDUC VISITS/HOLS/CAMPS/TOYS,"EATING PLACES, RESTAURANTS"
19/09/2018,CS BUSINESS SUPPORT EAST,AMZN MKTP UK AMAZON.CO,12.38,BOOKS,BOOK STORES
19/09/2018,CHEYNE WALK COMMUNITY HOME,AMAZON.CO.UK,9.69,BOOKS,DIRECT MARKETING-OTHER DIRECT MARKETERS/NOT ELSEW.
19/09/2018,CHEYNE WALK COMMUNITY HOME,AMZN MKTP UK AMAZON.CO,99.99,EQUIPMENT,BOOK STORES
19/09/2018,RUTH HOUSE,AMZN MKTP UK,12.95,EDUC VISITS/HOLS/CAMPS/TOYS,BOOK STORES
19/09/2018,RUTH HOUSE,G J HONOUR,219.88,PURCHASE OF FOOD (RAW MATERIALS),"MISC FOOD STORE-CONVENIENCE,MRKT,SPLTY,VENDNG MACS"
19/09/2018,RUTH HOUSE,REPLACEMENTKEYS.CO.UK,12.45,EQUIPMENT,MISCELLANEOUS GENERAL MERCHANDISE
19/09/2018,ACL CENTRAL EXPENDITURE,SAFETYSUPPL,57.84,"CLOTHING, UNIFORM AND LAUNDRY",DEPARTMENT STORES
19/09/2018,TARGETED INTERVENTION,FREEDOM LEISURE,7.40,EDUC VISITS/HOLS/CAMPS/TOYS,RECREATION SERVICES (NOT ELSEWHERE CLASSIFIED)
19/09/2018,TARGETED INTERVENTION,FREEDOM LEISURE,80.00,EDUC VISITS/HOLS/CAMPS/TOYS,RECREATION SERVICES (NOT ELSEWHERE CLASSIFIED)
19/09/2018,SOLD MARKETING TEAM,AMZN MKTP UK,27.96,EQUIPMENT,BOOK STORES
19/09/2018,ACL CENTRAL EXPENDITURE,TESCO STORE 2160,47.25,REFRESHMENT COSTS,"GROCERY STORES, SUPERMARKETS"
19/09/2018,LEAP SURREY HEATH,SAINSBURYS TO YOU 0686,108.26,EDUC VISITS/HOLS/CAMPS/TOYS,"GROCERY STORES, SUPERMARKETS"
19/09/2018,NE SECTION 17 CARE,PASSPORT FEE,151.00,OTHER COMMUNITY CARE VOL,BUSINESS SERVICES-NOT ELSEWHERE CLASSIFIED
19/09/2018,MALLOW CRESCENT,PARKDEAN RESORTS H,109.00,EDUC VISITS/HOLS/CAMPS/TOYS,CAMPGROUNDS AND TRAILER PARKS
19/09/2018,MALLOW CRESCENT,PARKDEAN RESORTS H,99.00,EDUC VISITS/HOLS/CAMPS/TOYS,CAMPGROUNDS AND TRAILER PARKS
19/09/2018,TRANSPORT,PAYPAL  AO RETAIL,"1,676.00",EQUIPMENT,ELECTRONIC SALES
19/09/2018,FIRE & RESCUE COMMUNITY SAFETY,WEBCOM/ENABLE,28.80,PUBLICITY,COMPUTER MAIN./REPAIR/SERVICES NOT ELSEWHERE CLASS
19/09/2018,CHMHS RAP TEAM,WWW.ZSL.ORG-DOM,186.12,EDUC VISITS/HOLS/CAMPS/TOYS,RECREATION SERVICES (NOT ELSEWHERE CLASSIFIED)
19/09/2018,HOPE SERVICE - WEST,AMZN MKTP UK,1.60,CURRICULUM CONSUMABLES,BOOK STORES
19/09/2018,HOPE SERVICE - WEST,AMZN MKTP UK,15.27,CURRICULUM CONSUMABLES,BOOK STORES
19/09/2018,HOPE SERVICE - WEST,AMZN MKTP UK,14.48,CURRICULUM CONSUMABLES,BOOK STORES
19/09/2018,HOPE SERVICE - WEST,WHITE SPIDER,7.50,CURRIC BOOKS,"CLUBS-CNTRY,MBRSHIP(ATHLET,REC,SPRTS,PRIVATE GOLF"
19/09/2018,TRANSPORT,ALBERT JAGGER LTD VT,158.53,VEHICLE REPAIRS AND MAINTENANCE,"AUTOMOTIVE PARTS, ACCESSORIES STORES"
19/09/2018,ORBIS HEAD OF PROCUREMENT,WWW.CIPS.ORG,171.45,EXAMINATION FEES,"ORGANIZATIONS, MEMBERSHIP-NOT ELSEWHERE CLASSIFIED"
19/09/2018,ORBIS HEAD OF PROCUREMENT,WWW.CIPS.ORG,130.00,EXAMINATION FEES,"ORGANIZATIONS, MEMBERSHIP-NOT ELSEWHERE CLASSIFIED"
19/09/2018,SOUTH WEST OUTREACH, - ON LINE GROCERY SHOPPING (24.72%),39.20,PURCHASE OF FOOD (RAW MATERIALS),"GROCERY STORES, SUPERMARKETS"
19/09/2018,SOUTH WEST OUTREACH, - ON LINE GROCERY SHOPPING (75.28%),119.38,PURCHASE OF FOOD (RAW MATERIALS),"GROCERY STORES, SUPERMARKETS"
19/09/2018,SOUTH WEST OUTREACH,SAINSBURYS 0670,-1.00,PURCHASE OF FOOD (RAW MATERIALS),"GROCERY STORES, SUPERMARKETS"
19/09/2018,CHEYNE WALK COMMUNITY HOME,AMAZON.CO.UK,4.89,EQUIPMENT,DIRECT MARKETING-OTHER DIRECT MARKETERS/NOT ELSEW.
19/09/2018,BUSINESS UNIT,LEGO,490.18,TRAINING EXPENSES EXTERNAL GENERAL,"GAME, TOY, AND HOBBY SHOPS"
19/09/2018,BUSINESS UNIT,LEGO,509.99,TRAINING EXPENSES EXTERNAL GENERAL,"GAME, TOY, AND HOBBY SHOPS"
19/09/2018,TARGETED INTERVENTION,STARBUCKS COBHAM,13.95,EDUC VISITS/HOLS/CAMPS/TOYS,"EATING PLACES, RESTAURANTS"
19/09/2018,TARGETED INTERVENTION,FREEDOM LEISURE,10.00,EDUC VISITS/HOLS/CAMPS/TOYS,RECREATION SERVICES (NOT ELSEWHERE CLASSIFIED)
19/09/2018,TARGETED INTERVENTION,FREEDOM LEISURE,2.80,EDUC VISITS/HOLS/CAMPS/TOYS,RECREATION SERVICES (NOT ELSEWHERE CLASSIFIED)
19/09/2018,DBS CHECKING TEAM,AMZN MKTP UK AMAZON.CO,53.00,STATIONERY,BOOK STORES
19/09/2018,FIRE & RESCUE COMMUNITY SAFETY,IMPRINT COLOUR,78.00,EQUIPMENT,MISCELLANEOUS PUBLISHING AND PRINTING
19/09/2018,QUADRANT COURT WOKING,WWW.WALLSANDFLOORS.CO.,17.93,EQUIPMENT,FLOOR COVERING STORES
19/09/2018,ACL CENTRAL EXPENDITURE,WWW.AVPARTMASTER.NET,108.71,COMPUTER CONSUMABLES,ELECTRONIC REPAIR SHOPS
19/09/2018,ISPSB - ADAPTATIONS & IMPROVEMENTS,NRS HEALTHCARE,55.04,EQUIPMENT,DENTAL/LAB/MED/OPHTHALMIC HOSP EQUIP & SUPPLIES
19/09/2018,COVEHAM,AERIAL COMPANY,45.00,DAY TO DAY MAINTENANCE,TELECOMMUNICATION EQUIPMENT INCL TELEPHONE SALES
19/09/2018,TARGETED INTERVENTION,IZ  TAKE IT TO THE,40.00,EDUC VISITS/HOLS/CAMPS/TOYS,OTHER SERVICES (NOT ELSEWHERE CLASSIFIED)
19/09/2018,TARGETED INTERVENTION,FREEDOM LEISURE,9.20,EDUC VISITS/HOLS/CAMPS/TOYS,GOVERNMENT SERVICES-NOT ELSEWHERE CLASSIFIED
19/09/2018,HILLSIDE,GROCERIES (26.37%),21.60,PURCHASE OF FOOD (RAW MATERIALS),"GROCERY STORES, SUPERMARKETS"
19/09/2018,HILLSIDE,GROCERIES (73.63%),60.30,PURCHASE OF FOOD (RAW MATERIALS),"GROCERY STORES, SUPERMARKETS"
19/09/2018,FAIRCROFT COMMUNITY HOME,SAINSBURYS 0687,43.63,PURCHASE OF FOOD (RAW MATERIALS),"GROCERY STORES, SUPERMARKETS"
19/09/2018,BURBANK COMMUNITY HOME,SAINSBURYS TO YOU 0686,229.00,PURCHASE OF FOOD (RAW MATERIALS),"GROCERY STORES, SUPERMARKETS"
19/09/2018,NW EDUCATION PSYCHOLOGISTS,AMAZON.CO.UK,285.01,BOOKS,DIRECT MARKETING-OTHER DIRECT MARKETERS/NOT ELSEW.
19/09/2018,NW EDUCATION PSYCHOLOGISTS,AMAZON.CO.UK,155.46,BOOKS,DIRECT MARKETING-OTHER DIRECT MARKETERS/NOT ELSEW.
19/09/2018,VIRTUAL SCHOOL FOR LAC PUPIL PREMIUM,AMAZON.CO.UK,201.95,SPECIALIST EDUCATIONAL STATIONERY,DIRECT MARKETING-OTHER DIRECT MARKETERS/NOT ELSEW.
19/09/2018,VIRTUAL SCHOOL FOR LAC PUPIL PREMIUM,AMAZON.CO.UK,22.92,BOOKS,DIRECT MARKETING-OTHER DIRECT MARKETERS/NOT ELSEW.
19/09/2018,VIRTUAL SCHOOL FOR LAC PUPIL PREMIUM,AMAZON.CO.UK,46.95,BOOKS,DIRECT MARKETING-OTHER DIRECT MARKETERS/NOT ELSEW.
19/09/2018,VIRTUAL SCHOOL FOR LAC PUPIL PREMIUM,AMAZON.CO.UK,22.44,BOOKS,DIRECT MARKETING-OTHER DIRECT MARKETERS/NOT ELSEW.
19/09/2018,REMA ETHNIC/LANGUAGE MINORITY SUPPORT,GB01015  WOKING,8.00,STATIONERY,"GAME, TOY, AND HOBBY SHOPS"
19/09/2018,HOPE SERVICE - WEST,AMZN MKTP UK,93.98,CURRICULUM CONSUMABLES,BOOK STORES
19/09/2018,HOPE SERVICE - WEST,SAINSBURYS SACAT(4409),4.25,PURCHASE OF FOOD (RAW MATERIALS),"GROCERY STORES, SUPERMARKETS"
19/09/2018,CAMBERLEY LIBRARY,AMAZON.CO.UK,48.07,EQUIPMENT,DIRECT MARKETING-OTHER DIRECT MARKETERS/NOT ELSEW.
19/09/2018,DITTONS LIBRARY,AMZN MKTP UK AMAZON.CO,22.49,REFRESHMENT COSTS,BOOK STORES
19/09/2018,ENSEMBLES & TOURS,SALVATIONIST PUBLISHIN,63.95,CURRIC BOOKS,VARIETY STORES
19/09/2018,ENSEMBLES & TOURS,SALVATIONIST PUBLISHIN,58.50,CURRIC BOOKS,VARIETY STORES
19/09/2018,ENSEMBLES & TOURS,AMAZON.CO.UK,79.40,CURRIC BOOKS,DIRECT MARKETING-OTHER DIRECT MARKETERS/NOT ELSEW.
19/09/2018,SOLD ESTATES MANAGEMENT,AMZN MKTP UK,81.80,EQUIPMENT,BOOK STORES
19/09/2018,PE/CDT MAINTENANCE OVERHEADS,EPSOM AND EWELL BOROUG,400.70,TRADE REFUSE,GOVERNMENT SERVICES-NOT ELSEWHERE CLASSIFIED
19/09/2018,HOPE SERVICE - WEST,SAINSBURYS SACAT(4409),22.15,PURCHASE OF FOOD (RAW MATERIALS),"GROCERY STORES, SUPERMARKETS"
19/09/2018,ARUNDEL,ASDA SUPERSTORE,30.50,EQUIPMENT,"GROCERY STORES, SUPERMARKETS"
19/09/2018,COUNTY HALL,AMZN MKTP UK AMAZON.CO,24.95,EQUIPMENT,BOOK STORES
19/09/2018,FAMILIES RUNNYMEDE,TESCO STORES 2454,12.44,PURCHASE OF FOOD (RAW MATERIALS),"GROCERY STORES, SUPERMARKETS"
19/09/2018,FAMILIES WOKING,SCREWFIX WOKING,37.91,EQUIPMENT,"BUILDING MATERIALS, LUMBER STORES"
19/09/2018,HAVEN YTH CENTRE,WM MORRISONS STORE,3.72,REFRESHMENT COSTS,"GROCERY STORES, SUPERMARKETS"
19/09/2018,CHEYNE WALK COMMUNITY HOME,LETS RACE,25.23,EDUC VISITS/HOLS/CAMPS/TOYS,MISCELLANEOUS REPAIR SHOPS AND RELATED SERVICES
19/09/2018,CENTRAL COMMUNICATIONS,ITUNES.COM/BILL,3.99,PUBLICITY,RECORD SHOPS
20/09/2018,RUTH HOUSE,PRIMARK,6.60,"CLOTHING, UNIFORM AND LAUNDRY",FAMILY CLOTHING STORES
20/09/2018,TARGETED INTERVENTION,NBX CRAGGY ISLAND,80.00,EDUC VISITS/HOLS/CAMPS/TOYS,RECREATION SERVICES (NOT ELSEWHERE CLASSIFIED)
20/09/2018,HILLSIDE,ARGOS RETAIL GROUP,29.98,EQUIPMENT,DISCOUNT STORES
20/09/2018,PE/CDT MAINTENANCE OVERHEADS,THE UK HIDE CO LTD,375.00,ITEMS PURCHASED FOR RE-SALE,LEATHER GOODS AND LUGGAGE STORES
20/09/2018,FRIENDS & FAMILY CARE,PREMIER INN44031695,58.00,OTHER COMMUNITY CARE VOL,PREMIER INN
20/09/2018,CHEYNE WALK COMMUNITY HOME,BT BILL PAYMENT 2,107.07,TELECOMMUNICATION CHARGES,TELECOMMUNICATION EQUIPMENT INCL TELEPHONE SALES
20/09/2018,TRAINING AND DEVELOPMENT,HILTON,140.80,SUBSISTENCE AND CONFERENCE EXPENSES,HILTON
20/09/2018,TRAINING AND DEVELOPMENT,HILTON,140.80,SUBSISTENCE AND CONFERENCE EXPENSES,HILTON
20/09/2018,TRANSPORT,UK MOTOR GLAZE LTD,312.00,VEHICLE REPAIRS AND MAINTENANCE,AUTOMOTIVE SERVICE SHOPS
20/09/2018,BURBANK COMMUNITY HOME,3C_ WOKING BOROUGH COU,1.40,EDUC VISITS/HOLS/CAMPS/TOYS,AUTOMOBILE PARKING LOTS AND GARAGES
20/09/2018,TRANSPORT,TRUCKEAST LIMITED  ECO,552.00,VEHICLE REPAIRS AND MAINTENANCE,MOTOR VEHICLE SUPPLIES AND NEW PARTS
20/09/2018,TARGETED INTERVENTION,HOBBYCRAFT,52.10,EDUC VISITS/HOLS/CAMPS/TOYS,"ARTIST SUPPLY STORES, CRAFT SHOPS"
20/09/2018,BURBANK COMMUNITY HOME,WILKO WOKING,6.00,EQUIPMENT,HOUSEHOLD APPLIANCE STORES
20/09/2018,BURBANK COMMUNITY HOME,W M MORRISONS,6.20,PURCHASE OF FOOD (RAW MATERIALS),"GROCERY STORES, SUPERMARKETS"
20/09/2018,BURBANK COMMUNITY HOME,BOOTS 2142,5.79,EQUIPMENT,"DRUG STORES, PHARMACIES"
20/09/2018,YOUTH DEMOCRACY,VISTAPR VISTAPRINT.COM,86.98,EQUIPMENT,MISCELLANEOUS PUBLISHING AND PRINTING
20/09/2018,WOODLANDS COMMUNITY HOME,PROVISIONS (14.42%),19.80,PURCHASE OF FOOD (RAW MATERIALS),"GROCERY STORES, SUPERMARKETS"
20/09/2018,WOODLANDS COMMUNITY HOME,ECO CLEANING MATERIALS (85.58%),117.50,CLEANING MATERIALS,"GROCERY STORES, SUPERMARKETS"
20/09/2018,LIBERTAS COMMUNITY HOME,DOMINOS PIZZA,68.33,REFRESHMENT COSTS,FAST FOOD RESTAURANTS
20/09/2018,CHILDREN'S RIGHTS TEAM,WARWICK CASTLE,179.00,TRAINING USING EXTERNAL PROVIDERS,TOURIST ATTRACTIONS AND EXHIBITS
20/09/2018,CHILDREN'S RIGHTS TEAM,AMZN MKTP UK,29.99,EQUIPMENT,BOOK STORES
20/09/2018,CHILDREN'S RIGHTS TEAM,WARWICK CASTLE,-179.00,TRAINING USING EXTERNAL PROVIDERS,TOURIST ATTRACTIONS AND EXHIBITS
20/09/2018,KARIBU COMMUNITY HOME,"CENTER PARCS, INHOUSE",999.00,EDUC VISITS/HOLS/CAMPS/TOYS,"LODGING-HOTELS,MOTELS,RESORTS-NOT CLASSIFIED"
20/09/2018,ENSEMBLES & TOURS,WWW.STUDIO-MUSIC.C,77.45,CURRIC BOOKS,MISCELLANEOUS PUBLISHING AND PRINTING
20/09/2018,SP CENTRES VI EQUIPMENT,WWW.TALKINGPRODUCTS.CO,281.58,EQUIPMENT,ELECTRICAL PARTS AND EQUIPMENT
20/09/2018,EQUIPMENT SCC BUDGET,FIRSTCHOICE CATERING S,27.38,EQUIPMENT,INDUSTRIAL SUPPLIES NOT ELSEWHERE CLASSIFIED
20/09/2018,TRANSPORT,INTRAMARK,"3,879.00","CLOTHING, UNIFORM AND LAUNDRY",MISCELLANEOUS AND SPECIALTY RETAIL STORES
20/09/2018,HOPE SERVICE - WEST,WILKO RETAIL LIMIT,3.00,E25 CATERING EQUIPMENT,HOUSEHOLD APPLIANCE STORES
20/09/2018,FAMILY GROUP CONFERENCES,AMZN MKTP UK,54.99,EQUIPMENT,BOOK STORES
20/09/2018,MAINTENANCE SURVEYING TEAM,AMZN MKTP UK,84.37,EQUIPMENT,BOOK STORES
20/09/2018,ARUNDEL, - FOOD FOR SERVICE USERS (92.24%),66.58,REFRESHMENT COSTS,"GROCERY STORES, SUPERMARKETS"
20/09/2018,ARUNDEL, - FOOD FOR SERVICE USERS (7.76%),5.60,REFRESHMENT COSTS,"GROCERY STORES, SUPERMARKETS"
20/09/2018,CHEYNE WALK COMMUNITY HOME,AMAZON.CO.UK,25.97,CLEANING AND DOMESTIC SUPPLIES,DIRECT MARKETING-OTHER DIRECT MARKETERS/NOT ELSEW.
20/09/2018,CHEYNE WALK COMMUNITY HOME,WWW.ARGOS.CO.UK,459.95,EQUIPMENT,DISCOUNT STORES
20/09/2018,CHEYNE WALK COMMUNITY HOME,WWW.ARGOS.CO.UK,-459.95,EQUIPMENT,DISCOUNT STORES
20/09/2018,NW EDUCATION WELFARE OFFICERS,SURREY CC CARD PAY,16.00,TRAINING EXPENSES EXTERNAL GENERAL,COMPUTER NETWORK/INFORMATION SERVICES
20/09/2018,NW EDUCATION WELFARE OFFICERS,SURREY CC CARD PAY,16.00,TRAINING EXPENSES EXTERNAL GENERAL,COMPUTER NETWORK/INFORMATION SERVICES
20/09/2018,KARIBU COMMUNITY HOME,"CENTER PARCS, INHOUSE",535.00,EDUC VISITS/HOLS/CAMPS/TOYS,"LODGING-HOTELS,MOTELS,RESORTS-NOT CLASSIFIED"
20/09/2018,COMMUNITY ARCHAEOLOGIST PROJECT,PAYPAL  B M CROSS,5.29,EQUIPMENT,"SECOND HAND STORES, USED MERCHANDISE STORES"
20/09/2018,SE EDUCATION PSYCHOLOGISTS,GLS EDUCATIONAL SU,68.83,EQUIPMENT,"COLLEGES, UNIV, PRO SCHOOLS, JUNIOR COLLEGES"
20/09/2018,SE TEACHERS,SURREY CC CARD PAY,16.00,SUBSISTENCE AND CONFERENCE EXPENSES,COMPUTER NETWORK/INFORMATION SERVICES
20/09/2018,ACCESS 2 EDUCATION SE NON-MEDICAL,SURREY CC CARD PAY,16.00,SUBSISTENCE AND CONFERENCE EXPENSES,COMPUTER NETWORK/INFORMATION SERVICES
20/09/2018,ACCESS 2 EDUCATION SE NON-MEDICAL,SURREY CC CARD PAY,16.00,SUBSISTENCE AND CONFERENCE EXPENSES,COMPUTER NETWORK/INFORMATION SERVICES
20/09/2018,S28A MENTAL HEALTH/OLDER PEOPLE,HMCTS-SURREY125,75.00,FEES,FINES
20/09/2018,HOLLAND CLOSE RESIDENTIAL HOME,ROBERT DYAS HOLDNG LTD,36.47,EQUIPMENT,HARDWARE STORES
20/09/2018,HOLLAND CLOSE RESIDENTIAL HOME,TEAM SPORT V/T,124.00,EDUC VISITS/HOLS/CAMPS/TOYS,"AMUSEMENT PARKS,CARNIVALS,CIRCUS,FORTUNE TELLERS"
20/09/2018,CHEYNE WALK COMMUNITY HOME,CO-OP GROUP 310385,5.90,REFRESHMENT COSTS,"GROCERY STORES, SUPERMARKETS"
20/09/2018,CENTRAL COMMUNICATIONS,GOOGLE  ADS2060179426,500.00,PUBLICITY,DIRECT MARKETING-CONTINUITY/SUBSCRIPTION MERCHANTS
20/09/2018,CENTRAL COMMUNICATIONS,FACEBK JAEMMHNZR2,600.00,PUBLICITY,ADVERTISING SERVICES
20/09/2018,CENTRAL COMMUNICATIONS,ISSUU,22.72,PUBLICITY,"COMPUTERS, COMPUTER PERIPHERAL EQUIPMENT, SOFTWARE"
20/09/2018,OCCUPATIONAL THERAPY,AMZN MKTP UK,34.66,CURRICULUM CONSUMABLES,BOOK STORES
20/09/2018,TARGETED INTERVENTION,WELCOME BREAK STARBUCK,9.80,EDUC VISITS/HOLS/CAMPS/TOYS,"MISC FOOD STORE-CONVENIENCE,MRKT,SPLTY,VENDNG MACS"
20/09/2018,TARGETED INTERVENTION,TESCO STORES 5371,5.30,EDUC VISITS/HOLS/CAMPS/TOYS,"GROCERY STORES, SUPERMARKETS"
20/09/2018,ACL CENTRAL EXPENDITURE,TESCO STORES 3399,12.00,DAY TO DAY MAINTENANCE,"GROCERY STORES, SUPERMARKETS"
20/09/2018,TARGETED INTERVENTION,FREEDOM LEISURE,9.95,EDUC VISITS/HOLS/CAMPS/TOYS,GOVERNMENT SERVICES-NOT ELSEWHERE CLASSIFIED
20/09/2018,LEAP SURREY HEATH,AMZN MKTP UK,8.50,EDUC VISITS/HOLS/CAMPS/TOYS,BOOK STORES
20/09/2018,EXTENDED HOPE,TESCO STORE 2590,61.35,PURCHASE OF FOOD (RAW MATERIALS),"GROCERY STORES, SUPERMARKETS"
20/09/2018,FAMILIES TANDRIDGE,SAINSBURYS 2325,9.75,PURCHASE OF FOOD (RAW MATERIALS),"GROCERY STORES, SUPERMARKETS"
20/09/2018,FAMILIES TANDRIDGE,POUNDLAND LTD 1244,8.00,EQUIPMENT,DISCOUNT STORES
20/09/2018,HILLSIDE,TESCO STORE 3149,33.84,PURCHASE OF FOOD (RAW MATERIALS),"GROCERY STORES, SUPERMARKETS"
20/09/2018,ALP EDGE OF CARE,COSTA ASHFORD,5.10,EDUC VISITS/HOLS/CAMPS/TOYS,"MISC FOOD STORE-CONVENIENCE,MRKT,SPLTY,VENDNG MACS"
20/09/2018,ALP EDGE OF CARE,RINGGO PARKING 8,2.82,EDUC VISITS/HOLS/CAMPS/TOYS,AUTOMOBILE PARKING LOTS AND GARAGES
20/09/2018,ALP EDGE OF CARE,SURREY CC CARD PAY,16.00,EDUC VISITS/HOLS/CAMPS/TOYS,COMPUTER NETWORK/INFORMATION SERVICES
20/09/2018,NE FOSTERING CARE,871336 TT 29/09/18 26/10/18 STORAGE APPROVED ALISON BENJAMIN (80.45%),57.60,OTHER COMMUNITY CARE VOL,"PUBLIC WAREHOUSING-FARM, REFRIG GOODS, HHG STORAGE"
20/09/2018,NE FOSTERING CARE,871336 TT 29/09/18 26/10/18 STORAGE APPROVED ALISON BENJAMIN (19.55%),14.00,OTHER COMMUNITY CARE VOL,"PUBLIC WAREHOUSING-FARM, REFRIG GOODS, HHG STORAGE"
20/09/2018,NW CARE - NON-LAC CP & COURT,TRAVELODGE GB0000,409.00,OTHER COMMUNITY CARE VOL,TRAVELODGE
20/09/2018,IMT CRITICAL ENVIRONMENTS,MILK&MORE,7.58,REFRESHMENT COSTS,DAIRY PRODUCTS STORES
20/09/2018,ACL CENTRAL EXPENDITURE,AMZN MKTP UK,123.30,EQUIPMENT,BOOK STORES
20/09/2018,IMT CRITICAL ENVIRONMENTS,MILK&MORE,7.80,REFRESHMENT COSTS,DAIRY PRODUCTS STORES
20/09/2018,RUTH HOUSE,"NEXT 0528, WOKING PEAC",18.00,"CLOTHING, UNIFORM AND LAUNDRY",FAMILY CLOTHING STORES
20/09/2018,RUTH HOUSE,SAINSBURYS SACAT 0686,52.95,"CLOTHING, UNIFORM AND LAUNDRY","GROCERY STORES, SUPERMARKETS"
20/09/2018,RUTH HOUSE,SAINSBURYS 0686,39.35,"CLOTHING, UNIFORM AND LAUNDRY","GROCERY STORES, SUPERMARKETS"
20/09/2018,RUTH HOUSE,DEBENHAMS,13.10,"CLOTHING, UNIFORM AND LAUNDRY",DEPARTMENT STORES
20/09/2018,RUTH HOUSE,SURREY CC CARD PAY,16.00,TRAINING EXPENSES EXTERNAL GENERAL,COMPUTER NETWORK/INFORMATION SERVICES
20/09/2018,TARGETED INTERVENTION,ALLSAINTS,2.40,EDUC VISITS/HOLS/CAMPS/TOYS,"EATING PLACES, RESTAURANTS"
20/09/2018,TARGETED INTERVENTION,ALLSAINTS,5.60,EDUC VISITS/HOLS/CAMPS/TOYS,"EATING PLACES, RESTAURANTS"
20/09/2018,TARGETED INTERVENTION,CINEWORLD CRA CP,10.40,EDUC VISITS/HOLS/CAMPS/TOYS,"THEATRICAL PRODUCERS(EXCL MOTION PIX),TICKET AGNCY"
20/09/2018,TARGETED INTERVENTION,AMF BOWLING,21.87,EDUC VISITS/HOLS/CAMPS/TOYS,"CLUBS-CNTRY,MBRSHIP(ATHLET,REC,SPRTS,PRIVATE GOLF"
20/09/2018,TARGETED INTERVENTION,COSTA COFFEE 43037185,11.70,EDUC VISITS/HOLS/CAMPS/TOYS,FAST FOOD RESTAURANTS
20/09/2018,CS BUSINESS SUPPORT WEST,MILK&MORE,14.10,REFRESHMENT COSTS,DAIRY PRODUCTS STORES
20/09/2018,HOPE SERVICE - WEST,SAINSBURYS TO YOU 0686,76.75,PURCHASE OF FOOD (RAW MATERIALS),"GROCERY STORES, SUPERMARKETS"
20/09/2018,HOPE SERVICE - WEST,SAINSBURYS TO YOU 0686,-1.70,PURCHASE OF FOOD (RAW MATERIALS),"GROCERY STORES, SUPERMARKETS"
20/09/2018,QUADRANT COURT WOKING,AMZN MKTP UK,6.90,EQUIPMENT,BOOK STORES
20/09/2018,QUADRANT COURT WOKING,FAST KEY SERVICES LIMI,46.25,EQUIPMENT,BUSINESS SERVICES-NOT ELSEWHERE CLASSIFIED
20/09/2018,QUADRANT COURT WOKING,AMZN MKTP UK,6.99,EQUIPMENT,BOOK STORES
20/09/2018,CHMHS RAP TEAM,VIKING,155.88,STATIONERY,STATIONERY/OFFICE SUPPLIES/PRINTING & WRITING PAP.
20/09/2018,ORBIS FINANCE ASSISTANT DIRECTOR,THE MJ/HEMMING GROUP L,140.00,SUBSCRIPTIONS,"BOOKS,PERIODICALS AND NEWSPAPERS"
20/09/2018,CHMHS RAP TEAM,ROYAL MAIL ONLINE SHOP,790.00,POSTAGE AND COURIER CHARGES,POSTAL SERVICES-GOVERNMENT ONLY
20/09/2018,SW EDUCATION WELFARE OFFICERS,SURREY CC CARD PAY,16.00,TRAINING EXPENSES EXTERNAL GENERAL,COMPUTER NETWORK/INFORMATION SERVICES
20/09/2018,SW EDUCATION WELFARE OFFICERS,SURREY CC CARD PAY,16.00,TRAINING EXPENSES EXTERNAL GENERAL,COMPUTER NETWORK/INFORMATION SERVICES
20/09/2018,CHMHS RAP TEAM,RICKYS TRAVEL,278.10,EDUC VISITS/HOLS/CAMPS/TOYS,LIMOUSINES AND TAXICABS
20/09/2018,HOPE SERVICE - WEST,TESCO STORES 6320,2.00,PURCHASE OF FOOD (RAW MATERIALS),"GROCERY STORES, SUPERMARKETS"
20/09/2018,PROPERTY OPERATIONS TEAM,SCREWFIX WOKING,81.96,PURCHASE OF BUILDING MATERIALS,"BUILDING MATERIALS, LUMBER STORES"
20/09/2018,CHEYNE WALK COMMUNITY HOME,WWW.IKEA.COM,265.00,FURNITURE,"EQUIP, FURNITURE, HOME FURNSHNGS STRS (EXCPT APPL)"
20/09/2018,TRANSPORT,UK MOTOR GLAZE LTD,306.00,VEHICLE REPAIRS AND MAINTENANCE,AUTOMOTIVE SERVICE SHOPS
21/09/2018,DEVELOPMENT TEAM,WWW.GO-DISPLAYS.CO.UK,844.80,STATIONERY,INDUSTRIAL SUPPLIES NOT ELSEWHERE CLASSIFIED
21/09/2018,LIBERTAS COMMUNITY HOME,SAINSBURYS 0652,10.00,EDUC VISITS/HOLS/CAMPS/TOYS,"GROCERY STORES, SUPERMARKETS"
21/09/2018,TARGETED INTERVENTION,STARBUCKS,27.17,EDUC VISITS/HOLS/CAMPS/TOYS,FAST FOOD RESTAURANTS
21/09/2018,TARGETED INTERVENTION,NEW SOUTHERN RAILW,35.30,EDUC VISITS/HOLS/CAMPS/TOYS,PASSENGER RAILWAYS
21/09/2018,TARGETED INTERVENTION,SUMUP   COLLINS RIVER,19.20,EDUC VISITS/HOLS/CAMPS/TOYS,"EATING PLACES, RESTAURANTS"
21/09/2018,TARGETED INTERVENTION,TFL TRAVEL CH,6.80,EDUC VISITS/HOLS/CAMPS/TOYS,"TRANSPRTN-SUBRBN & LOCAL COMTR PSNGR, INCL FERRIES"
21/09/2018,SURREY HEATH LOCALITY TEAM,TRAVELODGE GB0000,453.00,VENUE COSTS (INCLUDING HIRE OF ROOMS),TRAVELODGE
21/09/2018,CHEYNE WALK COMMUNITY HOME,BOOTS/0837,7.04,EQUIPMENT,"DRUG STORES, PHARMACIES"
21/09/2018,CHEYNE WALK COMMUNITY HOME,TESCO STORE 2560,70.99,PURCHASE OF FOOD (RAW MATERIALS),"GROCERY STORES, SUPERMARKETS"
21/09/2018,CHEYNE WALK COMMUNITY HOME,TESCO PFS 3874,10.00,REFRESHMENT COSTS,SERVICE STATIONS WITH OR WITHOUT ANCILLARY SERVICE
21/09/2018,EMERGENCY MANAGEMENT,AMAZON.CO.UK,58.75,EQUIPMENT,DIRECT MARKETING-OTHER DIRECT MARKETERS/NOT ELSEW.
21/09/2018,CHILDREN'S RIGHTS TEAM,AMZN MKTP UK,17.96,EQUIPMENT,BOOK STORES
21/09/2018,ACL CENTRAL EXPENDITURE,POST OFFICE SELF SERVI,13.14,PUBLICITY,POSTAL SERVICES-GOVERNMENT ONLY
21/09/2018,ASC STRATEGIC DIRECTOR PROJECTS,WWW.ADASS.ORG.UK,570.00,TRAINING EXPENSES EXTERNAL GENERAL,"ORGANIZATIONS, CHARITABLE AND SOCIAL SERVICES"
21/09/2018,DITTONS LIBRARY,AMZN MKTP UK,17.84,REFRESHMENT COSTS,BOOK STORES
21/09/2018,CHEYNE WALK COMMUNITY HOME,TESCO STORE 2560,148.00,EQUIPMENT,"GROCERY STORES, SUPERMARKETS"
21/09/2018,CHEYNE WALK COMMUNITY HOME,TESCO STORE 2560,60.53,EQUIPMENT,"GROCERY STORES, SUPERMARKETS"
21/09/2018,CENTRAL COMMUNICATIONS,GOOGLE  ADS2060179426,500.00,PUBLICITY,DIRECT MARKETING-CONTINUITY/SUBSCRIPTION MERCHANTS
21/09/2018,SW CARE - CP & COURT LAC,SURREY CC CARD PAY,11.00,OTHER COMMUNITY CARE VOL,COMPUTER NETWORK/INFORMATION SERVICES
21/09/2018,SW CARE - CP & COURT LAC,SURREY CC CARD PAY,11.00,OTHER COMMUNITY CARE VOL,COMPUTER NETWORK/INFORMATION SERVICES
21/09/2018,TARGETED INTERVENTION,TESCO STORE 2812,28.16,EDUC VISITS/HOLS/CAMPS/TOYS,"GROCERY STORES, SUPERMARKETS"
21/09/2018,TARGETED INTERVENTION,MCDONALDS,2.98,EDUC VISITS/HOLS/CAMPS/TOYS,FAST FOOD RESTAURANTS
21/09/2018,FAIRCROFT COMMUNITY HOME,SAINSBURYS SACAT 0687,18.45,PURCHASE OF FOOD (RAW MATERIALS),"GROCERY STORES, SUPERMARKETS"
21/09/2018,RUTH HOUSE,REPLACEMENTKEYS.CO.UK,9.85,EQUIPMENT,MISCELLANEOUS GENERAL MERCHANDISE
21/09/2018,RUTH HOUSE, - SAINSBURY'S FOOD DELIVERY FOR YOUNG PEOPLE (9.05%),25.10,PURCHASE OF FOOD (RAW MATERIALS),"GROCERY STORES, SUPERMARKETS"
21/09/2018,RUTH HOUSE, - SAINSBURY'S FOOD DELIVERY FOR YOUNG PEOPLE (90.95%),252.15,PURCHASE OF FOOD (RAW MATERIALS),"GROCERY STORES, SUPERMARKETS"
21/09/2018,CHMHS RAP TEAM,MIXAM UK LTD,-42.00,PRINTING,MISCELLANEOUS PUBLISHING AND PRINTING
21/09/2018,LOWER MOLE COUNTRYSIDE PROJECT,MAXWELLAMEN,23.88,UPKEEP OF GROUNDS,LAWN AND GARDEN SUPPLY STORES
21/09/2018,LOWER MOLE COUNTRYSIDE PROJECT,MAXWELLAMEN,55.14,UPKEEP OF GROUNDS,LAWN AND GARDEN SUPPLY STORES
21/09/2018,APPLEWOOD,ASDA GROCERIES ONLINE,167.07,PURCHASE OF FOOD (RAW MATERIALS),"GROCERY STORES, SUPERMARKETS"
21/09/2018,APPLEWOOD,ASDA GROCERIES ONLINE,-.97,PURCHASE OF FOOD (RAW MATERIALS),"GROCERY STORES, SUPERMARKETS"
21/09/2018,APPLEWOOD,ASDA GROCERIES ONLINE,-1.70,PURCHASE OF FOOD (RAW MATERIALS),"GROCERY STORES, SUPERMARKETS"
21/09/2018,SOLD ESTATES MANAGEMENT,WICKES 266,30.11,DAY TO DAY MAINTENANCE,HOME SUPPLY WAREHOUSE STORES
21/09/2018,SOLD DAY TO DAY OPERATIONS,BLUE CHIP,30.95,DAY TO DAY MAINTENANCE,SPORTING GOODS STORES
21/09/2018,FAIRCROFT COMMUNITY HOME,TESCO DELIVERY SAVER2,6.99,SUBSCRIPTIONS,DIRECT MARKETING-CONTINUITY/SUBSCRIPTION MERCHANTS
21/09/2018,CHMHS RAP TEAM,LUL TICKET MACHINE,35.00,EDUC VISITS/HOLS/CAMPS/TOYS,PASSENGER RAILWAYS
21/09/2018,CHMHS RAP TEAM,SELFSERVE TICKET,20.70,TRAINING EXPENSES EXTERNAL GENERAL,PASSENGER RAILWAYS
21/09/2018,TRANSPORT,SCREWFIX DIRECT,52.50,OPERATIONAL FIRE EQUIPMENT,"BUILDING MATERIALS, LUMBER STORES"
21/09/2018,SOLD ESTATES MANAGEMENT,B & Q 1029,9.50,DAY TO DAY MAINTENANCE,"BUILDING MATERIALS, LUMBER STORES"
21/09/2018,BIKEABILITY - CYCLE TRAINING,AERO HEALTHCARE LTD,170.04,MEDICAL EXPENSES,DENTAL/LAB/MED/OPHTHALMIC HOSP EQUIP & SUPPLIES
21/09/2018,WASTE DISPOSAL,WWW.ARCO.CO.UK,-100.80,"CLOTHING, UNIFORM AND LAUNDRY",INDUSTRIAL SUPPLIES NOT ELSEWHERE CLASSIFIED
21/09/2018,ARUNDEL,TESCO STORES 5999,195.32,REFRESHMENT COSTS,"GROCERY STORES, SUPERMARKETS"
21/09/2018,TARGETED INTERVENTION,COSTA COFFEE,12.10,EDUC VISITS/HOLS/CAMPS/TOYS,FAST FOOD RESTAURANTS
21/09/2018,TARGETED INTERVENTION,CERAMICS CAFE HERSHAM,61.50,EDUC VISITS/HOLS/CAMPS/TOYS,MISCELLANEOUS HOUSE FURNISHING SPECIALTY SHOPS
21/09/2018,SOLD PROFESSIONAL TRAINING AND DEVLPMNT,BRITISH CANOEING,150.00,TRAINING EXPENSES EXTERNAL GENERAL,COMPUTER SOFTWARE STORES
21/09/2018,WOODLANDS COMMUNITY HOME,SOFT KITCHEN BROOM (3.36%),4.50,EQUIPMENT,"GROCERY STORES, SUPERMARKETS"
21/09/2018,WOODLANDS COMMUNITY HOME,PROVISIONS (96.64%),129.49,PURCHASE OF FOOD (RAW MATERIALS),"GROCERY STORES, SUPERMARKETS"
21/09/2018,FIRE & RESCUE COMMUNITY SAFETY,SURREY CC CARD PAY,16.00,TRAINING EXPENSES EXTERNAL GENERAL,COMPUTER NETWORK/INFORMATION SERVICES
21/09/2018,SW CARE - CP & COURT LAC,KENDALL CARS LEATHERHE,200.00,REMOVAL EXPENSES,AUTOMOBILE RENTAL AGENCY-NOT ELSEWHERE CLASSIFIED
21/09/2018,TARGETED INTERVENTION,TESCO STORES-2047,4.50,EDUC VISITS/HOLS/CAMPS/TOYS,"GROCERY STORES, SUPERMARKETS"
21/09/2018,TARGETED INTERVENTION,MAX TESCO 3321,.50,EDUC VISITS/HOLS/CAMPS/TOYS,PHOTOGRAPHIC STUDIOS
21/09/2018,TARGETED INTERVENTION,SHELL UK LTD,3.90,EDUC VISITS/HOLS/CAMPS/TOYS,SERVICE STATIONS WITH OR WITHOUT ANCILLARY SERVICE
21/09/2018,SE CARE - LAC,PREMIER INN44521770,143.00,CHILDREN ACT SEC 17 PAYMENTS,PREMIER INN
21/09/2018,TARGETED INTERVENTION,SQUIRES GARDEN CENTRE,8.05,EDUC VISITS/HOLS/CAMPS/TOYS,LAWN AND GARDEN SUPPLY STORES
21/09/2018,LIBERTAS COMMUNITY HOME,EQUIPMENT VAT (2.54%),3.00,EQUIPMENT,"GROCERY STORES, SUPERMARKETS"
21/09/2018,LIBERTAS COMMUNITY HOME,PROVISIONS VAT (19.53%),23.04,PURCHASE OF FOOD (RAW MATERIALS),"GROCERY STORES, SUPERMARKETS"
21/09/2018,LIBERTAS COMMUNITY HOME,PROVISIONS NON VAT (77.93%),91.96,PURCHASE OF FOOD (RAW MATERIALS),"GROCERY STORES, SUPERMARKETS"
21/09/2018,BURBANK COMMUNITY HOME,ASDA STORES 4823,22.00,"CLOTHING, UNIFORM AND LAUNDRY","GROCERY STORES, SUPERMARKETS"
21/09/2018,ROAD SAFETY TEAM,VILLAGE HOTEL COVENTRY,-4.05,TRAINING EXPENSES EXTERNAL GENERAL,"LODGING-HOTELS,MOTELS,RESORTS-NOT CLASSIFIED"
21/09/2018,PE/CDT MAINTENANCE OVERHEADS,MANBAT LTD,12.00,EQUIPMENT,"DURABLE GOODS, NOT ELSEWHERE CLASSIFIED"
21/09/2018,PROPERTY OPERATIONS TEAM,WICKES,62.64,PURCHASE OF BUILDING MATERIALS,"BUILDING MATERIALS, LUMBER STORES"
21/09/2018,KARIBU COMMUNITY HOME,TESCO STORE 2812,378.80,PURCHASE OF FOOD (RAW MATERIALS),"GROCERY STORES, SUPERMARKETS"
21/09/2018,TRAINING AND DEVELOPMENT,TRAVELODGE GB0000,205.50,TRAINING EXPENSES EXTERNAL GENERAL,TRAVELODGE
21/09/2018,TS SERVICE MANAGEMENT,TRAVELODGE GB0000,105.50,SUBSISTENCE AND CONFERENCE EXPENSES,TRAVELODGE
21/09/2018,SHELL UK LICENSING,WILTSHIRE COUNTY C,339.00,FEES,GOVERNMENT SERVICES-NOT ELSEWHERE CLASSIFIED
22/09/2018,IMT MODERN WORKER,BLS WEBHOSE,47.26,COMPUTER SERVICES,COMPUTER SOFTWARE STORES
22/09/2018,CHEYNE WALK COMMUNITY HOME,TESCO STORE 2560,53.48,PURCHASE OF FOOD (RAW MATERIALS),"GROCERY STORES, SUPERMARKETS"
22/09/2018,LIBERTAS COMMUNITY HOME,TEAM SPORT FARNBOROUGH,105.00,EDUC VISITS/HOLS/CAMPS/TOYS,"AMUSEMENT PARKS,CARNIVALS,CIRCUS,FORTUNE TELLERS"
22/09/2018,HAVEN YTH CENTRE,CO-OP GROUP 310385,8.18,REFRESHMENT COSTS,"GROCERY STORES, SUPERMARKETS"
22/09/2018,COVEHAM,SAINSBURYS TO YOU 0687,146.44,REFRESHMENT COSTS,"GROCERY STORES, SUPERMARKETS"
22/09/2018,RUTH HOUSE,AMZN MKTP UK,49.95,EDUC VISITS/HOLS/CAMPS/TOYS,BOOK STORES
22/09/2018,RUTH HOUSE,H&M,52.01,"CLOTHING, UNIFORM AND LAUNDRY",MEN'S AND WOMEN'S CLOTHING STORES
22/09/2018,RUTH HOUSE,CARD FACTORY,2.62,EDUC VISITS/HOLS/CAMPS/TOYS,"GIFT, CARD, NOVELTY AND SOUVENIR SHOPS"
22/09/2018,RUTH HOUSE,POST OFFICE COUNTER,20.00,TELECOMMUNICATION CHARGES,POSTAL SERVICES-GOVERNMENT ONLY
22/09/2018,HILLSIDE,GROCERIES (8.07%),17.45,PURCHASE OF FOOD (RAW MATERIALS),"GROCERY STORES, SUPERMARKETS"
22/09/2018,HILLSIDE,GROCERIES (91.93%),198.75,PURCHASE OF FOOD (RAW MATERIALS),"GROCERY STORES, SUPERMARKETS"
22/09/2018,HOLLAND CLOSE RESIDENTIAL HOME,TESCO-STORES 6647,178.60,PURCHASE OF FOOD (RAW MATERIALS),"GROCERY STORES, SUPERMARKETS"
22/09/2018,FAIRCROFT COMMUNITY HOME,EASTERN AND ORIENTAL R,211.60,REFRESHMENT COSTS,"EATING PLACES, RESTAURANTS"
22/09/2018,FAIRCROFT COMMUNITY HOME,CAR PARKS SPH,3.50,NON-STAFF RELATED TRANSPORT COSTS,GOVERNMENT SERVICES-NOT ELSEWHERE CLASSIFIED
22/09/2018,FAIRCROFT COMMUNITY HOME,SPORTSDIRECT 234,103.99,"CLOTHING, UNIFORM AND LAUNDRY",SPORTING GOODS STORES
22/09/2018,BURBANK COMMUNITY HOME,W M MORRISONS,16.52,EQUIPMENT,"GROCERY STORES, SUPERMARKETS"
22/09/2018,BURBANK COMMUNITY HOME,CINEWORLD CRA CP,27.60,EDUC VISITS/HOLS/CAMPS/TOYS,"THEATRICAL PRODUCERS(EXCL MOTION PIX),TICKET AGNCY"
23/09/2018,PSS COUNTYWIDE,APPLE ONLINE STORE GBP,409.00,EQUIPMENT,ELECTRONIC SALES
23/09/2018,PSS COUNTYWIDE,APPLE ONLINE STORE GBP,409.00,EQUIPMENT,ELECTRONIC SALES
23/09/2018,CHEYNE WALK COMMUNITY HOME,WAITROSE 233,4.70,REFRESHMENT COSTS,"GROCERY STORES, SUPERMARKETS"
23/09/2018,NW EDUCATION PSYCHOLOGISTS,AMAZON.CO.UK,388.65,BOOKS,DIRECT MARKETING-OTHER DIRECT MARKETERS/NOT ELSEW.
23/09/2018,NW EDUCATION PSYCHOLOGISTS,AMZ AMAZON.CO.UK,-12.88,BOOKS,DIRECT MARKETING-OTHER DIRECT MARKETERS/NOT ELSEW.
23/09/2018,HILLSIDE,SAINSBURYS 0784,16.50,PURCHASE OF FOOD (RAW MATERIALS),"GROCERY STORES, SUPERMARKETS"
23/09/2018,DITTONS LIBRARY,AMZN MKTP UK,15.19,REFRESHMENT COSTS,BOOK STORES
23/09/2018,DITTONS LIBRARY,AMAZON.CO.UK,21.14,REFRESHMENT COSTS,DIRECT MARKETING-OTHER DIRECT MARKETERS/NOT ELSEW.
23/09/2018,HERITAGE ENTERPRISE (SCAU),AMAZON.CO.UK,18.99,EQUIPMENT,DIRECT MARKETING-OTHER DIRECT MARKETERS/NOT ELSEW.
23/09/2018,HERITAGE ENTERPRISE (SCAU),AMAZON.CO.UK,18.99,EQUIPMENT,DIRECT MARKETING-OTHER DIRECT MARKETERS/NOT ELSEW.
23/09/2018,CENTRAL COMMUNICATIONS,GOOGLE  ADS2060179426,500.00,PUBLICITY,DIRECT MARKETING-CONTINUITY/SUBSCRIPTION MERCHANTS
23/09/2018,CHMHS RAP TEAM,AMZN MKTP UK,169.95,EQUIPMENT,BOOK STORES
23/09/2018,COUNTRYSIDE PROJECT DEVELOPMENT,MOTEL ONE KOELN WAIDMA,145.32,SUBSISTENCE AND CONFERENCE EXPENSES,"LODGING-HOTELS,MOTELS,RESORTS-NOT CLASSIFIED"
23/09/2018,ACCOMMODATION CLEANING AND REFURBISHMENT,TESCO STORES,6.70,CLEANING AND DOMESTIC SUPPLIES,"GROCERY STORES, SUPERMARKETS"
23/09/2018,RUTH HOUSE,AMZN MKTP UK,64.56,TELECOMMUNICATION CHARGES,BOOK STORES
23/09/2018,RUTH HOUSE,AMAZON.CO.UK,8.58,EQUIPMENT,DIRECT MARKETING-OTHER DIRECT MARKETERS/NOT ELSEW.
23/09/2018,RUTH HOUSE,AMZN MKTP UK,261.46,TELECOMMUNICATION CHARGES,BOOK STORES
23/09/2018,RUTH HOUSE,AMAZON.CO.UK,46.00,EQUIPMENT,DIRECT MARKETING-OTHER DIRECT MARKETERS/NOT ELSEW.
23/09/2018,HERITAGE ENTERPRISE (SCAU),AMAZON.CO.UK,18.99,EQUIPMENT,DIRECT MARKETING-OTHER DIRECT MARKETERS/NOT ELSEW.
23/09/2018,HAL CONTRACT,HILTON,47.80,REFRESHMENT COSTS,HILTON
23/09/2018,HAL CONTRACT,MERSEYFLOW,4.00,EXPENSES,"BRIDGE AND ROAD FEES, TOLLS"
23/09/2018,HAL CONTRACT,MERSEYFLOW,4.00,EXPENSES,"BRIDGE AND ROAD FEES, TOLLS"
23/09/2018,HAL CONTRACT,MERSEYFLOW,4.00,EXPENSES,"BRIDGE AND ROAD FEES, TOLLS"
23/09/2018,HAL CONTRACT,MERSEYFLOW,2.00,EXPENSES,"BRIDGE AND ROAD FEES, TOLLS"
23/09/2018,LEAP SURREY HEATH,AMZN MKTP UK,9.23,EDUC VISITS/HOLS/CAMPS/TOYS,BOOK STORES
23/09/2018,ACL CENTRAL EXPENDITURE,APPLE ONLINE STORE GBP,98.00,COMPUTER HARDWARE,ELECTRONIC SALES
23/09/2018,FIRE SERVICES IT,SOUTHERN RAILWAY WEB,66.60,MISCELLANEOUS STAFF TRAVEL,PASSENGER RAILWAYS
23/09/2018,BURBANK COMMUNITY HOME,BEEFEATER40011205,13.50,REFRESHMENT COSTS,"EATING PLACES, RESTAURANTS"
23/09/2018,FAIRCROFT COMMUNITY HOME,SAINSBURYS LOC(4180),3.00,PURCHASE OF FOOD (RAW MATERIALS),"GROCERY STORES, SUPERMARKETS"
23/09/2018,FAIRCROFT COMMUNITY HOME,TOSSED,5.99,REFRESHMENT COSTS,"EATING PLACES, RESTAURANTS"
23/09/2018,FAIRCROFT COMMUNITY HOME,WELCOME BREAK STARBUCK,8.70,REFRESHMENT COSTS,"MISC FOOD STORE-CONVENIENCE,MRKT,SPLTY,VENDNG MACS"
23/09/2018,FAIRCROFT COMMUNITY HOME,MCDONALDS,46.57,REFRESHMENT COSTS,FAST FOOD RESTAURANTS
23/09/2018,ROAD SAFETY TEAM,VILLAGE HOTEL COVENTRY,564.95,TRAINING EXPENSES EXTERNAL GENERAL,"LODGING-HOTELS,MOTELS,RESORTS-NOT CLASSIFIED"
24/09/2018,WOODLANDS COMMUNITY HOME,WWW.ARGOS.CO.UK,47.43,EQUIPMENT,DISCOUNT STORES
24/09/2018,LIBERTAS COMMUNITY HOME,BP WISLEY NORTH,5.40,REFRESHMENT COSTS,SERVICE STATIONS WITH OR WITHOUT ANCILLARY SERVICE
24/09/2018,NW CARE - LAC,PREMIER INN44521425,39.50,INDEPENDENT LIVING PLACEMENTS,PREMIER INN
24/09/2018,IMT TECHNICAL DELIVERY,MSFT  <E06006OSIQ>,"2,951.01",COMPUTER SERVICES,"COMPUTERS, COMPUTER PERIPHERAL EQUIPMENT, SOFTWARE"
24/09/2018,SE CARE - CP & COURT LAC,PREMIER INN44015020,559.00,CHILDREN ACT SEC 17 PAYMENTS,PREMIER INN
24/09/2018,MALLOW CRESCENT,AMZN MKTP UK,22.17,EQUIPMENT,BOOK STORES
24/09/2018,FIRE SERVICES IT,NEW SOUTHERN RAILW,31.20,SUBSISTENCE AND CONFERENCE EXPENSES,PASSENGER RAILWAYS
24/09/2018,HOPE SERVICE - WEST,SAINSBURYS SACAT 0683,122.35,PURCHASE OF FOOD (RAW MATERIALS),"GROCERY STORES, SUPERMARKETS"
24/09/2018,SOLD MANAGEMENT AND OVERHEADS,PAYPAL  TRAINLINE,89.00,STAFF TRAINING,TRANSPORTATION SERVICES NOT ELSEWHERE CLASSIFIED
24/09/2018,INSTRUMENT HIRE SHOP,WWW.ALDAUTOMOTIVE.CO.U,364.58,HIRE OF VEHICLES,BUSINESS SERVICES-NOT ELSEWHERE CLASSIFIED
24/09/2018,FAMILIES RUNNYMEDE,TESCO STORES 2454,13.66,PURCHASE OF FOOD (RAW MATERIALS),"GROCERY STORES, SUPERMARKETS"
24/09/2018,FAMILIES WOKING,ASDA STORES 4823,17.69,PURCHASE OF FOOD (RAW MATERIALS),"GROCERY STORES, SUPERMARKETS"
24/09/2018,B & C PRIMARY AUTHORITY PARTNERSHIP     ,PREMIER INN44028715,90.50,SUBSISTENCE AND CONFERENCE EXPENSES,PREMIER INN
24/09/2018,TS SERVICE MANAGEMENT,TRAVELODGE GB0000,71.50,SUBSISTENCE AND CONFERENCE EXPENSES,TRAVELODGE
24/09/2018,TS SERVICE MANAGEMENT,TRAVELODGE GB0000,79.15,SUBSISTENCE AND CONFERENCE EXPENSES,TRAVELODGE
24/09/2018,TS SERVICE MANAGEMENT,TRAVELODGE GB0000,79.15,SUBSISTENCE AND CONFERENCE EXPENSES,TRAVELODGE
24/09/2018,LIBERTAS COMMUNITY HOME,WWW.GEORGEABBOT.SURREY,19.00,SPECIALIST EDUCATIONAL STATIONERY,"SCHOOLS, ELEMENTARY AND SECONDARY"
24/09/2018,TANDRIDGE CMHRS CARE,HMCTS-SURREY125,75.00,FEES,FINES
24/09/2018,LIBERTAS COMMUNITY HOME,MARKS&SPENCER PLC,113.55,EQUIPMENT,"GROCERY STORES, SUPERMARKETS"
24/09/2018,ACL CENTRAL EXPENDITURE,TESCO STORE 3149,105.05,REFRESHMENT COSTS,"GROCERY STORES, SUPERMARKETS"
24/09/2018,ORBIS HEAD OF PROCUREMENT,WWW.CIPS.ORG,134.00,EXAMINATION FEES,"ORGANIZATIONS, MEMBERSHIP-NOT ELSEWHERE CLASSIFIED"
24/09/2018,LOCAL ASSISTANCE SCHEME,WEBSTER FLOORS LTD,300.00,FURNITURE,FLOOR COVERING STORES
24/09/2018,SHELL UK LICENSING,LONDON BOROUGH OF HAVE,112.00,FEES,GOVERNMENT SERVICES-NOT ELSEWHERE CLASSIFIED
24/09/2018,TARGETED INTERVENTION,CAFFE IN THE PARK,9.40,EDUC VISITS/HOLS/CAMPS/TOYS,"EATING PLACES, RESTAURANTS"
24/09/2018,TARGETED INTERVENTION,AMF BOWLING,4.75,EDUC VISITS/HOLS/CAMPS/TOYS,"CLUBS-CNTRY,MBRSHIP(ATHLET,REC,SPRTS,PRIVATE GOLF"
24/09/2018,RECRUITMENT,FACEBK 3L68QH2PS2,17.00,STAFF ADVERTISING ,ADVERTISING SERVICES
24/09/2018,ACL CENTRAL EXPENDITURE,TESCO STORE 2160,90.15,REFRESHMENT COSTS,"GROCERY STORES, SUPERMARKETS"
24/09/2018,MALLOW CRESCENT,SAINSBURYS TO YOU 0652,115.04,PURCHASE OF FOOD (RAW MATERIALS),"GROCERY STORES, SUPERMARKETS"
24/09/2018,MALLOW CRESCENT,SAINSBURYS TO YOU 0652,-8.72,PURCHASE OF FOOD (RAW MATERIALS),"GROCERY STORES, SUPERMARKETS"
24/09/2018,TRANSPORT,PAYPAL  QFONIC,15.99,DAY TO DAY MAINTENANCE,TELECOMMUNICATION EQUIPMENT INCL TELEPHONE SALES
24/09/2018,TRANSPORT,PAYPAL  MASTRONICS,47.96,DAY TO DAY MAINTENANCE,MISCELLANEOUS HOUSE FURNISHING SPECIALTY SHOPS
24/09/2018,TRANSPORT,PAYPAL  VANGUARD,13.68,DAY TO DAY MAINTENANCE,MISCELLANEOUS HOUSE FURNISHING SPECIALTY SHOPS
24/09/2018,TRANSPORT,PAYPAL  AJITPATEL99,2.99,DAY TO DAY MAINTENANCE,MISCELLANEOUS AND SPECIALTY RETAIL STORES
24/09/2018,TRANSPORT,LIDL UK  LEATHERHEAD,8.18,DAY TO DAY MAINTENANCE,"GROCERY STORES, SUPERMARKETS"
24/09/2018,FAIRCROFT COMMUNITY HOME,TESCO STORE 2812,216.47,PURCHASE OF FOOD (RAW MATERIALS),"GROCERY STORES, SUPERMARKETS"
24/09/2018,CHMHS RAP TEAM,WWW.ZSL.ORG-DOM,18.00,EDUC VISITS/HOLS/CAMPS/TOYS,RECREATION SERVICES (NOT ELSEWHERE CLASSIFIED)
24/09/2018,HOPE SERVICE - WEST,TEAM SPORT V/T,144.00,EDUC VISITS/HOLS/CAMPS/TOYS,"AMUSEMENT PARKS,CARNIVALS,CIRCUS,FORTUNE TELLERS"
24/09/2018,PROPERTY OPERATIONS TEAM,TOOLSTATION LTD,41.93,PURCHASE OF BUILDING MATERIALS,HARDWARE STORES
24/09/2018,PROPERTY OPERATIONS TEAM,GUILDFORD LOCK & SAFE,29.85,PURCHASE OF BUILDING MATERIALS,HARDWARE EQUIPMENT AND SUPPLIES
24/09/2018,PROPERTY OPERATIONS TEAM,SCREWFIX GUILFORD WOOD,12.99,PURCHASE OF BUILDING MATERIALS,"BUILDING MATERIALS, LUMBER STORES"
24/09/2018,FINANCIAL ASSESSMENTS AND BENEFITS TEAM,WWW.GOV.UK,10.00,FEES,PROFESSIONAL SERVICES-NOT ELSEWHERE CLASSIFIED
24/09/2018,CHEYNE WALK COMMUNITY HOME,CO-OP GROUP FOOD,3.30,PURCHASE OF FOOD (RAW MATERIALS),"GROCERY STORES, SUPERMARKETS"
24/09/2018,ROAD SAFETY TEAM,VILLAGE HOTEL COVENTRY,83.95,TRAINING EXPENSES EXTERNAL GENERAL,"LODGING-HOTELS,MOTELS,RESORTS-NOT CLASSIFIED"
24/09/2018,MISC EDCAT SUPPORT,WWW.PARAGON.NET.UK RT,8.63,COMPUTER SERVICES,DIRECT MARKETING-CONTINUITY/SUBSCRIPTION MERCHANTS
24/09/2018,NW CARE - CP & COURT LAC,SERVICED ACCOMMODATION,-200.00,INDEPENDENT LIVING PLACEMENTS,"LODGING-HOTELS,MOTELS,RESORTS-NOT CLASSIFIED"
24/09/2018,PSS COUNTYWIDE,AMZN MKTP UK,24.47,EQUIPMENT,BOOK STORES
24/09/2018,CHEYNE WALK COMMUNITY HOME,TESCO STORE 2560,310.80,PURCHASE OF FOOD (RAW MATERIALS),"GROCERY STORES, SUPERMARKETS"
24/09/2018,RUTH HOUSE,AMZN MKTP UK,19.98,TELECOMMUNICATION CHARGES,BOOK STORES
24/09/2018,RUTH HOUSE,PETS AT HOME,40.00,EDUC VISITS/HOLS/CAMPS/TOYS,VETERINARY SERVICES
24/09/2018,ACL CENTRAL EXPENDITURE,AMAZON.CO.UK,23.75,COMPUTER HARDWARE,DIRECT MARKETING-OTHER DIRECT MARKETERS/NOT ELSEW.
24/09/2018,TARGETED INTERVENTION,STARBUCKS,13.60,EDUC VISITS/HOLS/CAMPS/TOYS,FAST FOOD RESTAURANTS
24/09/2018,TARGETED INTERVENTION,WWW.GL-EDUCATION.C,43.60,EXAMINATION FEES,BOOK STORES
24/09/2018,SW CARE - CP & COURT LAC,POST OFFICE SELF SERVI,1.77,POSTAGE AND COURIER CHARGES,POSTAL SERVICES-GOVERNMENT ONLY
24/09/2018,LIBERTAS COMMUNITY HOME,PROVISIONS - NON VAT (75.71%),113.89,PURCHASE OF FOOD (RAW MATERIALS),"GROCERY STORES, SUPERMARKETS"
24/09/2018,LIBERTAS COMMUNITY HOME,PROVSIONS - VAT (14.45%),21.74,PURCHASE OF FOOD (RAW MATERIALS),"GROCERY STORES, SUPERMARKETS"
24/09/2018,LIBERTAS COMMUNITY HOME,EQUIPMENT - VAT (9.84%),14.80,EQUIPMENT,"GROCERY STORES, SUPERMARKETS"
24/09/2018,BURBANK COMMUNITY HOME,W M MORRISONS,7.00,EDUC VISITS/HOLS/CAMPS/TOYS,"GROCERY STORES, SUPERMARKETS"
24/09/2018,MALLOW CRESCENT,SAINSBURYS TO YOU 0652,125.50,PURCHASE OF FOOD (RAW MATERIALS),"GROCERY STORES, SUPERMARKETS"
24/09/2018,HOPE SERVICE - WEST,SAINSBURYS TO YOU 0686,109.23,PURCHASE OF FOOD (RAW MATERIALS),"GROCERY STORES, SUPERMARKETS"
24/09/2018,HOPE SERVICE - WEST,SAINSBURYS TO YOU 0686,-3.30,PURCHASE OF FOOD (RAW MATERIALS),"GROCERY STORES, SUPERMARKETS"
24/09/2018,MALLOW CRESCENT,TESCO STORE 2590,156.65,PURCHASE OF FOOD (RAW MATERIALS),"GROCERY STORES, SUPERMARKETS"
24/09/2018,ACL CENTRAL EXPENDITURE,WWW.HSWALSH.COM,343.86,EQUIPMENT,"CLOCK, JEWELRY, WATCH, AND SILVERWARE STORE"
24/09/2018,ACL CENTRAL EXPENDITURE,PAYPAL  WSCWORKWEAR,46.36,EQUIPMENT,MEN'S AND BOY'S CLOTHING AND ACCESSORIES STORES
24/09/2018,ACL CENTRAL EXPENDITURE,MOSAICS,98.40,EQUIPMENT,"ARTIST SUPPLY STORES, CRAFT SHOPS"
24/09/2018,ACL CENTRAL EXPENDITURE,GEORGE WEIL & SONS,94.45,EQUIPMENT,"ARTIST SUPPLY STORES, CRAFT SHOPS"
24/09/2018,DEMOCRATIC SERVICES TEAM,WWW.POSTURITE.CO.UK,116.34,EQUIPMENT,OFFICE AND COMMERCIAL FURNITURE
24/09/2018,DEMOCRATIC SERVICES TEAM,WWW.POSTURITE.CO.UK,62.34,EQUIPMENT,OFFICE AND COMMERCIAL FURNITURE
24/09/2018,DEMOCRATIC SERVICES TEAM,WWW.POSTURITE.CO.UK,-62.34,EQUIPMENT,OFFICE AND COMMERCIAL FURNITURE
24/09/2018,ACL CENTRAL EXPENDITURE,WWW.AVPARTMASTER.NET,117.76,EQUIPMENT,ELECTRONIC REPAIR SHOPS
24/09/2018,LIBERTAS COMMUNITY HOME,NEXT DIRECTORY,105.99,EQUIPMENT,DIRECT MARKETING-COMBINATION CATALOG/RETAIL MERCH.
24/09/2018,EQUIPMENT SCC BUDGET,METCALFE CATERING,68.70,EQUIPMENT,"EQUIP, FURNITURE, HOME FURNSHNGS STRS (EXCPT APPL)"
24/09/2018,HOPE SERVICE - WEST,FAST KEY SERVICES LIMI,8.36,DAY TO DAY MAINTENANCE,BUSINESS SERVICES-NOT ELSEWHERE CLASSIFIED
24/09/2018,PE/CDT MAINTENANCE OVERHEADS,SINCLAIR & RUSH LIMITE,147.54,EQUIPMENT,INDUSTRIAL SUPPLIES NOT ELSEWHERE CLASSIFIED
24/09/2018,PE/CDT MAINTENANCE OVERHEADS,JOHNSON HEALTH TECH UK,17.64,ITEMS PURCHASED FOR RE-SALE,SPORTING GOODS STORES
24/09/2018,ARUNDEL,WAITROSE 202,5.70,REFRESHMENT COSTS,"GROCERY STORES, SUPERMARKETS"
24/09/2018,ACCESS 2 EDUCATION NW NON-MEDICAL,SURREY CC CARD PAY,16.00,TRAINING EXPENSES EXTERNAL GENERAL,COMPUTER NETWORK/INFORMATION SERVICES
24/09/2018,PE/CDT MAINTENANCE OVERHEADS,SCREWFIX EPSOM,179.09,EQUIPMENT,"BUILDING MATERIALS, LUMBER STORES"
24/09/2018,COUNTY HALL,ROBERT DYAS HOLDNG LTD,18.99,EQUIPMENT,HARDWARE STORES
24/09/2018,PROPERTY OPERATIONS TEAM,SCREWFIX HANWORTH,61.23,PURCHASE OF BUILDING MATERIALS,"BUILDING MATERIALS, LUMBER STORES"
24/09/2018,MALLOW CRESCENT,TESCO STORE 2590,89.23,PURCHASE OF FOOD (RAW MATERIALS),"GROCERY STORES, SUPERMARKETS"
24/09/2018,TRAINING AND DEVELOPMENT,WWW.PMGLTD.CO.UK,178.80,SUBSISTENCE AND CONFERENCE EXPENSES,BUSINESS SERVICES-NOT ELSEWHERE CLASSIFIED
24/09/2018,TRAINING AND DEVELOPMENT,WWW.CFOASERVICES.CO.UK,378.00,SUBSISTENCE AND CONFERENCE EXPENSES,"ORGANIZATIONS, MEMBERSHIP-NOT ELSEWHERE CLASSIFIED"
24/09/2018,HILLSIDE,SAINSBURYS 0784,20.95,PURCHASE OF FOOD (RAW MATERIALS),"GROCERY STORES, SUPERMARKETS"
24/09/2018,FAMILIES RUNNYMEDE,CHROME AND BLACK LTD,93.52,CURRICULUM CONSUMABLES,MEN'S AND WOMEN'S CLOTHING STORES
25/09/2018,FIRE SERVICES IT,AMZN MKTP UK AMAZON.CO,25.75,COMPUTER HARDWARE,BOOK STORES
25/09/2018,KARIBU COMMUNITY HOME,BP WISLEY NORTH,13.28,PURCHASE OF FOOD (RAW MATERIALS),SERVICE STATIONS WITH OR WITHOUT ANCILLARY SERVICE
25/09/2018,B & C PRIMARY AUTHORITY PARTNERSHIP     ,PREMIER INN44028715,-90.50,SUBSISTENCE AND CONFERENCE EXPENSES,PREMIER INN
25/09/2018,SINGING PROGRAMMES,PAYPAL  MES LTD,85.00,TRAINING EXPENSES EXTERNAL GENERAL,"SCHOOLS, ELEMENTARY AND SECONDARY"
25/09/2018,RUTH HOUSE,AMZN MKTP UK AMAZON.CO,7.99,EQUIPMENT,BOOK STORES
25/09/2018,FAMILIES SPELTHORNE,AMAZON.CO.UK,80.73,BOOKS,DIRECT MARKETING-OTHER DIRECT MARKETERS/NOT ELSEW.
25/09/2018,WOODLANDS COMMUNITY HOME,PROVISIONS (6.72%),7.25,PURCHASE OF FOOD (RAW MATERIALS),"GROCERY STORES, SUPERMARKETS"
25/09/2018,WOODLANDS COMMUNITY HOME,PROVISIONS (93.28%),100.57,PURCHASE OF FOOD (RAW MATERIALS),"GROCERY STORES, SUPERMARKETS"
25/09/2018,BURBANK COMMUNITY HOME,3C_ WOKING BOROUGH COU,1.40,EDUC VISITS/HOLS/CAMPS/TOYS,AUTOMOBILE PARKING LOTS AND GARAGES
25/09/2018,BURBANK COMMUNITY HOME,W M MORRISONS,3.90,REFRESHMENT COSTS,"GROCERY STORES, SUPERMARKETS"
25/09/2018,HILLSIDE,SAINSBURYS SACAT 0675,4.00,PURCHASE OF FOOD (RAW MATERIALS),"GROCERY STORES, SUPERMARKETS"
25/09/2018,TARGETED INTERVENTION,SAINSBURYS 0687,8.40,EDUC VISITS/HOLS/CAMPS/TOYS,"GROCERY STORES, SUPERMARKETS"
25/09/2018,TARGETED INTERVENTION,WORLD OF GOLF,33.00,EDUC VISITS/HOLS/CAMPS/TOYS,RECREATION SERVICES (NOT ELSEWHERE CLASSIFIED)
25/09/2018,SW CARE - CP & COURT LAC,BOOTS.COM,243.73,OTHER COMMUNITY CARE VOL,"DRUG STORES, PHARMACIES"
25/09/2018,SW CARE - NON-LAC CP & COURT,SURREY CC CARD PAY,11.00,OTHER COMMUNITY CARE VOL,COMPUTER NETWORK/INFORMATION SERVICES
25/09/2018,RUTH HOUSE,AMAZON PRIME,.99,EDUC VISITS/HOLS/CAMPS/TOYS,DIRECT MARKETING-CONTINUITY/SUBSCRIPTION MERCHANTS
25/09/2018,RUTH HOUSE,REPLACEMENTKEYS.CO.UK,16.80,EQUIPMENT,MISCELLANEOUS GENERAL MERCHANDISE
25/09/2018,RUTH HOUSE,SAINSBURYS SACAT 0686,16.00,"CLOTHING, UNIFORM AND LAUNDRY","GROCERY STORES, SUPERMARKETS"
25/09/2018,RUTH HOUSE, - SAINSUBURY'S FOOD DELIVERY FOR YOUNG PEOPLE (11.2%),26.65,PURCHASE OF FOOD (RAW MATERIALS),"GROCERY STORES, SUPERMARKETS"
25/09/2018,RUTH HOUSE, - SAINSUBURY'S FOOD DELIVERY FOR YOUNG PEOPLE (88.8%),211.25,PURCHASE OF FOOD (RAW MATERIALS),"GROCERY STORES, SUPERMARKETS"
25/09/2018,RUTH HOUSE,PAYPAL  SUZIE HALL,40.00,EQUIPMENT,FAMILY CLOTHING STORES
25/09/2018,RUTH HOUSE,AMZN MKTP UK,10.49,EQUIPMENT,BOOK STORES
25/09/2018,RUTH HOUSE,AMZN MKTP UK,29.18,TELECOMMUNICATION CHARGES,BOOK STORES
25/09/2018,TRANSPORT,PAYPAL  AO RETAIL,383.00,EQUIPMENT,ELECTRONIC SALES
25/09/2018,FAIRCROFT COMMUNITY HOME,TESCO STORE 2812,117.60,PURCHASE OF FOOD (RAW MATERIALS),"GROCERY STORES, SUPERMARKETS"
25/09/2018,FINANCIAL ASSESSMENTS AND BENEFITS TEAM,WWW.GOV.UK,10.00,FEES,PROFESSIONAL SERVICES-NOT ELSEWHERE CLASSIFIED
25/09/2018,LOWER MOLE COUNTRYSIDE PROJECT,WICKES,11.99,PURCHASE OF BUILDING MATERIALS,"BUILDING MATERIALS, LUMBER STORES"
25/09/2018,TARGETED INTERVENTION,KFC-PEACOCKS CENTRE,5.57,EDUC VISITS/HOLS/CAMPS/TOYS,FAST FOOD RESTAURANTS
25/09/2018,TARGETED INTERVENTION,3C_ WOKING BOROUGH COU,2.80,EDUC VISITS/HOLS/CAMPS/TOYS,AUTOMOBILE PARKING LOTS AND GARAGES
25/09/2018,TARGETED INTERVENTION,WILKO WOKING,6.00,EDUC VISITS/HOLS/CAMPS/TOYS,HOUSEHOLD APPLIANCE STORES
25/09/2018,FAIRCROFT COMMUNITY HOME,WAITROSE 176,.60,REFRESHMENT COSTS,"GROCERY STORES, SUPERMARKETS"
25/09/2018,FAIRCROFT COMMUNITY HOME,CAR PARKS SPH,3.50,NON-STAFF RELATED TRANSPORT COSTS,GOVERNMENT SERVICES-NOT ELSEWHERE CLASSIFIED
25/09/2018,ROAD SAFETY TEAM,VILLAGE HOTEL COVENTRY,-14.95,TRAINING EXPENSES EXTERNAL GENERAL,"LODGING-HOTELS,MOTELS,RESORTS-NOT CLASSIFIED"
25/09/2018,ROAD SAFETY TEAM,VILLAGE HOTEL COVENTRY,-83.95,TRAINING EXPENSES EXTERNAL GENERAL,"LODGING-HOTELS,MOTELS,RESORTS-NOT CLASSIFIED"
25/09/2018,ACCOMMODATION CLEANING AND REFURBISHMENT,AMZN MKTP UK,11.98,EQUIPMENT,BOOK STORES
25/09/2018,NW EDUCATION WELFARE OFFICERS,WOKING B C TELEPHONE,50.00,FEES,GOVERNMENT SERVICES-NOT ELSEWHERE CLASSIFIED
25/09/2018,HILLSIDE,SAINSBURYS 0675,53.30,PURCHASE OF FOOD (RAW MATERIALS),"GROCERY STORES, SUPERMARKETS"
25/09/2018,ACCESS 2 EDUCATION NE NON-MEDICAL,WWW.TTS-GROUPS.CO.UK,19.18,EQUIPMENT,"OFFICE, SCHOOL SUPPLY, AND STATIONERY STORES"
25/09/2018,CENTRAL COMMUNICATIONS,WORDPRESS 0JHTPJC63M,11.00,PUBLICITY,"COMP PROGRAMING,DATA PRCSNG,INTGRTD SYS DSGN SRVS"
25/09/2018,RUTH HOUSE,AMZN MKTP UK,20.98,EQUIPMENT,BOOK STORES
25/09/2018,RUTH HOUSE,AMAZON.CO.UK,31.96,BOOKS,DIRECT MARKETING-OTHER DIRECT MARKETERS/NOT ELSEW.
25/09/2018,RUTH HOUSE,GIFFGAFF,5.00,TELECOMMUNICATION CHARGES,TELECOM INCL PREPAID/RECURRING PHONE SVCS
25/09/2018,RUTH HOUSE,GIFFGAFF,5.00,TELECOMMUNICATION CHARGES,TELECOM INCL PREPAID/RECURRING PHONE SVCS
25/09/2018,RUTH HOUSE,GIFFGAFF,5.00,TELECOMMUNICATION CHARGES,TELECOM INCL PREPAID/RECURRING PHONE SVCS
25/09/2018,RUTH HOUSE,GIFFGAFF,5.00,TELECOMMUNICATION CHARGES,TELECOM INCL PREPAID/RECURRING PHONE SVCS
25/09/2018,RUTH HOUSE,SURREY CC CARD PAY,16.00,TRAINING EXPENSES EXTERNAL GENERAL,COMPUTER NETWORK/INFORMATION SERVICES
25/09/2018,ACL CENTRAL EXPENDITURE,TESCO STORE 2160,102.29,REFRESHMENT COSTS,"GROCERY STORES, SUPERMARKETS"
25/09/2018,ACL CENTRAL EXPENDITURE,TESCO STORE 2160,-4.20,REFRESHMENT COSTS,"GROCERY STORES, SUPERMARKETS"
25/09/2018,TARGETED INTERVENTION,CINEWORLD CRA CP,10.50,EDUC VISITS/HOLS/CAMPS/TOYS,"THEATRICAL PRODUCERS(EXCL MOTION PIX),TICKET AGNCY"
25/09/2018,TARGETED INTERVENTION,FREEDOM LEISURE,5.60,EDUC VISITS/HOLS/CAMPS/TOYS,GOVERNMENT SERVICES-NOT ELSEWHERE CLASSIFIED
25/09/2018,FIRE SERVICES IT,NEW SOUTHERN RAILW,15.70,MISCELLANEOUS STAFF TRAVEL,PASSENGER RAILWAYS
25/09/2018,QUADRANT COURT WOKING,B & Q 1029,23.00,EQUIPMENT,"BUILDING MATERIALS, LUMBER STORES"
25/09/2018,FAMILIES ELMBRIDGE,AMZN MKTP UK,31.99,EQUIPMENT,BOOK STORES
25/09/2018,FAMILIES MOLE VALLEY,AMZN MKTP UK,6.99,REFRESHMENT COSTS,BOOK STORES
25/09/2018,FAMILIES ELMBRIDGE,AMZN MKTP UK,35.67,EQUIPMENT,BOOK STORES
25/09/2018,ACL CENTRAL EXPENDITURE,RUDGWICK METALS LT,173.10,EQUIPMENT,"ROOFING AND SIDING, SHEET METAL WORK CONTRACTORS"
25/09/2018,ACL CENTRAL EXPENDITURE,AMZN MKTP UK AMAZON.CO,2.88,PURCHASE OF BUILDING MATERIALS,BOOK STORES
